Body Name,Date Paid,Transaction Number,Amount,Supplier Name,Supplier Type,Expense Area,Cost Centre Description,Expense Type
Cambridgeshire County Council,28-Dec-17,25271702-16570762,-10180.1,Voyage,Care Establishment,4 - Operations - Providers services,LDP City Locality - Care,Day and Domicillary Care Independent Sector
Cambridgeshire County Council,28-Dec-17,25271705-16570765,-8725.8,Voyage,Care Establishment,4 - Operations - Providers services,LDP City Locality - Care,Day and Domicillary Care Independent Sector
Cambridgeshire County Council,07-Dec-17,24862705-16463754,-6029.44,The Cambridge Nursing Centre,Care Establishment,2 - Commissioning - Older people Pool,City and South - Long term blocks,Nursing Independent Sector
Cambridgeshire County Council,07-Dec-17,24862708-16463757,-6029.44,The Cambridge Nursing Centre,Care Establishment,2 - Commissioning - Older people Pool,City and South - Long term blocks,Nursing Independent Sector
Cambridgeshire County Council,07-Dec-17,24862711-16463759,-6029.44,The Cambridge Nursing Centre,Care Establishment,2 - Commissioning - Older people Pool,City and South - Long term blocks,Nursing Independent Sector
Cambridgeshire County Council,07-Dec-17,24862678-16463741,-6029.44,The Cambridge Nursing Centre,Care Establishment,2 - Commissioning - Older people Pool,City and South - Long term blocks,Nursing Independent Sector
Cambridgeshire County Council,07-Dec-17,24862716-16463761,-6029.44,The Cambridge Nursing Centre,Care Establishment,2 - Commissioning - Older people Pool,City and South - Long term blocks,Nursing Independent Sector
Cambridgeshire County Council,07-Dec-17,24829968-16470246,-5315.84,Affinity Trust,Care Establishment,4 - Operations - Providers services,LDP Fens - Special Needs,Day and Domicillary Care Independent Sector
Cambridgeshire County Council,07-Dec-17,24829969-16470247,-5315.84,Affinity Trust,Care Establishment,4 - Operations - Providers services,LDP Fens - Special Needs,Day and Domicillary Care Independent Sector
Cambridgeshire County Council,07-Dec-17,24879943-16489120,-4655,Brookdale Healthcare Limited,Care Establishment,2 - Operations - Learning Disability,LDP Hunts special needs,Respite Independent Sector
Cambridgeshire County Council,07-Dec-17,24879953-16489126,-4655,Brookdale Healthcare Limited,Care Establishment,4 - Operations - Providers services,LDP Huntingdonshire Locality - Care,Respite Independent Sector
Cambridgeshire County Council,07-Dec-17,25004557-16489155,-4655,Brookdale Healthcare Limited,Care Establishment,2 - Operations - Learning Disability,LDP Hunts special needs,Respite Independent Sector
Cambridgeshire County Council,07-Dec-17,25004561-16489157,-4655,Brookdale Healthcare Limited,Care Establishment,4 - Operations - Providers services,LDP Huntingdonshire Locality - Care,Respite Independent Sector
Cambridgeshire County Council,07-Dec-17,25004562-16489158,-4655,Brookdale Healthcare Limited,Care Establishment,2 - Operations - Learning Disability,LDP Hunts special needs,Respite Independent Sector
Cambridgeshire County Council,15-Dec-17,25196780-16530902,-4655,Brookdale Healthcare Limited,Care Establishment,4 - Operations - Providers services,LDP Huntingdonshire Locality - Care,Respite Independent Sector
Cambridgeshire County Council,07-Dec-17,24879946-16489122,-4655,Brookdale Healthcare Limited,Care Establishment,4 - Operations - Providers services,LDP Huntingdonshire Locality - Care,Respite Independent Sector
Cambridgeshire County Council,21-Dec-17,25250110-16560655,-4655,Brookdale Healthcare Limited,Care Establishment,4 - Operations - Providers services,LDP Huntingdonshire Locality - Care,Respite Independent Sector
Cambridgeshire County Council,21-Dec-17,25254020-16560666,-4655,Brookdale Healthcare Limited,Care Establishment,2 - Operations - Learning Disability,LDP Hunts special needs,Respite Independent Sector
Cambridgeshire County Council,21-Dec-17,25254026-16560668,-4655,Brookdale Healthcare Limited,Care Establishment,4 - Operations - Providers services,LDP Huntingdonshire Locality - Care,Respite Independent Sector
Cambridgeshire County Council,07-Dec-17,24879969-16489136,-4655,Brookdale Healthcare Limited,Care Establishment,2 - Operations - Learning Disability,LDP Hunts special needs,Respite Independent Sector
Cambridgeshire County Council,07-Dec-17,25004568-16489162,-4655,Brookdale Healthcare Limited,Care Establishment,4 - Operations - Providers services,LDP Huntingdonshire Locality - Care,Respite Independent Sector
Cambridgeshire County Council,21-Dec-17,25254017-16560665,-4655,Brookdale Healthcare Limited,Care Establishment,2 - Operations - Learning Disability,LDP Hunts special needs,Respite Independent Sector
Cambridgeshire County Council,21-Dec-17,25254030-16560669,-4655,Brookdale Healthcare Limited,Care Establishment,4 - Operations - Providers services,LDP Huntingdonshire Locality - Care,Respite Independent Sector
Cambridgeshire County Council,07-Dec-17,24879958-16489129,-4655,Brookdale Healthcare Limited,Care Establishment,4 - Operations - Providers services,LDP Huntingdonshire Locality - Care,Respite Independent Sector
Cambridgeshire County Council,07-Dec-17,25004554-16489153,-4655,Brookdale Healthcare Limited,Care Establishment,2 - Operations - Learning Disability,LDP Hunts special needs,Respite Independent Sector
Cambridgeshire County Council,07-Dec-17,24879970-16489137,-4655,Brookdale Healthcare Limited,Care Establishment,4 - Operations - Providers services,LDP Huntingdonshire Locality - Care,Respite Independent Sector
Cambridgeshire County Council,15-Dec-17,25196779-16530901,-4655,Brookdale Healthcare Limited,Care Establishment,2 - Operations - Learning Disability,LDP Hunts special needs,Respite Independent Sector
Cambridgeshire County Council,15-Dec-17,25196772-16530894,-4655,Brookdale Healthcare Limited,Care Establishment,4 - Operations - Providers services,LDP Huntingdonshire Locality - Care,Respite Independent Sector
Cambridgeshire County Council,15-Dec-17,25196776-16530898,-4655,Brookdale Healthcare Limited,Care Establishment,2 - Operations - Learning Disability,LDP Hunts special needs,Respite Independent Sector
Cambridgeshire County Council,07-Dec-17,24879963-16489132,-4655,Brookdale Healthcare Limited,Care Establishment,4 - Operations - Providers services,LDP Huntingdonshire Locality - Care,Respite Independent Sector
Cambridgeshire County Council,07-Dec-17,24879967-16489135,-4655,Brookdale Healthcare Limited,Care Establishment,4 - Operations - Providers services,LDP Huntingdonshire Locality - Care,Respite Independent Sector
Cambridgeshire County Council,21-Dec-17,25250095-16560650,-4655,Brookdale Healthcare Limited,Care Establishment,4 - Operations - Providers services,LDP Huntingdonshire Locality - Care,Respite Independent Sector
Cambridgeshire County Council,21-Dec-17,25254058-16560662,-4655,Brookdale Healthcare Limited,Care Establishment,2 - Operations - Learning Disability,LDP Hunts special needs,Respite Independent Sector
Cambridgeshire County Council,07-Dec-17,24879957-16489128,-4655,Brookdale Healthcare Limited,Care Establishment,4 - Operations - Providers services,LDP Huntingdonshire Locality - Care,Respite Independent Sector
Cambridgeshire County Council,07-Dec-17,25004578-16489170,-4655,Brookdale Healthcare Limited,Care Establishment,4 - Operations - Providers services,LDP Huntingdonshire Locality - Care,Respite Independent Sector
Cambridgeshire County Council,15-Dec-17,25196778-16530900,-4655,Brookdale Healthcare Limited,Care Establishment,2 - Operations - Learning Disability,LDP Hunts special needs,Respite Independent Sector
Cambridgeshire County Council,15-Dec-17,25196769-16530891,-4655,Brookdale Healthcare Limited,Care Establishment,2 - Operations - Learning Disability,LDP Hunts special needs,Respite Independent Sector
Cambridgeshire County Council,21-Dec-17,25250105-16560654,-4655,Brookdale Healthcare Limited,Care Establishment,2 - Operations - Learning Disability,LDP Hunts special needs,Respite Independent Sector
Cambridgeshire County Council,21-Dec-17,25254042-16560656,-4655,Brookdale Healthcare Limited,Care Establishment,4 - Operations - Providers services,LDP Huntingdonshire Locality - Care,Respite Independent Sector
Cambridgeshire County Council,07-Dec-17,25004569-16489163,-4655,Brookdale Healthcare Limited,Care Establishment,2 - Operations - Learning Disability,LDP Hunts special needs,Respite Independent Sector
Cambridgeshire County Council,07-Dec-17,25004570-16489164,-4655,Brookdale Healthcare Limited,Care Establishment,2 - Operations - Learning Disability,LDP Hunts special needs,Respite Independent Sector
Cambridgeshire County Council,07-Dec-17,25004571-16489165,-4655,Brookdale Healthcare Limited,Care Establishment,2 - Operations - Learning Disability,LDP Hunts special needs,Respite Independent Sector
Cambridgeshire County Council,15-Dec-17,25196783-16530905,-4655,Brookdale Healthcare Limited,Care Establishment,4 - Operations - Providers services,LDP Huntingdonshire Locality - Care,Respite Independent Sector
Cambridgeshire County Council,15-Dec-17,25196771-16530893,-4655,Brookdale Healthcare Limited,Care Establishment,2 - Operations - Learning Disability,LDP Hunts special needs,Respite Independent Sector
Cambridgeshire County Council,15-Dec-17,25196775-16530897,-4655,Brookdale Healthcare Limited,Care Establishment,4 - Operations - Providers services,LDP Huntingdonshire Locality - Care,Respite Independent Sector
Cambridgeshire County Council,07-Dec-17,24829967-16470245,-4556.43,Affinity Trust,Care Establishment,4 - Operations - Providers services,LDP Fens - Special Needs,Day and Domicillary Care Independent Sector
Cambridgeshire County Council,06-Dec-17,24231223-16455009,-4375,Bidwells Llp,Trade Supplier,Control Accounts,Uncleared bank items,Bank Overdraft Expenditure / Payments
Cambridgeshire County Council,07-Dec-17,24862715-16463760,-4306.74,The Cambridge Nursing Centre,Care Establishment,2 - Commissioning - Older people Pool,City and South - Long term blocks,Nursing Independent Sector
Cambridgeshire County Council,27-Dec-17,24331910-16565008,-4076.1,La International Computer Consultants Ltd,Trade Supplier,LGSS,Systems Implementation Team,Network Support Contracts
Cambridgeshire County Council,28-Dec-17,25166912-16573574,-3592.51,Wings Education Ltd,Trade Supplier,S&C,Placements - Social Care,Agency Placements - Out County
Cambridgeshire County Council,04-Dec-17,24821647-16450094,-3535.76,Jackson Frameworks Ltd,Company,Local Infrastructure & Street Management,Local Projects,Capital WIP - roads  -  Construction cost
Cambridgeshire County Council,07-Dec-17,24879959-16489130,-3325,Brookdale Healthcare Limited,Care Establishment,4 - Operations - Providers services,LDP Huntingdonshire Locality - Care,Respite Independent Sector
Cambridgeshire County Council,21-Dec-17,25250098-16560651,-3325,Brookdale Healthcare Limited,Care Establishment,4 - Operations - Providers services,LDP Huntingdonshire Locality - Care,Respite Independent Sector
Cambridgeshire County Council,15-Dec-17,25196767-16530889,-3325,Brookdale Healthcare Limited,Care Establishment,4 - Operations - Providers services,LDP Huntingdonshire Locality - Care,Respite Independent Sector
Cambridgeshire County Council,07-Dec-17,25004558-16489156,-3325,Brookdale Healthcare Limited,Care Establishment,2 - Operations - Learning Disability,LDP Hunts special needs,Respite Independent Sector
Cambridgeshire County Council,27-Dec-17,24868832-16565381,-3245.07,Papworth Trust#1,Trust (Other),2 - Operations - Learning Disability,LDP South Cambs Locality - Care,SDS - Care and support Services
Cambridgeshire County Council,27-Dec-17,24799911-16565371,-3245.07,Papworth Trust#1,Trust (Other),2 - Operations - Learning Disability,LDP South Cambs Locality - Care,SDS - Care and support Services
Cambridgeshire County Council,05-Dec-17,24924378-16454216,-3087,The National Fostering Agency,Care Establishment,S&C,Placements - Social Care,Agency Placements - In Cambs
Cambridgeshire County Council,15-Dec-17,24986544-16521298,-2977.44,Decoy Farm,Care Establishment,4 - Operations - Providers services,LDP E Cambs Special Needs,Residential Independent Sector
Cambridgeshire County Council,15-Dec-17,24987523-16521313,-2977.44,Decoy Farm,Care Establishment,4 - Operations - Providers services,LDP E Cambs Special Needs,Residential Independent Sector
Cambridgeshire County Council,15-Dec-17,24987546-16521333,-2977.44,Decoy Farm,Care Establishment,4 - Operations - Providers services,LDP E Cambs Special Needs,Residential Independent Sector
Cambridgeshire County Council,15-Dec-17,25194285-16521451,-2977.44,Decoy Farm,Care Establishment,4 - Operations - Providers services,LDP E Cambs Special Needs,Residential Independent Sector
Cambridgeshire County Council,15-Dec-17,25194286-16521452,-2977.44,Decoy Farm,Care Establishment,4 - Operations - Providers services,LDP E Cambs Special Needs,Residential Independent Sector
Cambridgeshire County Council,15-Dec-17,25194296-16521462,-2977.44,Decoy Farm,Care Establishment,4 - Operations - Providers services,LDP E Cambs Special Needs,Residential Independent Sector
Cambridgeshire County Council,15-Dec-17,24996896-16521366,-2977.44,Decoy Farm,Care Establishment,4 - Operations - Providers services,LDP E Cambs Special Needs,Residential Independent Sector
Cambridgeshire County Council,15-Dec-17,24996906-16521376,-2977.44,Decoy Farm,Care Establishment,4 - Operations - Providers services,LDP E Cambs Special Needs,Residential Independent Sector
Cambridgeshire County Council,15-Dec-17,24996911-16521381,-2977.44,Decoy Farm,Care Establishment,4 - Operations - Providers services,LDP E Cambs Special Needs,Residential Independent Sector
Cambridgeshire County Council,15-Dec-17,25194260-16521390,-2977.44,Decoy Farm,Care Establishment,4 - Operations - Providers services,LDP E Cambs Special Needs,Residential Independent Sector
Cambridgeshire County Council,15-Dec-17,25194317-16521411,-2977.44,Decoy Farm,Care Establishment,4 - Operations - Providers services,LDP E Cambs Special Needs,Residential Independent Sector
Cambridgeshire County Council,15-Dec-17,24980584-16521154,-2977.44,Decoy Farm,Care Establishment,4 - Operations - Providers services,LDP E Cambs Special Needs,Residential Independent Sector
Cambridgeshire County Council,15-Dec-17,24980589-16521158,-2977.44,Decoy Farm,Care Establishment,4 - Operations - Providers services,LDP E Cambs Special Needs,Residential Independent Sector
Cambridgeshire County Council,15-Dec-17,24980557-16521198,-2977.44,Decoy Farm,Care Establishment,4 - Operations - Providers services,LDP E Cambs Special Needs,Residential Independent Sector
Cambridgeshire County Council,15-Dec-17,24980571-16521212,-2977.44,Decoy Farm,Care Establishment,4 - Operations - Providers services,LDP E Cambs Special Needs,Residential Independent Sector
Cambridgeshire County Council,15-Dec-17,24951518-16521230,-2977.44,Decoy Farm,Care Establishment,4 - Operations - Providers services,LDP E Cambs Special Needs,Residential Independent Sector
Cambridgeshire County Council,15-Dec-17,24951532-16521243,-2977.44,Decoy Farm,Care Establishment,4 - Operations - Providers services,LDP E Cambs Special Needs,Residential Independent Sector
Cambridgeshire County Council,15-Dec-17,24951539-16521250,-2977.44,Decoy Farm,Care Establishment,4 - Operations - Providers services,LDP E Cambs Special Needs,Residential Independent Sector
Cambridgeshire County Council,15-Dec-17,24951544-16521255,-2977.44,Decoy Farm,Care Establishment,4 - Operations - Providers services,LDP E Cambs Special Needs,Residential Independent Sector
Cambridgeshire County Council,15-Dec-17,24986517-16521274,-2977.44,Decoy Farm,Care Establishment,4 - Operations - Providers services,LDP E Cambs Special Needs,Residential Independent Sector
Cambridgeshire County Council,15-Dec-17,24986526-16521281,-2977.44,Decoy Farm,Care Establishment,4 - Operations - Providers services,LDP E Cambs Special Needs,Residential Independent Sector
Cambridgeshire County Council,15-Dec-17,25194252-16521483,-2977.44,Decoy Farm,Care Establishment,4 - Operations - Providers services,LDP E Cambs Special Needs,Residential Independent Sector
Cambridgeshire County Council,15-Dec-17,25196260-16521518,-2977.44,Decoy Farm,Care Establishment,4 - Operations - Providers services,LDP E Cambs Special Needs,Residential Independent Sector
Cambridgeshire County Council,15-Dec-17,25196161-16521543,-2977.44,Decoy Farm,Care Establishment,4 - Operations - Providers services,LDP E Cambs Special Needs,Residential Independent Sector
Cambridgeshire County Council,15-Dec-17,25196185-16521567,-2977.44,Decoy Farm,Care Establishment,4 - Operations - Providers services,LDP E Cambs Special Needs,Residential Independent Sector
Cambridgeshire County Council,21-Dec-17,25247489-16552638,-2977.44,Decoy Farm,Care Establishment,4 - Operations - Providers services,LDP E Cambs Special Needs,Residential Independent Sector
Cambridgeshire County Council,21-Dec-17,25251192-16552789,-2977.44,Decoy Farm,Care Establishment,4 - Operations - Providers services,LDP E Cambs Special Needs,Residential Independent Sector
Cambridgeshire County Council,21-Dec-17,25251218-16552798,-2977.44,Decoy Farm,Care Establishment,4 - Operations - Providers services,LDP E Cambs Special Needs,Residential Independent Sector
Cambridgeshire County Council,21-Dec-17,25251222-16552802,-2977.44,Decoy Farm,Care Establishment,4 - Operations - Providers services,LDP E Cambs Special Needs,Residential Independent Sector
Cambridgeshire County Council,21-Dec-17,25251223-16552803,-2977.44,Decoy Farm,Care Establishment,4 - Operations - Providers services,LDP E Cambs Special Needs,Residential Independent Sector
Cambridgeshire County Council,21-Dec-17,25251250-16552830,-2977.44,Decoy Farm,Care Establishment,4 - Operations - Providers services,LDP E Cambs Special Needs,Residential Independent Sector
Cambridgeshire County Council,21-Dec-17,25251259-16552839,-2977.44,Decoy Farm,Care Establishment,4 - Operations - Providers services,LDP E Cambs Special Needs,Residential Independent Sector
Cambridgeshire County Council,21-Dec-17,25251278-16552858,-2977.44,Decoy Farm,Care Establishment,4 - Operations - Providers services,LDP E Cambs Special Needs,Residential Independent Sector
Cambridgeshire County Council,21-Dec-17,25247522-16552671,-2977.44,Decoy Farm,Care Establishment,4 - Operations - Providers services,LDP E Cambs Special Needs,Residential Independent Sector
Cambridgeshire County Council,21-Dec-17,25248185-16552686,-2977.44,Decoy Farm,Care Establishment,4 - Operations - Providers services,LDP E Cambs Special Needs,Residential Independent Sector
Cambridgeshire County Council,21-Dec-17,25248214-16552715,-2977.44,Decoy Farm,Care Establishment,4 - Operations - Providers services,LDP E Cambs Special Needs,Residential Independent Sector
Cambridgeshire County Council,28-Dec-17,25270714-16573801,-2977.44,Decoy Farm,Care Establishment,4 - Operations - Providers services,LDP E Cambs Special Needs,Residential Independent Sector
Cambridgeshire County Council,28-Dec-17,25270715-16573802,-2977.44,Decoy Farm,Care Establishment,4 - Operations - Providers services,LDP E Cambs Special Needs,Residential Independent Sector
Cambridgeshire County Council,28-Dec-17,25270736-16573823,-2977.44,Decoy Farm,Care Establishment,4 - Operations - Providers services,LDP E Cambs Special Needs,Residential Independent Sector
Cambridgeshire County Council,28-Dec-17,25270738-16573825,-2977.44,Decoy Farm,Care Establishment,4 - Operations - Providers services,LDP E Cambs Special Needs,Residential Independent Sector
Cambridgeshire County Council,28-Dec-17,25270739-16573826,-2977.44,Decoy Farm,Care Establishment,4 - Operations - Providers services,LDP E Cambs Special Needs,Residential Independent Sector
Cambridgeshire County Council,28-Dec-17,25265682-16573611,-2977.44,Decoy Farm,Care Establishment,4 - Operations - Providers services,LDP E Cambs Special Needs,Residential Independent Sector
Cambridgeshire County Council,28-Dec-17,25265767-16573628,-2977.44,Decoy Farm,Care Establishment,4 - Operations - Providers services,LDP E Cambs Special Needs,Residential Independent Sector
Cambridgeshire County Council,28-Dec-17,25265684-16573629,-2977.44,Decoy Farm,Care Establishment,4 - Operations - Providers services,LDP E Cambs Special Needs,Residential Independent Sector
Cambridgeshire County Council,28-Dec-17,25265691-16573636,-2977.44,Decoy Farm,Care Establishment,4 - Operations - Providers services,LDP E Cambs Special Needs,Residential Independent Sector
Cambridgeshire County Council,28-Dec-17,25265717-16573662,-2977.44,Decoy Farm,Care Establishment,4 - Operations - Providers services,LDP E Cambs Special Needs,Residential Independent Sector
Cambridgeshire County Council,28-Dec-17,25265743-16573688,-2977.44,Decoy Farm,Care Establishment,4 - Operations - Providers services,LDP E Cambs Special Needs,Residential Independent Sector
Cambridgeshire County Council,28-Dec-17,25265745-16573690,-2977.44,Decoy Farm,Care Establishment,4 - Operations - Providers services,LDP E Cambs Special Needs,Residential Independent Sector
Cambridgeshire County Council,28-Dec-17,25265663-16573700,-2977.44,Decoy Farm,Care Establishment,4 - Operations - Providers services,LDP E Cambs Special Needs,Residential Independent Sector
Cambridgeshire County Council,28-Dec-17,25267820-16573706,-2977.44,Decoy Farm,Care Establishment,4 - Operations - Providers services,LDP E Cambs Special Needs,Residential Independent Sector
Cambridgeshire County Council,28-Dec-17,25267824-16573710,-2977.44,Decoy Farm,Care Establishment,4 - Operations - Providers services,LDP E Cambs Special Needs,Residential Independent Sector
Cambridgeshire County Council,28-Dec-17,25267826-16573712,-2977.44,Decoy Farm,Care Establishment,4 - Operations - Providers services,LDP E Cambs Special Needs,Residential Independent Sector
Cambridgeshire County Council,28-Dec-17,25267837-16573723,-2977.44,Decoy Farm,Care Establishment,4 - Operations - Providers services,LDP E Cambs Special Needs,Residential Independent Sector
Cambridgeshire County Council,28-Dec-17,25267880-16573766,-2977.44,Decoy Farm,Care Establishment,4 - Operations - Providers services,LDP E Cambs Special Needs,Residential Independent Sector
Cambridgeshire County Council,15-Dec-17,24993515-16521335,-2977.44,Decoy Farm,Care Establishment,4 - Operations - Providers services,LDP E Cambs Special Needs,Residential Independent Sector
Cambridgeshire County Council,15-Dec-17,25194330-16521424,-2977.44,Decoy Farm,Care Establishment,4 - Operations - Providers services,LDP E Cambs Special Needs,Residential Independent Sector
Cambridgeshire County Council,15-Dec-17,25194272-16521438,-2977.44,Decoy Farm,Care Establishment,4 - Operations - Providers services,LDP E Cambs Special Needs,Residential Independent Sector
Cambridgeshire County Council,15-Dec-17,25194274-16521440,-2977.44,Decoy Farm,Care Establishment,4 - Operations - Providers services,LDP E Cambs Special Needs,Residential Independent Sector
Cambridgeshire County Council,15-Dec-17,25194302-16521468,-2977.44,Decoy Farm,Care Establishment,4 - Operations - Providers services,LDP E Cambs Special Needs,Residential Independent Sector
Cambridgeshire County Council,15-Dec-17,25194246-16521477,-2977.44,Decoy Farm,Care Establishment,4 - Operations - Providers services,LDP E Cambs Special Needs,Residential Independent Sector
Cambridgeshire County Council,15-Dec-17,24996892-16521357,-2977.44,Decoy Farm,Care Establishment,4 - Operations - Providers services,LDP E Cambs Special Needs,Residential Independent Sector
Cambridgeshire County Council,15-Dec-17,24993510-16521361,-2977.44,Decoy Farm,Care Establishment,4 - Operations - Providers services,LDP E Cambs Special Needs,Residential Independent Sector
Cambridgeshire County Council,15-Dec-17,25194313-16521407,-2977.44,Decoy Farm,Care Establishment,4 - Operations - Providers services,LDP E Cambs Special Needs,Residential Independent Sector
Cambridgeshire County Council,15-Dec-17,25194318-16521412,-2977.44,Decoy Farm,Care Establishment,4 - Operations - Providers services,LDP E Cambs Special Needs,Residential Independent Sector
Cambridgeshire County Council,15-Dec-17,24980603-16521171,-2977.44,Decoy Farm,Care Establishment,4 - Operations - Providers services,LDP E Cambs Special Needs,Residential Independent Sector
Cambridgeshire County Council,15-Dec-17,24980562-16521203,-2977.44,Decoy Farm,Care Establishment,4 - Operations - Providers services,LDP E Cambs Special Needs,Residential Independent Sector
Cambridgeshire County Council,15-Dec-17,24951527-16521238,-2977.44,Decoy Farm,Care Establishment,4 - Operations - Providers services,LDP E Cambs Special Needs,Residential Independent Sector
Cambridgeshire County Council,15-Dec-17,24951543-16521254,-2977.44,Decoy Farm,Care Establishment,4 - Operations - Providers services,LDP E Cambs Special Needs,Residential Independent Sector
Cambridgeshire County Council,15-Dec-17,24951547-16521258,-2977.44,Decoy Farm,Care Establishment,4 - Operations - Providers services,LDP E Cambs Special Needs,Residential Independent Sector
Cambridgeshire County Council,15-Dec-17,24986531-16521286,-2977.44,Decoy Farm,Care Establishment,4 - Operations - Providers services,LDP E Cambs Special Needs,Residential Independent Sector
Cambridgeshire County Council,15-Dec-17,24986538-16521293,-2977.44,Decoy Farm,Care Establishment,4 - Operations - Providers services,LDP E Cambs Special Needs,Residential Independent Sector
Cambridgeshire County Council,15-Dec-17,25194254-16521485,-2977.44,Decoy Farm,Care Establishment,4 - Operations - Providers services,LDP E Cambs Special Needs,Residential Independent Sector
Cambridgeshire County Council,15-Dec-17,25196234-16521492,-2977.44,Decoy Farm,Care Establishment,4 - Operations - Providers services,LDP E Cambs Special Needs,Residential Independent Sector
Cambridgeshire County Council,15-Dec-17,25196264-16521522,-2977.44,Decoy Farm,Care Establishment,4 - Operations - Providers services,LDP E Cambs Special Needs,Residential Independent Sector
Cambridgeshire County Council,15-Dec-17,25196270-16521528,-2977.44,Decoy Farm,Care Establishment,4 - Operations - Providers services,LDP E Cambs Special Needs,Residential Independent Sector
Cambridgeshire County Council,15-Dec-17,25196273-16521531,-2977.44,Decoy Farm,Care Establishment,4 - Operations - Providers services,LDP E Cambs Special Needs,Residential Independent Sector
Cambridgeshire County Council,15-Dec-17,25196171-16521553,-2977.44,Decoy Farm,Care Establishment,4 - Operations - Providers services,LDP E Cambs Special Needs,Residential Independent Sector
Cambridgeshire County Council,15-Dec-17,25196192-16521574,-2977.44,Decoy Farm,Care Establishment,4 - Operations - Providers services,LDP E Cambs Special Needs,Residential Independent Sector
Cambridgeshire County Council,15-Dec-17,25196214-16521596,-2977.44,Decoy Farm,Care Establishment,4 - Operations - Providers services,LDP E Cambs Special Needs,Residential Independent Sector
Cambridgeshire County Council,15-Dec-17,25196226-16521608,-2977.44,Decoy Farm,Care Establishment,4 - Operations - Providers services,LDP E Cambs Special Needs,Residential Independent Sector
Cambridgeshire County Council,15-Dec-17,25201310-16521624,-2977.44,Decoy Farm,Care Establishment,4 - Operations - Providers services,LDP E Cambs Special Needs,Residential Independent Sector
Cambridgeshire County Council,15-Dec-17,25201314-16521628,-2977.44,Decoy Farm,Care Establishment,4 - Operations - Providers services,LDP E Cambs Special Needs,Residential Independent Sector
Cambridgeshire County Council,21-Dec-17,25243426-16552629,-2977.44,Decoy Farm,Care Establishment,4 - Operations - Providers services,LDP E Cambs Special Needs,Residential Independent Sector
Cambridgeshire County Council,21-Dec-17,25243428-16552631,-2977.44,Decoy Farm,Care Establishment,4 - Operations - Providers services,LDP E Cambs Special Needs,Residential Independent Sector
Cambridgeshire County Council,21-Dec-17,25248139-16552734,-2977.44,Decoy Farm,Care Establishment,4 - Operations - Providers services,LDP E Cambs Special Needs,Residential Independent Sector
Cambridgeshire County Council,21-Dec-17,25248145-16552740,-2977.44,Decoy Farm,Care Establishment,4 - Operations - Providers services,LDP E Cambs Special Needs,Residential Independent Sector
Cambridgeshire County Council,21-Dec-17,25248156-16552751,-2977.44,Decoy Farm,Care Establishment,4 - Operations - Providers services,LDP E Cambs Special Needs,Residential Independent Sector
Cambridgeshire County Council,21-Dec-17,25251210-16552790,-2977.44,Decoy Farm,Care Establishment,4 - Operations - Providers services,LDP E Cambs Special Needs,Residential Independent Sector
Cambridgeshire County Council,21-Dec-17,25251239-16552819,-2977.44,Decoy Farm,Care Establishment,4 - Operations - Providers services,LDP E Cambs Special Needs,Residential Independent Sector
Cambridgeshire County Council,21-Dec-17,25251245-16552825,-2977.44,Decoy Farm,Care Establishment,4 - Operations - Providers services,LDP E Cambs Special Needs,Residential Independent Sector
Cambridgeshire County Council,21-Dec-17,25248192-16552693,-2977.44,Decoy Farm,Care Establishment,4 - Operations - Providers services,LDP E Cambs Special Needs,Residential Independent Sector
Cambridgeshire County Council,21-Dec-17,25248210-16552711,-2977.44,Decoy Farm,Care Establishment,4 - Operations - Providers services,LDP E Cambs Special Needs,Residential Independent Sector
Cambridgeshire County Council,21-Dec-17,25248211-16552712,-2977.44,Decoy Farm,Care Establishment,4 - Operations - Providers services,LDP E Cambs Special Needs,Residential Independent Sector
Cambridgeshire County Council,21-Dec-17,25253291-16552890,-2977.44,Decoy Farm,Care Establishment,4 - Operations - Providers services,LDP E Cambs Special Needs,Residential Independent Sector
Cambridgeshire County Council,21-Dec-17,25253292-16552891,-2977.44,Decoy Farm,Care Establishment,4 - Operations - Providers services,LDP E Cambs Special Needs,Residential Independent Sector
Cambridgeshire County Council,28-Dec-17,25270716-16573803,-2977.44,Decoy Farm,Care Establishment,4 - Operations - Providers services,LDP E Cambs Special Needs,Residential Independent Sector
Cambridgeshire County Council,28-Dec-17,25270701-16573845,-2977.44,Decoy Farm,Care Establishment,4 - Operations - Providers services,LDP E Cambs Special Needs,Residential Independent Sector
Cambridgeshire County Council,28-Dec-17,25265673-16573602,-2977.44,Decoy Farm,Care Establishment,4 - Operations - Providers services,LDP E Cambs Special Needs,Residential Independent Sector
Cambridgeshire County Council,28-Dec-17,25265678-16573607,-2977.44,Decoy Farm,Care Establishment,4 - Operations - Providers services,LDP E Cambs Special Needs,Residential Independent Sector
Cambridgeshire County Council,28-Dec-17,25265680-16573609,-2977.44,Decoy Farm,Care Establishment,4 - Operations - Providers services,LDP E Cambs Special Needs,Residential Independent Sector
Cambridgeshire County Council,28-Dec-17,25265756-16573617,-2977.44,Decoy Farm,Care Establishment,4 - Operations - Providers services,LDP E Cambs Special Needs,Residential Independent Sector
Cambridgeshire County Council,28-Dec-17,25265760-16573621,-2977.44,Decoy Farm,Care Establishment,4 - Operations - Providers services,LDP E Cambs Special Needs,Residential Independent Sector
Cambridgeshire County Council,28-Dec-17,25265689-16573634,-2977.44,Decoy Farm,Care Establishment,4 - Operations - Providers services,LDP E Cambs Special Needs,Residential Independent Sector
Cambridgeshire County Council,28-Dec-17,25265707-16573652,-2977.44,Decoy Farm,Care Establishment,4 - Operations - Providers services,LDP E Cambs Special Needs,Residential Independent Sector
Cambridgeshire County Council,28-Dec-17,25265722-16573667,-2977.44,Decoy Farm,Care Establishment,4 - Operations - Providers services,LDP E Cambs Special Needs,Residential Independent Sector
Cambridgeshire County Council,28-Dec-17,25265727-16573672,-2977.44,Decoy Farm,Care Establishment,4 - Operations - Providers services,LDP E Cambs Special Needs,Residential Independent Sector
Cambridgeshire County Council,28-Dec-17,25265660-16573697,-2977.44,Decoy Farm,Care Establishment,4 - Operations - Providers services,LDP E Cambs Special Needs,Residential Independent Sector
Cambridgeshire County Council,28-Dec-17,25267838-16573724,-2977.44,Decoy Farm,Care Establishment,4 - Operations - Providers services,LDP E Cambs Special Needs,Residential Independent Sector
Cambridgeshire County Council,28-Dec-17,25267853-16573739,-2977.44,Decoy Farm,Care Establishment,4 - Operations - Providers services,LDP E Cambs Special Needs,Residential Independent Sector
Cambridgeshire County Council,28-Dec-17,25267863-16573749,-2977.44,Decoy Farm,Care Establishment,4 - Operations - Providers services,LDP E Cambs Special Needs,Residential Independent Sector
Cambridgeshire County Council,15-Dec-17,24986541-16521295,-2977.44,Decoy Farm,Care Establishment,4 - Operations - Providers services,LDP E Cambs Special Needs,Residential Independent Sector
Cambridgeshire County Council,15-Dec-17,25194328-16521422,-2977.44,Decoy Farm,Care Establishment,4 - Operations - Providers services,LDP E Cambs Special Needs,Residential Independent Sector
Cambridgeshire County Council,15-Dec-17,25194287-16521453,-2977.44,Decoy Farm,Care Establishment,4 - Operations - Providers services,LDP E Cambs Special Needs,Residential Independent Sector
Cambridgeshire County Council,15-Dec-17,25194305-16521471,-2977.44,Decoy Farm,Care Establishment,4 - Operations - Providers services,LDP E Cambs Special Needs,Residential Independent Sector
Cambridgeshire County Council,15-Dec-17,25194307-16521473,-2977.44,Decoy Farm,Care Establishment,4 - Operations - Providers services,LDP E Cambs Special Needs,Residential Independent Sector
Cambridgeshire County Council,15-Dec-17,25194244-16521475,-2977.44,Decoy Farm,Care Establishment,4 - Operations - Providers services,LDP E Cambs Special Needs,Residential Independent Sector
Cambridgeshire County Council,15-Dec-17,24996901-16521371,-2977.44,Decoy Farm,Care Establishment,4 - Operations - Providers services,LDP E Cambs Special Needs,Residential Independent Sector
Cambridgeshire County Council,15-Dec-17,25194255-16521385,-2977.44,Decoy Farm,Care Establishment,4 - Operations - Providers services,LDP E Cambs Special Needs,Residential Independent Sector
Cambridgeshire County Council,15-Dec-17,25194316-16521410,-2977.44,Decoy Farm,Care Establishment,4 - Operations - Providers services,LDP E Cambs Special Needs,Residential Independent Sector
Cambridgeshire County Council,15-Dec-17,24980530-16521138,-2977.44,Decoy Farm,Care Establishment,4 - Operations - Providers services,LDP E Cambs Special Needs,Residential Independent Sector
Cambridgeshire County Council,15-Dec-17,24980535-16521143,-2977.44,Decoy Farm,Care Establishment,4 - Operations - Providers services,LDP E Cambs Special Needs,Residential Independent Sector
Cambridgeshire County Council,15-Dec-17,24980590-16521159,-2977.44,Decoy Farm,Care Establishment,4 - Operations - Providers services,LDP E Cambs Special Needs,Residential Independent Sector
Cambridgeshire County Council,15-Dec-17,24980597-16521165,-2977.44,Decoy Farm,Care Establishment,4 - Operations - Providers services,LDP E Cambs Special Needs,Residential Independent Sector
Cambridgeshire County Council,15-Dec-17,24980609-16521177,-2977.44,Decoy Farm,Care Establishment,4 - Operations - Providers services,LDP E Cambs Special Needs,Residential Independent Sector
Cambridgeshire County Council,15-Dec-17,24980539-16521182,-2977.44,Decoy Farm,Care Establishment,4 - Operations - Providers services,LDP E Cambs Special Needs,Residential Independent Sector
Cambridgeshire County Council,15-Dec-17,24980551-16521192,-2977.44,Decoy Farm,Care Establishment,4 - Operations - Providers services,LDP E Cambs Special Needs,Residential Independent Sector
Cambridgeshire County Council,15-Dec-17,24980560-16521201,-2977.44,Decoy Farm,Care Establishment,4 - Operations - Providers services,LDP E Cambs Special Needs,Residential Independent Sector
Cambridgeshire County Council,15-Dec-17,24980563-16521204,-2977.44,Decoy Farm,Care Establishment,4 - Operations - Providers services,LDP E Cambs Special Needs,Residential Independent Sector
Cambridgeshire County Council,15-Dec-17,24980566-16521207,-2977.44,Decoy Farm,Care Establishment,4 - Operations - Providers services,LDP E Cambs Special Needs,Residential Independent Sector
Cambridgeshire County Council,15-Dec-17,24951533-16521244,-2977.44,Decoy Farm,Care Establishment,4 - Operations - Providers services,LDP E Cambs Special Needs,Residential Independent Sector
Cambridgeshire County Council,15-Dec-17,24951553-16521261,-2977.44,Decoy Farm,Care Establishment,4 - Operations - Providers services,LDP E Cambs Special Needs,Residential Independent Sector
Cambridgeshire County Council,15-Dec-17,24951555-16521263,-2977.44,Decoy Farm,Care Establishment,4 - Operations - Providers services,LDP E Cambs Special Needs,Residential Independent Sector
Cambridgeshire County Council,15-Dec-17,24986513-16521270,-2977.44,Decoy Farm,Care Establishment,4 - Operations - Providers services,LDP E Cambs Special Needs,Residential Independent Sector
Cambridgeshire County Council,15-Dec-17,24986520-16521275,-2977.44,Decoy Farm,Care Establishment,4 - Operations - Providers services,LDP E Cambs Special Needs,Residential Independent Sector
Cambridgeshire County Council,15-Dec-17,25194250-16521481,-2977.44,Decoy Farm,Care Establishment,4 - Operations - Providers services,LDP E Cambs Special Needs,Residential Independent Sector
Cambridgeshire County Council,15-Dec-17,25194253-16521484,-2977.44,Decoy Farm,Care Establishment,4 - Operations - Providers services,LDP E Cambs Special Needs,Residential Independent Sector
Cambridgeshire County Council,15-Dec-17,25196229-16521487,-2977.44,Decoy Farm,Care Establishment,4 - Operations - Providers services,LDP E Cambs Special Needs,Residential Independent Sector
Cambridgeshire County Council,15-Dec-17,25196232-16521490,-2977.44,Decoy Farm,Care Establishment,4 - Operations - Providers services,LDP E Cambs Special Needs,Residential Independent Sector
Cambridgeshire County Council,15-Dec-17,25196177-16521559,-2977.44,Decoy Farm,Care Establishment,4 - Operations - Providers services,LDP E Cambs Special Needs,Residential Independent Sector
Cambridgeshire County Council,15-Dec-17,25196179-16521561,-2977.44,Decoy Farm,Care Establishment,4 - Operations - Providers services,LDP E Cambs Special Needs,Residential Independent Sector
Cambridgeshire County Council,15-Dec-17,25196184-16521566,-2977.44,Decoy Farm,Care Establishment,4 - Operations - Providers services,LDP E Cambs Special Needs,Residential Independent Sector
Cambridgeshire County Council,15-Dec-17,25196210-16521592,-2977.44,Decoy Farm,Care Establishment,4 - Operations - Providers services,LDP E Cambs Special Needs,Residential Independent Sector
Cambridgeshire County Council,15-Dec-17,25201325-16521639,-2977.44,Decoy Farm,Care Establishment,4 - Operations - Providers services,LDP E Cambs Special Needs,Residential Independent Sector
Cambridgeshire County Council,15-Dec-17,25201328-16521642,-2977.44,Decoy Farm,Care Establishment,4 - Operations - Providers services,LDP E Cambs Special Needs,Residential Independent Sector
Cambridgeshire County Council,21-Dec-17,25247497-16552646,-2977.44,Decoy Farm,Care Establishment,4 - Operations - Providers services,LDP E Cambs Special Needs,Residential Independent Sector
Cambridgeshire County Council,21-Dec-17,25247509-16552658,-2977.44,Decoy Farm,Care Establishment,4 - Operations - Providers services,LDP E Cambs Special Needs,Residential Independent Sector
Cambridgeshire County Council,21-Dec-17,25248230-16552731,-2977.44,Decoy Farm,Care Establishment,4 - Operations - Providers services,LDP E Cambs Special Needs,Residential Independent Sector
Cambridgeshire County Council,21-Dec-17,25248172-16552767,-2977.44,Decoy Farm,Care Establishment,4 - Operations - Providers services,LDP E Cambs Special Needs,Residential Independent Sector
Cambridgeshire County Council,21-Dec-17,25251187-16552784,-2977.44,Decoy Farm,Care Establishment,4 - Operations - Providers services,LDP E Cambs Special Needs,Residential Independent Sector
Cambridgeshire County Council,21-Dec-17,25251221-16552801,-2977.44,Decoy Farm,Care Establishment,4 - Operations - Providers services,LDP E Cambs Special Needs,Residential Independent Sector
Cambridgeshire County Council,21-Dec-17,25251240-16552820,-2977.44,Decoy Farm,Care Establishment,4 - Operations - Providers services,LDP E Cambs Special Needs,Residential Independent Sector
Cambridgeshire County Council,21-Dec-17,25251261-16552841,-2977.44,Decoy Farm,Care Establishment,4 - Operations - Providers services,LDP E Cambs Special Needs,Residential Independent Sector
Cambridgeshire County Council,21-Dec-17,25251281-16552861,-2977.44,Decoy Farm,Care Establishment,4 - Operations - Providers services,LDP E Cambs Special Needs,Residential Independent Sector
Cambridgeshire County Council,21-Dec-17,25251200-16552871,-2977.44,Decoy Farm,Care Establishment,4 - Operations - Providers services,LDP E Cambs Special Needs,Residential Independent Sector
Cambridgeshire County Council,21-Dec-17,25248175-16552676,-2977.44,Decoy Farm,Care Establishment,4 - Operations - Providers services,LDP E Cambs Special Needs,Residential Independent Sector
Cambridgeshire County Council,21-Dec-17,25248190-16552691,-2977.44,Decoy Farm,Care Establishment,4 - Operations - Providers services,LDP E Cambs Special Needs,Residential Independent Sector
Cambridgeshire County Council,21-Dec-17,25248225-16552726,-2977.44,Decoy Farm,Care Establishment,4 - Operations - Providers services,LDP E Cambs Special Needs,Residential Independent Sector
Cambridgeshire County Council,28-Dec-17,25270718-16573805,-2977.44,Decoy Farm,Care Establishment,4 - Operations - Providers services,LDP E Cambs Special Needs,Residential Independent Sector
Cambridgeshire County Council,28-Dec-17,25270703-16573847,-2977.44,Decoy Farm,Care Establishment,4 - Operations - Providers services,LDP E Cambs Special Needs,Residential Independent Sector
Cambridgeshire County Council,28-Dec-17,25270746-16573855,-2977.44,Decoy Farm,Care Establishment,4 - Operations - Providers services,LDP E Cambs Special Needs,Residential Independent Sector
Cambridgeshire County Council,28-Dec-17,25265747-16573692,-2977.44,Decoy Farm,Care Establishment,4 - Operations - Providers services,LDP E Cambs Special Needs,Residential Independent Sector
Cambridgeshire County Council,28-Dec-17,25267839-16573725,-2977.44,Decoy Farm,Care Establishment,4 - Operations - Providers services,LDP E Cambs Special Needs,Residential Independent Sector
Cambridgeshire County Council,28-Dec-17,25267875-16573761,-2977.44,Decoy Farm,Care Establishment,4 - Operations - Providers services,LDP E Cambs Special Needs,Residential Independent Sector
Cambridgeshire County Council,28-Dec-17,25267804-16573775,-2977.44,Decoy Farm,Care Establishment,4 - Operations - Providers services,LDP E Cambs Special Needs,Residential Independent Sector
Cambridgeshire County Council,15-Dec-17,24987521-16521311,-2977.44,Decoy Farm,Care Establishment,4 - Operations - Providers services,LDP E Cambs Special Needs,Residential Independent Sector
Cambridgeshire County Council,15-Dec-17,24993522-16521341,-2977.44,Decoy Farm,Care Establishment,4 - Operations - Providers services,LDP E Cambs Special Needs,Residential Independent Sector
Cambridgeshire County Council,15-Dec-17,24996882-16521348,-2977.44,Decoy Farm,Care Establishment,4 - Operations - Providers services,LDP E Cambs Special Needs,Residential Independent Sector
Cambridgeshire County Council,15-Dec-17,25194334-16521428,-2977.44,Decoy Farm,Care Establishment,4 - Operations - Providers services,LDP E Cambs Special Needs,Residential Independent Sector
Cambridgeshire County Council,15-Dec-17,25194339-16521433,-2977.44,Decoy Farm,Care Establishment,4 - Operations - Providers services,LDP E Cambs Special Needs,Residential Independent Sector
Cambridgeshire County Council,15-Dec-17,25194288-16521454,-2977.44,Decoy Farm,Care Establishment,4 - Operations - Providers services,LDP E Cambs Special Needs,Residential Independent Sector
Cambridgeshire County Council,15-Dec-17,25194293-16521459,-2977.44,Decoy Farm,Care Establishment,4 - Operations - Providers services,LDP E Cambs Special Needs,Residential Independent Sector
Cambridgeshire County Council,15-Dec-17,25194303-16521469,-2977.44,Decoy Farm,Care Establishment,4 - Operations - Providers services,LDP E Cambs Special Needs,Residential Independent Sector
Cambridgeshire County Council,15-Dec-17,24996899-16521369,-2977.44,Decoy Farm,Care Establishment,4 - Operations - Providers services,LDP E Cambs Special Needs,Residential Independent Sector
Cambridgeshire County Council,15-Dec-17,24996900-16521370,-2977.44,Decoy Farm,Care Establishment,4 - Operations - Providers services,LDP E Cambs Special Needs,Residential Independent Sector
Cambridgeshire County Council,15-Dec-17,24980528-16521136,-2977.44,Decoy Farm,Care Establishment,4 - Operations - Providers services,LDP E Cambs Special Needs,Residential Independent Sector
Cambridgeshire County Council,15-Dec-17,24980529-16521137,-2977.44,Decoy Farm,Care Establishment,4 - Operations - Providers services,LDP E Cambs Special Needs,Residential Independent Sector
Cambridgeshire County Council,15-Dec-17,24980577-16521147,-2977.44,Decoy Farm,Care Establishment,4 - Operations - Providers services,LDP E Cambs Special Needs,Residential Independent Sector
Cambridgeshire County Council,15-Dec-17,24980591-16521160,-2977.44,Decoy Farm,Care Establishment,4 - Operations - Providers services,LDP E Cambs Special Needs,Residential Independent Sector
Cambridgeshire County Council,15-Dec-17,24980596-16521164,-2977.44,Decoy Farm,Care Establishment,4 - Operations - Providers services,LDP E Cambs Special Needs,Residential Independent Sector
Cambridgeshire County Council,15-Dec-17,24980602-16521170,-2977.44,Decoy Farm,Care Establishment,4 - Operations - Providers services,LDP E Cambs Special Needs,Residential Independent Sector
Cambridgeshire County Council,15-Dec-17,24980547-16521190,-2977.44,Decoy Farm,Care Establishment,4 - Operations - Providers services,LDP E Cambs Special Needs,Residential Independent Sector
Cambridgeshire County Council,15-Dec-17,24980552-16521193,-2977.44,Decoy Farm,Care Establishment,4 - Operations - Providers services,LDP E Cambs Special Needs,Residential Independent Sector
Cambridgeshire County Council,15-Dec-17,24980554-16521195,-2977.44,Decoy Farm,Care Establishment,4 - Operations - Providers services,LDP E Cambs Special Needs,Residential Independent Sector
Cambridgeshire County Council,15-Dec-17,24980555-16521196,-2977.44,Decoy Farm,Care Establishment,4 - Operations - Providers services,LDP E Cambs Special Needs,Residential Independent Sector
Cambridgeshire County Council,15-Dec-17,24951531-16521242,-2977.44,Decoy Farm,Care Establishment,4 - Operations - Providers services,LDP E Cambs Special Needs,Residential Independent Sector
Cambridgeshire County Council,15-Dec-17,24951540-16521251,-2977.44,Decoy Farm,Care Establishment,4 - Operations - Providers services,LDP E Cambs Special Needs,Residential Independent Sector
Cambridgeshire County Council,15-Dec-17,24951542-16521253,-2977.44,Decoy Farm,Care Establishment,4 - Operations - Providers services,LDP E Cambs Special Needs,Residential Independent Sector
Cambridgeshire County Council,15-Dec-17,24951546-16521257,-2977.44,Decoy Farm,Care Establishment,4 - Operations - Providers services,LDP E Cambs Special Needs,Residential Independent Sector
Cambridgeshire County Council,15-Dec-17,24986537-16521292,-2977.44,Decoy Farm,Care Establishment,4 - Operations - Providers services,LDP E Cambs Special Needs,Residential Independent Sector
Cambridgeshire County Council,15-Dec-17,25196237-16521495,-2977.44,Decoy Farm,Care Establishment,4 - Operations - Providers services,LDP E Cambs Special Needs,Residential Independent Sector
Cambridgeshire County Council,15-Dec-17,25196269-16521527,-2977.44,Decoy Farm,Care Establishment,4 - Operations - Providers services,LDP E Cambs Special Needs,Residential Independent Sector
Cambridgeshire County Council,15-Dec-17,25196277-16521535,-2977.44,Decoy Farm,Care Establishment,4 - Operations - Providers services,LDP E Cambs Special Needs,Residential Independent Sector
Cambridgeshire County Council,15-Dec-17,25196280-16521538,-2977.44,Decoy Farm,Care Establishment,4 - Operations - Providers services,LDP E Cambs Special Needs,Residential Independent Sector
Cambridgeshire County Council,15-Dec-17,25196170-16521552,-2977.44,Decoy Farm,Care Establishment,4 - Operations - Providers services,LDP E Cambs Special Needs,Residential Independent Sector
Cambridgeshire County Council,15-Dec-17,25196173-16521555,-2977.44,Decoy Farm,Care Establishment,4 - Operations - Providers services,LDP E Cambs Special Needs,Residential Independent Sector
Cambridgeshire County Council,15-Dec-17,25196190-16521572,-2977.44,Decoy Farm,Care Establishment,4 - Operations - Providers services,LDP E Cambs Special Needs,Residential Independent Sector
Cambridgeshire County Council,15-Dec-17,25196191-16521573,-2977.44,Decoy Farm,Care Establishment,4 - Operations - Providers services,LDP E Cambs Special Needs,Residential Independent Sector
Cambridgeshire County Council,15-Dec-17,25196194-16521576,-2977.44,Decoy Farm,Care Establishment,4 - Operations - Providers services,LDP E Cambs Special Needs,Residential Independent Sector
Cambridgeshire County Council,15-Dec-17,25196224-16521606,-2977.44,Decoy Farm,Care Establishment,4 - Operations - Providers services,LDP E Cambs Special Needs,Residential Independent Sector
Cambridgeshire County Council,21-Dec-17,25247491-16552640,-2977.44,Decoy Farm,Care Establishment,4 - Operations - Providers services,LDP E Cambs Special Needs,Residential Independent Sector
Cambridgeshire County Council,21-Dec-17,25247496-16552645,-2977.44,Decoy Farm,Care Establishment,4 - Operations - Providers services,LDP E Cambs Special Needs,Residential Independent Sector
Cambridgeshire County Council,21-Dec-17,25247499-16552648,-2977.44,Decoy Farm,Care Establishment,4 - Operations - Providers services,LDP E Cambs Special Needs,Residential Independent Sector
Cambridgeshire County Council,21-Dec-17,25247506-16552655,-2977.44,Decoy Farm,Care Establishment,4 - Operations - Providers services,LDP E Cambs Special Needs,Residential Independent Sector
Cambridgeshire County Council,21-Dec-17,25248155-16552750,-2977.44,Decoy Farm,Care Establishment,4 - Operations - Providers services,LDP E Cambs Special Needs,Residential Independent Sector
Cambridgeshire County Council,21-Dec-17,25248160-16552755,-2977.44,Decoy Farm,Care Establishment,4 - Operations - Providers services,LDP E Cambs Special Needs,Residential Independent Sector
Cambridgeshire County Council,21-Dec-17,25248162-16552757,-2977.44,Decoy Farm,Care Establishment,4 - Operations - Providers services,LDP E Cambs Special Needs,Residential Independent Sector
Cambridgeshire County Council,21-Dec-17,25251228-16552808,-2977.44,Decoy Farm,Care Establishment,4 - Operations - Providers services,LDP E Cambs Special Needs,Residential Independent Sector
Cambridgeshire County Council,21-Dec-17,25251242-16552822,-2977.44,Decoy Farm,Care Establishment,4 - Operations - Providers services,LDP E Cambs Special Needs,Residential Independent Sector
Cambridgeshire County Council,21-Dec-17,25251198-16552869,-2977.44,Decoy Farm,Care Establishment,4 - Operations - Providers services,LDP E Cambs Special Needs,Residential Independent Sector
Cambridgeshire County Council,21-Dec-17,25248184-16552685,-2977.44,Decoy Farm,Care Establishment,4 - Operations - Providers services,LDP E Cambs Special Needs,Residential Independent Sector
Cambridgeshire County Council,21-Dec-17,25248203-16552704,-2977.44,Decoy Farm,Care Establishment,4 - Operations - Providers services,LDP E Cambs Special Needs,Residential Independent Sector
Cambridgeshire County Council,28-Dec-17,25270713-16573800,-2977.44,Decoy Farm,Care Establishment,4 - Operations - Providers services,LDP E Cambs Special Needs,Residential Independent Sector
Cambridgeshire County Council,28-Dec-17,25270733-16573820,-2977.44,Decoy Farm,Care Establishment,4 - Operations - Providers services,LDP E Cambs Special Needs,Residential Independent Sector
Cambridgeshire County Council,28-Dec-17,25270735-16573822,-2977.44,Decoy Farm,Care Establishment,4 - Operations - Providers services,LDP E Cambs Special Needs,Residential Independent Sector
Cambridgeshire County Council,28-Dec-17,25270743-16573830,-2977.44,Decoy Farm,Care Establishment,4 - Operations - Providers services,LDP E Cambs Special Needs,Residential Independent Sector
Cambridgeshire County Council,28-Dec-17,25270688-16573832,-2977.44,Decoy Farm,Care Establishment,4 - Operations - Providers services,LDP E Cambs Special Needs,Residential Independent Sector
Cambridgeshire County Council,28-Dec-17,25270694-16573838,-2977.44,Decoy Farm,Care Establishment,4 - Operations - Providers services,LDP E Cambs Special Needs,Residential Independent Sector
Cambridgeshire County Council,28-Dec-17,25270704-16573848,-2977.44,Decoy Farm,Care Establishment,4 - Operations - Providers services,LDP E Cambs Special Needs,Residential Independent Sector
Cambridgeshire County Council,28-Dec-17,25265765-16573626,-2977.44,Decoy Farm,Care Establishment,4 - Operations - Providers services,LDP E Cambs Special Needs,Residential Independent Sector
Cambridgeshire County Council,28-Dec-17,25265690-16573635,-2977.44,Decoy Farm,Care Establishment,4 - Operations - Providers services,LDP E Cambs Special Needs,Residential Independent Sector
Cambridgeshire County Council,28-Dec-17,25265709-16573654,-2977.44,Decoy Farm,Care Establishment,4 - Operations - Providers services,LDP E Cambs Special Needs,Residential Independent Sector
Cambridgeshire County Council,28-Dec-17,25265719-16573664,-2977.44,Decoy Farm,Care Establishment,4 - Operations - Providers services,LDP E Cambs Special Needs,Residential Independent Sector
Cambridgeshire County Council,28-Dec-17,25265740-16573685,-2977.44,Decoy Farm,Care Establishment,4 - Operations - Providers services,LDP E Cambs Special Needs,Residential Independent Sector
Cambridgeshire County Council,28-Dec-17,25267845-16573731,-2977.44,Decoy Farm,Care Establishment,4 - Operations - Providers services,LDP E Cambs Special Needs,Residential Independent Sector
Cambridgeshire County Council,28-Dec-17,25267856-16573742,-2977.44,Decoy Farm,Care Establishment,4 - Operations - Providers services,LDP E Cambs Special Needs,Residential Independent Sector
Cambridgeshire County Council,28-Dec-17,25267861-16573747,-2977.44,Decoy Farm,Care Establishment,4 - Operations - Providers services,LDP E Cambs Special Needs,Residential Independent Sector
Cambridgeshire County Council,28-Dec-17,25267808-16573779,-2977.44,Decoy Farm,Care Establishment,4 - Operations - Providers services,LDP E Cambs Special Needs,Residential Independent Sector
Cambridgeshire County Council,15-Dec-17,24987522-16521312,-2977.44,Decoy Farm,Care Establishment,4 - Operations - Providers services,LDP E Cambs Special Needs,Residential Independent Sector
Cambridgeshire County Council,15-Dec-17,24987545-16521332,-2977.44,Decoy Farm,Care Establishment,4 - Operations - Providers services,LDP E Cambs Special Needs,Residential Independent Sector
Cambridgeshire County Council,15-Dec-17,24993514-16521334,-2977.44,Decoy Farm,Care Establishment,4 - Operations - Providers services,LDP E Cambs Special Needs,Residential Independent Sector
Cambridgeshire County Council,15-Dec-17,24996890-16521355,-2977.44,Decoy Farm,Care Establishment,4 - Operations - Providers services,LDP E Cambs Special Needs,Residential Independent Sector
Cambridgeshire County Council,15-Dec-17,25194281-16521447,-2977.44,Decoy Farm,Care Establishment,4 - Operations - Providers services,LDP E Cambs Special Needs,Residential Independent Sector
Cambridgeshire County Council,15-Dec-17,25194306-16521472,-2977.44,Decoy Farm,Care Establishment,4 - Operations - Providers services,LDP E Cambs Special Needs,Residential Independent Sector
Cambridgeshire County Council,15-Dec-17,25194309-16521403,-2977.44,Decoy Farm,Care Establishment,4 - Operations - Providers services,LDP E Cambs Special Needs,Residential Independent Sector
Cambridgeshire County Council,15-Dec-17,25194322-16521416,-2977.44,Decoy Farm,Care Establishment,4 - Operations - Providers services,LDP E Cambs Special Needs,Residential Independent Sector
Cambridgeshire County Council,15-Dec-17,24980532-16521140,-2977.44,Decoy Farm,Care Establishment,4 - Operations - Providers services,LDP E Cambs Special Needs,Residential Independent Sector
Cambridgeshire County Council,15-Dec-17,24980533-16521141,-2977.44,Decoy Farm,Care Establishment,4 - Operations - Providers services,LDP E Cambs Special Needs,Residential Independent Sector
Cambridgeshire County Council,15-Dec-17,24980601-16521169,-2977.44,Decoy Farm,Care Establishment,4 - Operations - Providers services,LDP E Cambs Special Needs,Residential Independent Sector
Cambridgeshire County Council,15-Dec-17,24980610-16521178,-2977.44,Decoy Farm,Care Establishment,4 - Operations - Providers services,LDP E Cambs Special Needs,Residential Independent Sector
Cambridgeshire County Council,15-Dec-17,24980545-16521188,-2977.44,Decoy Farm,Care Establishment,4 - Operations - Providers services,LDP E Cambs Special Needs,Residential Independent Sector
Cambridgeshire County Council,15-Dec-17,24980558-16521199,-2977.44,Decoy Farm,Care Establishment,4 - Operations - Providers services,LDP E Cambs Special Needs,Residential Independent Sector
Cambridgeshire County Council,15-Dec-17,24980513-16521217,-2977.44,Decoy Farm,Care Establishment,4 - Operations - Providers services,LDP E Cambs Special Needs,Residential Independent Sector
Cambridgeshire County Council,15-Dec-17,24980517-16521221,-2977.44,Decoy Farm,Care Establishment,4 - Operations - Providers services,LDP E Cambs Special Needs,Residential Independent Sector
Cambridgeshire County Council,15-Dec-17,24951558-16521266,-2977.44,Decoy Farm,Care Establishment,4 - Operations - Providers services,LDP E Cambs Special Needs,Residential Independent Sector
Cambridgeshire County Council,15-Dec-17,24986515-16521272,-2977.44,Decoy Farm,Care Establishment,4 - Operations - Providers services,LDP E Cambs Special Needs,Residential Independent Sector
Cambridgeshire County Council,15-Dec-17,25196252-16521510,-2977.44,Decoy Farm,Care Establishment,4 - Operations - Providers services,LDP E Cambs Special Needs,Residential Independent Sector
Cambridgeshire County Council,15-Dec-17,25196254-16521512,-2977.44,Decoy Farm,Care Establishment,4 - Operations - Providers services,LDP E Cambs Special Needs,Residential Independent Sector
Cambridgeshire County Council,15-Dec-17,25196276-16521534,-2977.44,Decoy Farm,Care Establishment,4 - Operations - Providers services,LDP E Cambs Special Needs,Residential Independent Sector
Cambridgeshire County Council,15-Dec-17,25196163-16521545,-2977.44,Decoy Farm,Care Establishment,4 - Operations - Providers services,LDP E Cambs Special Needs,Residential Independent Sector
Cambridgeshire County Council,15-Dec-17,25196188-16521570,-2977.44,Decoy Farm,Care Establishment,4 - Operations - Providers services,LDP E Cambs Special Needs,Residential Independent Sector
Cambridgeshire County Council,15-Dec-17,25196196-16521578,-2977.44,Decoy Farm,Care Establishment,4 - Operations - Providers services,LDP E Cambs Special Needs,Residential Independent Sector
Cambridgeshire County Council,15-Dec-17,25196205-16521587,-2977.44,Decoy Farm,Care Establishment,4 - Operations - Providers services,LDP E Cambs Special Needs,Residential Independent Sector
Cambridgeshire County Council,15-Dec-17,25196225-16521607,-2977.44,Decoy Farm,Care Establishment,4 - Operations - Providers services,LDP E Cambs Special Needs,Residential Independent Sector
Cambridgeshire County Council,21-Dec-17,25247493-16552642,-2977.44,Decoy Farm,Care Establishment,4 - Operations - Providers services,LDP E Cambs Special Needs,Residential Independent Sector
Cambridgeshire County Council,21-Dec-17,25248153-16552748,-2977.44,Decoy Farm,Care Establishment,4 - Operations - Providers services,LDP E Cambs Special Needs,Residential Independent Sector
Cambridgeshire County Council,21-Dec-17,25251211-16552791,-2977.44,Decoy Farm,Care Establishment,4 - Operations - Providers services,LDP E Cambs Special Needs,Residential Independent Sector
Cambridgeshire County Council,21-Dec-17,25251243-16552823,-2977.44,Decoy Farm,Care Establishment,4 - Operations - Providers services,LDP E Cambs Special Needs,Residential Independent Sector
Cambridgeshire County Council,21-Dec-17,25251252-16552832,-2977.44,Decoy Farm,Care Establishment,4 - Operations - Providers services,LDP E Cambs Special Needs,Residential Independent Sector
Cambridgeshire County Council,21-Dec-17,25251253-16552833,-2977.44,Decoy Farm,Care Establishment,4 - Operations - Providers services,LDP E Cambs Special Needs,Residential Independent Sector
Cambridgeshire County Council,21-Dec-17,25251264-16552844,-2977.44,Decoy Farm,Care Establishment,4 - Operations - Providers services,LDP E Cambs Special Needs,Residential Independent Sector
Cambridgeshire County Council,21-Dec-17,25251280-16552860,-2977.44,Decoy Farm,Care Establishment,4 - Operations - Providers services,LDP E Cambs Special Needs,Residential Independent Sector
Cambridgeshire County Council,21-Dec-17,25253283-16552882,-2977.44,Decoy Farm,Care Establishment,4 - Operations - Providers services,LDP E Cambs Special Needs,Residential Independent Sector
Cambridgeshire County Council,21-Dec-17,25247521-16552670,-2977.44,Decoy Farm,Care Establishment,4 - Operations - Providers services,LDP E Cambs Special Needs,Residential Independent Sector
Cambridgeshire County Council,21-Dec-17,25247523-16552672,-2977.44,Decoy Farm,Care Establishment,4 - Operations - Providers services,LDP E Cambs Special Needs,Residential Independent Sector
Cambridgeshire County Council,21-Dec-17,25248180-16552681,-2977.44,Decoy Farm,Care Establishment,4 - Operations - Providers services,LDP E Cambs Special Needs,Residential Independent Sector
Cambridgeshire County Council,21-Dec-17,25248201-16552702,-2977.44,Decoy Farm,Care Establishment,4 - Operations - Providers services,LDP E Cambs Special Needs,Residential Independent Sector
Cambridgeshire County Council,21-Dec-17,25248209-16552710,-2977.44,Decoy Farm,Care Establishment,4 - Operations - Providers services,LDP E Cambs Special Needs,Residential Independent Sector
Cambridgeshire County Council,21-Dec-17,25248217-16552718,-2977.44,Decoy Farm,Care Establishment,4 - Operations - Providers services,LDP E Cambs Special Needs,Residential Independent Sector
Cambridgeshire County Council,28-Dec-17,25270698-16573842,-2977.44,Decoy Farm,Care Establishment,4 - Operations - Providers services,LDP E Cambs Special Needs,Residential Independent Sector
Cambridgeshire County Council,28-Dec-17,25265755-16573616,-2977.44,Decoy Farm,Care Establishment,4 - Operations - Providers services,LDP E Cambs Special Needs,Residential Independent Sector
Cambridgeshire County Council,28-Dec-17,25265706-16573651,-2977.44,Decoy Farm,Care Establishment,4 - Operations - Providers services,LDP E Cambs Special Needs,Residential Independent Sector
Cambridgeshire County Council,28-Dec-17,25265714-16573659,-2977.44,Decoy Farm,Care Establishment,4 - Operations - Providers services,LDP E Cambs Special Needs,Residential Independent Sector
Cambridgeshire County Council,28-Dec-17,25265726-16573671,-2977.44,Decoy Farm,Care Establishment,4 - Operations - Providers services,LDP E Cambs Special Needs,Residential Independent Sector
Cambridgeshire County Council,28-Dec-17,25265730-16573675,-2977.44,Decoy Farm,Care Establishment,4 - Operations - Providers services,LDP E Cambs Special Needs,Residential Independent Sector
Cambridgeshire County Council,28-Dec-17,25267842-16573728,-2977.44,Decoy Farm,Care Establishment,4 - Operations - Providers services,LDP E Cambs Special Needs,Residential Independent Sector
Cambridgeshire County Council,28-Dec-17,25267844-16573730,-2977.44,Decoy Farm,Care Establishment,4 - Operations - Providers services,LDP E Cambs Special Needs,Residential Independent Sector
Cambridgeshire County Council,28-Dec-17,25267846-16573732,-2977.44,Decoy Farm,Care Establishment,4 - Operations - Providers services,LDP E Cambs Special Needs,Residential Independent Sector
Cambridgeshire County Council,28-Dec-17,25267884-16573770,-2977.44,Decoy Farm,Care Establishment,4 - Operations - Providers services,LDP E Cambs Special Needs,Residential Independent Sector
Cambridgeshire County Council,15-Dec-17,24993524-16521343,-2977.44,Decoy Farm,Care Establishment,4 - Operations - Providers services,LDP E Cambs Special Needs,Residential Independent Sector
Cambridgeshire County Council,15-Dec-17,25194329-16521423,-2977.44,Decoy Farm,Care Establishment,4 - Operations - Providers services,LDP E Cambs Special Needs,Residential Independent Sector
Cambridgeshire County Council,15-Dec-17,24993509-16521360,-2977.44,Decoy Farm,Care Establishment,4 - Operations - Providers services,LDP E Cambs Special Needs,Residential Independent Sector
Cambridgeshire County Council,15-Dec-17,24996913-16521382,-2977.44,Decoy Farm,Care Establishment,4 - Operations - Providers services,LDP E Cambs Special Needs,Residential Independent Sector
Cambridgeshire County Council,15-Dec-17,25194261-16521391,-2977.44,Decoy Farm,Care Establishment,4 - Operations - Providers services,LDP E Cambs Special Needs,Residential Independent Sector
Cambridgeshire County Council,15-Dec-17,25194270-16521400,-2977.44,Decoy Farm,Care Establishment,4 - Operations - Providers services,LDP E Cambs Special Needs,Residential Independent Sector
Cambridgeshire County Council,15-Dec-17,25194323-16521417,-2977.44,Decoy Farm,Care Establishment,4 - Operations - Providers services,LDP E Cambs Special Needs,Residential Independent Sector
Cambridgeshire County Council,15-Dec-17,24980588-16521157,-2977.44,Decoy Farm,Care Establishment,4 - Operations - Providers services,LDP E Cambs Special Needs,Residential Independent Sector
Cambridgeshire County Council,15-Dec-17,24980599-16521167,-2977.44,Decoy Farm,Care Establishment,4 - Operations - Providers services,LDP E Cambs Special Needs,Residential Independent Sector
Cambridgeshire County Council,15-Dec-17,24980546-16521189,-2977.44,Decoy Farm,Care Establishment,4 - Operations - Providers services,LDP E Cambs Special Needs,Residential Independent Sector
Cambridgeshire County Council,15-Dec-17,24980548-16521191,-2977.44,Decoy Farm,Care Establishment,4 - Operations - Providers services,LDP E Cambs Special Needs,Residential Independent Sector
Cambridgeshire County Council,15-Dec-17,24980520-16521224,-2977.44,Decoy Farm,Care Establishment,4 - Operations - Providers services,LDP E Cambs Special Needs,Residential Independent Sector
Cambridgeshire County Council,15-Dec-17,24951525-16521236,-2977.44,Decoy Farm,Care Establishment,4 - Operations - Providers services,LDP E Cambs Special Needs,Residential Independent Sector
Cambridgeshire County Council,15-Dec-17,24951526-16521237,-2977.44,Decoy Farm,Care Establishment,4 - Operations - Providers services,LDP E Cambs Special Needs,Residential Independent Sector
Cambridgeshire County Council,15-Dec-17,24986516-16521273,-2977.44,Decoy Farm,Care Establishment,4 - Operations - Providers services,LDP E Cambs Special Needs,Residential Independent Sector
Cambridgeshire County Council,15-Dec-17,25196261-16521519,-2977.44,Decoy Farm,Care Establishment,4 - Operations - Providers services,LDP E Cambs Special Needs,Residential Independent Sector
Cambridgeshire County Council,15-Dec-17,25196272-16521530,-2977.44,Decoy Farm,Care Establishment,4 - Operations - Providers services,LDP E Cambs Special Needs,Residential Independent Sector
Cambridgeshire County Council,15-Dec-17,25196281-16521539,-2977.44,Decoy Farm,Care Establishment,4 - Operations - Providers services,LDP E Cambs Special Needs,Residential Independent Sector
Cambridgeshire County Council,15-Dec-17,25196222-16521604,-2977.44,Decoy Farm,Care Establishment,4 - Operations - Providers services,LDP E Cambs Special Needs,Residential Independent Sector
Cambridgeshire County Council,15-Dec-17,25201330-16521644,-2977.44,Decoy Farm,Care Establishment,4 - Operations - Providers services,LDP E Cambs Special Needs,Residential Independent Sector
Cambridgeshire County Council,21-Dec-17,25243430-16552633,-2977.44,Decoy Farm,Care Establishment,4 - Operations - Providers services,LDP E Cambs Special Needs,Residential Independent Sector
Cambridgeshire County Council,21-Dec-17,25247490-16552639,-2977.44,Decoy Farm,Care Establishment,4 - Operations - Providers services,LDP E Cambs Special Needs,Residential Independent Sector
Cambridgeshire County Council,21-Dec-17,25247515-16552664,-2977.44,Decoy Farm,Care Establishment,4 - Operations - Providers services,LDP E Cambs Special Needs,Residential Independent Sector
Cambridgeshire County Council,21-Dec-17,25248142-16552737,-2977.44,Decoy Farm,Care Establishment,4 - Operations - Providers services,LDP E Cambs Special Needs,Residential Independent Sector
Cambridgeshire County Council,21-Dec-17,25248146-16552741,-2977.44,Decoy Farm,Care Establishment,4 - Operations - Providers services,LDP E Cambs Special Needs,Residential Independent Sector
Cambridgeshire County Council,21-Dec-17,25248149-16552744,-2977.44,Decoy Farm,Care Establishment,4 - Operations - Providers services,LDP E Cambs Special Needs,Residential Independent Sector
Cambridgeshire County Council,21-Dec-17,25248165-16552760,-2977.44,Decoy Farm,Care Establishment,4 - Operations - Providers services,LDP E Cambs Special Needs,Residential Independent Sector
Cambridgeshire County Council,21-Dec-17,25251184-16552781,-2977.44,Decoy Farm,Care Establishment,4 - Operations - Providers services,LDP E Cambs Special Needs,Residential Independent Sector
Cambridgeshire County Council,21-Dec-17,25251185-16552782,-2977.44,Decoy Farm,Care Establishment,4 - Operations - Providers services,LDP E Cambs Special Needs,Residential Independent Sector
Cambridgeshire County Council,21-Dec-17,25251190-16552787,-2977.44,Decoy Farm,Care Establishment,4 - Operations - Providers services,LDP E Cambs Special Needs,Residential Independent Sector
Cambridgeshire County Council,21-Dec-17,25251216-16552796,-2977.44,Decoy Farm,Care Establishment,4 - Operations - Providers services,LDP E Cambs Special Needs,Residential Independent Sector
Cambridgeshire County Council,21-Dec-17,25251219-16552799,-2977.44,Decoy Farm,Care Establishment,4 - Operations - Providers services,LDP E Cambs Special Needs,Residential Independent Sector
Cambridgeshire County Council,21-Dec-17,25251233-16552813,-2977.44,Decoy Farm,Care Establishment,4 - Operations - Providers services,LDP E Cambs Special Needs,Residential Independent Sector
Cambridgeshire County Council,21-Dec-17,25251237-16552817,-2977.44,Decoy Farm,Care Establishment,4 - Operations - Providers services,LDP E Cambs Special Needs,Residential Independent Sector
Cambridgeshire County Council,21-Dec-17,25251196-16552867,-2977.44,Decoy Farm,Care Establishment,4 - Operations - Providers services,LDP E Cambs Special Needs,Residential Independent Sector
Cambridgeshire County Council,21-Dec-17,25251202-16552873,-2977.44,Decoy Farm,Care Establishment,4 - Operations - Providers services,LDP E Cambs Special Needs,Residential Independent Sector
Cambridgeshire County Council,21-Dec-17,25251205-16552876,-2977.44,Decoy Farm,Care Establishment,4 - Operations - Providers services,LDP E Cambs Special Needs,Residential Independent Sector
Cambridgeshire County Council,21-Dec-17,25253286-16552885,-2977.44,Decoy Farm,Care Establishment,4 - Operations - Providers services,LDP E Cambs Special Needs,Residential Independent Sector
Cambridgeshire County Council,21-Dec-17,25248176-16552677,-2977.44,Decoy Farm,Care Establishment,4 - Operations - Providers services,LDP E Cambs Special Needs,Residential Independent Sector
Cambridgeshire County Council,21-Dec-17,25248198-16552699,-2977.44,Decoy Farm,Care Establishment,4 - Operations - Providers services,LDP E Cambs Special Needs,Residential Independent Sector
Cambridgeshire County Council,21-Dec-17,25248199-16552700,-2977.44,Decoy Farm,Care Establishment,4 - Operations - Providers services,LDP E Cambs Special Needs,Residential Independent Sector
Cambridgeshire County Council,21-Dec-17,25248207-16552708,-2977.44,Decoy Farm,Care Establishment,4 - Operations - Providers services,LDP E Cambs Special Needs,Residential Independent Sector
Cambridgeshire County Council,21-Dec-17,25248212-16552713,-2977.44,Decoy Farm,Care Establishment,4 - Operations - Providers services,LDP E Cambs Special Needs,Residential Independent Sector
Cambridgeshire County Council,21-Dec-17,25248222-16552723,-2977.44,Decoy Farm,Care Establishment,4 - Operations - Providers services,LDP E Cambs Special Needs,Residential Independent Sector
Cambridgeshire County Council,21-Dec-17,25248229-16552730,-2977.44,Decoy Farm,Care Establishment,4 - Operations - Providers services,LDP E Cambs Special Needs,Residential Independent Sector
Cambridgeshire County Council,28-Dec-17,25270710-16573797,-2977.44,Decoy Farm,Care Establishment,4 - Operations - Providers services,LDP E Cambs Special Needs,Residential Independent Sector
Cambridgeshire County Council,28-Dec-17,25270711-16573798,-2977.44,Decoy Farm,Care Establishment,4 - Operations - Providers services,LDP E Cambs Special Needs,Residential Independent Sector
Cambridgeshire County Council,28-Dec-17,25270724-16573811,-2977.44,Decoy Farm,Care Establishment,4 - Operations - Providers services,LDP E Cambs Special Needs,Residential Independent Sector
Cambridgeshire County Council,28-Dec-17,25270725-16573812,-2977.44,Decoy Farm,Care Establishment,4 - Operations - Providers services,LDP E Cambs Special Needs,Residential Independent Sector
Cambridgeshire County Council,28-Dec-17,25270740-16573827,-2977.44,Decoy Farm,Care Establishment,4 - Operations - Providers services,LDP E Cambs Special Needs,Residential Independent Sector
Cambridgeshire County Council,28-Dec-17,25270742-16573829,-2977.44,Decoy Farm,Care Establishment,4 - Operations - Providers services,LDP E Cambs Special Needs,Residential Independent Sector
Cambridgeshire County Council,28-Dec-17,25270693-16573837,-2977.44,Decoy Farm,Care Establishment,4 - Operations - Providers services,LDP E Cambs Special Needs,Residential Independent Sector
Cambridgeshire County Council,28-Dec-17,25270748-16573857,-2977.44,Decoy Farm,Care Establishment,4 - Operations - Providers services,LDP E Cambs Special Needs,Residential Independent Sector
Cambridgeshire County Council,28-Dec-17,25265683-16573612,-2977.44,Decoy Farm,Care Establishment,4 - Operations - Providers services,LDP E Cambs Special Needs,Residential Independent Sector
Cambridgeshire County Council,28-Dec-17,25265753-16573614,-2977.44,Decoy Farm,Care Establishment,4 - Operations - Providers services,LDP E Cambs Special Needs,Residential Independent Sector
Cambridgeshire County Council,28-Dec-17,25265759-16573620,-2977.44,Decoy Farm,Care Establishment,4 - Operations - Providers services,LDP E Cambs Special Needs,Residential Independent Sector
Cambridgeshire County Council,28-Dec-17,25265763-16573624,-2977.44,Decoy Farm,Care Establishment,4 - Operations - Providers services,LDP E Cambs Special Needs,Residential Independent Sector
Cambridgeshire County Council,28-Dec-17,25265686-16573631,-2977.44,Decoy Farm,Care Establishment,4 - Operations - Providers services,LDP E Cambs Special Needs,Residential Independent Sector
Cambridgeshire County Council,28-Dec-17,25265694-16573639,-2977.44,Decoy Farm,Care Establishment,4 - Operations - Providers services,LDP E Cambs Special Needs,Residential Independent Sector
Cambridgeshire County Council,28-Dec-17,25265725-16573670,-2977.44,Decoy Farm,Care Establishment,4 - Operations - Providers services,LDP E Cambs Special Needs,Residential Independent Sector
Cambridgeshire County Council,28-Dec-17,25267822-16573708,-2977.44,Decoy Farm,Care Establishment,4 - Operations - Providers services,LDP E Cambs Special Needs,Residential Independent Sector
Cambridgeshire County Council,28-Dec-17,25267825-16573711,-2977.44,Decoy Farm,Care Establishment,4 - Operations - Providers services,LDP E Cambs Special Needs,Residential Independent Sector
Cambridgeshire County Council,28-Dec-17,25267832-16573718,-2977.44,Decoy Farm,Care Establishment,4 - Operations - Providers services,LDP E Cambs Special Needs,Residential Independent Sector
Cambridgeshire County Council,28-Dec-17,25267849-16573735,-2977.44,Decoy Farm,Care Establishment,4 - Operations - Providers services,LDP E Cambs Special Needs,Residential Independent Sector
Cambridgeshire County Council,28-Dec-17,25267851-16573737,-2977.44,Decoy Farm,Care Establishment,4 - Operations - Providers services,LDP E Cambs Special Needs,Residential Independent Sector
Cambridgeshire County Council,28-Dec-17,25267870-16573756,-2977.44,Decoy Farm,Care Establishment,4 - Operations - Providers services,LDP E Cambs Special Needs,Residential Independent Sector
Cambridgeshire County Council,28-Dec-17,25267881-16573767,-2977.44,Decoy Farm,Care Establishment,4 - Operations - Providers services,LDP E Cambs Special Needs,Residential Independent Sector
Cambridgeshire County Council,28-Dec-17,25267815-16573786,-2977.44,Decoy Farm,Care Establishment,4 - Operations - Providers services,LDP E Cambs Special Needs,Residential Independent Sector
Cambridgeshire County Council,28-Dec-17,25267817-16573788,-2977.44,Decoy Farm,Care Establishment,4 - Operations - Providers services,LDP E Cambs Special Needs,Residential Independent Sector
Cambridgeshire County Council,15-Dec-17,24986539-16521294,-2977.44,Decoy Farm,Care Establishment,4 - Operations - Providers services,LDP E Cambs Special Needs,Residential Independent Sector
Cambridgeshire County Council,15-Dec-17,24986545-16521299,-2977.44,Decoy Farm,Care Establishment,4 - Operations - Providers services,LDP E Cambs Special Needs,Residential Independent Sector
Cambridgeshire County Council,15-Dec-17,24987511-16521301,-2977.44,Decoy Farm,Care Establishment,4 - Operations - Providers services,LDP E Cambs Special Needs,Residential Independent Sector
Cambridgeshire County Council,15-Dec-17,24993523-16521342,-2977.44,Decoy Farm,Care Establishment,4 - Operations - Providers services,LDP E Cambs Special Needs,Residential Independent Sector
Cambridgeshire County Council,15-Dec-17,24996878-16521344,-2977.44,Decoy Farm,Care Establishment,4 - Operations - Providers services,LDP E Cambs Special Needs,Residential Independent Sector
Cambridgeshire County Council,15-Dec-17,24996888-16521353,-2977.44,Decoy Farm,Care Establishment,4 - Operations - Providers services,LDP E Cambs Special Needs,Residential Independent Sector
Cambridgeshire County Council,15-Dec-17,25194336-16521430,-2977.44,Decoy Farm,Care Establishment,4 - Operations - Providers services,LDP E Cambs Special Needs,Residential Independent Sector
Cambridgeshire County Council,15-Dec-17,25194278-16521444,-2977.44,Decoy Farm,Care Establishment,4 - Operations - Providers services,LDP E Cambs Special Needs,Residential Independent Sector
Cambridgeshire County Council,15-Dec-17,25194283-16521449,-2977.44,Decoy Farm,Care Establishment,4 - Operations - Providers services,LDP E Cambs Special Needs,Residential Independent Sector
Cambridgeshire County Council,15-Dec-17,25194294-16521460,-2977.44,Decoy Farm,Care Establishment,4 - Operations - Providers services,LDP E Cambs Special Needs,Residential Independent Sector
Cambridgeshire County Council,15-Dec-17,25194299-16521465,-2977.44,Decoy Farm,Care Establishment,4 - Operations - Providers services,LDP E Cambs Special Needs,Residential Independent Sector
Cambridgeshire County Council,15-Dec-17,24996893-16521358,-2977.44,Decoy Farm,Care Establishment,4 - Operations - Providers services,LDP E Cambs Special Needs,Residential Independent Sector
Cambridgeshire County Council,15-Dec-17,24993513-16521364,-2977.44,Decoy Farm,Care Establishment,4 - Operations - Providers services,LDP E Cambs Special Needs,Residential Independent Sector
Cambridgeshire County Council,15-Dec-17,25194319-16521413,-2977.44,Decoy Farm,Care Establishment,4 - Operations - Providers services,LDP E Cambs Special Needs,Residential Independent Sector
Cambridgeshire County Council,15-Dec-17,24980526-16521134,-2977.44,Decoy Farm,Care Establishment,4 - Operations - Providers services,LDP E Cambs Special Needs,Residential Independent Sector
Cambridgeshire County Council,15-Dec-17,24980576-16521146,-2977.44,Decoy Farm,Care Establishment,4 - Operations - Providers services,LDP E Cambs Special Needs,Residential Independent Sector
Cambridgeshire County Council,15-Dec-17,24980600-16521168,-2977.44,Decoy Farm,Care Establishment,4 - Operations - Providers services,LDP E Cambs Special Needs,Residential Independent Sector
Cambridgeshire County Council,15-Dec-17,24980606-16521174,-2977.44,Decoy Farm,Care Establishment,4 - Operations - Providers services,LDP E Cambs Special Needs,Residential Independent Sector
Cambridgeshire County Council,15-Dec-17,24980540-16521183,-2977.44,Decoy Farm,Care Establishment,4 - Operations - Providers services,LDP E Cambs Special Needs,Residential Independent Sector
Cambridgeshire County Council,15-Dec-17,24980565-16521206,-2977.44,Decoy Farm,Care Establishment,4 - Operations - Providers services,LDP E Cambs Special Needs,Residential Independent Sector
Cambridgeshire County Council,15-Dec-17,24980515-16521219,-2977.44,Decoy Farm,Care Establishment,4 - Operations - Providers services,LDP E Cambs Special Needs,Residential Independent Sector
Cambridgeshire County Council,15-Dec-17,24951541-16521252,-2977.44,Decoy Farm,Care Establishment,4 - Operations - Providers services,LDP E Cambs Special Needs,Residential Independent Sector
Cambridgeshire County Council,15-Dec-17,24951548-16521259,-2977.44,Decoy Farm,Care Establishment,4 - Operations - Providers services,LDP E Cambs Special Needs,Residential Independent Sector
Cambridgeshire County Council,15-Dec-17,24986525-16521280,-2977.44,Decoy Farm,Care Establishment,4 - Operations - Providers services,LDP E Cambs Special Needs,Residential Independent Sector
Cambridgeshire County Council,15-Dec-17,24986528-16521283,-2977.44,Decoy Farm,Care Establishment,4 - Operations - Providers services,LDP E Cambs Special Needs,Residential Independent Sector
Cambridgeshire County Council,15-Dec-17,24986529-16521284,-2977.44,Decoy Farm,Care Establishment,4 - Operations - Providers services,LDP E Cambs Special Needs,Residential Independent Sector
Cambridgeshire County Council,15-Dec-17,25196230-16521488,-2977.44,Decoy Farm,Care Establishment,4 - Operations - Providers services,LDP E Cambs Special Needs,Residential Independent Sector
Cambridgeshire County Council,15-Dec-17,25196274-16521532,-2977.44,Decoy Farm,Care Establishment,4 - Operations - Providers services,LDP E Cambs Special Needs,Residential Independent Sector
Cambridgeshire County Council,15-Dec-17,25196279-16521537,-2977.44,Decoy Farm,Care Establishment,4 - Operations - Providers services,LDP E Cambs Special Needs,Residential Independent Sector
Cambridgeshire County Council,15-Dec-17,25196168-16521550,-2977.44,Decoy Farm,Care Establishment,4 - Operations - Providers services,LDP E Cambs Special Needs,Residential Independent Sector
Cambridgeshire County Council,15-Dec-17,25196197-16521579,-2977.44,Decoy Farm,Care Establishment,4 - Operations - Providers services,LDP E Cambs Special Needs,Residential Independent Sector
Cambridgeshire County Council,15-Dec-17,25196200-16521582,-2977.44,Decoy Farm,Care Establishment,4 - Operations - Providers services,LDP E Cambs Special Needs,Residential Independent Sector
Cambridgeshire County Council,15-Dec-17,25196215-16521597,-2977.44,Decoy Farm,Care Establishment,4 - Operations - Providers services,LDP E Cambs Special Needs,Residential Independent Sector
Cambridgeshire County Council,15-Dec-17,25196216-16521598,-2977.44,Decoy Farm,Care Establishment,4 - Operations - Providers services,LDP E Cambs Special Needs,Residential Independent Sector
Cambridgeshire County Council,15-Dec-17,25196220-16521602,-2977.44,Decoy Farm,Care Establishment,4 - Operations - Providers services,LDP E Cambs Special Needs,Residential Independent Sector
Cambridgeshire County Council,15-Dec-17,25196221-16521603,-2977.44,Decoy Farm,Care Establishment,4 - Operations - Providers services,LDP E Cambs Special Needs,Residential Independent Sector
Cambridgeshire County Council,15-Dec-17,25201300-16521614,-2977.44,Decoy Farm,Care Establishment,4 - Operations - Providers services,LDP E Cambs Special Needs,Residential Independent Sector
Cambridgeshire County Council,15-Dec-17,25201303-16521617,-2977.44,Decoy Farm,Care Establishment,4 - Operations - Providers services,LDP E Cambs Special Needs,Residential Independent Sector
Cambridgeshire County Council,15-Dec-17,25201304-16521618,-2977.44,Decoy Farm,Care Establishment,4 - Operations - Providers services,LDP E Cambs Special Needs,Residential Independent Sector
Cambridgeshire County Council,15-Dec-17,25201305-16521619,-2977.44,Decoy Farm,Care Establishment,4 - Operations - Providers services,LDP E Cambs Special Needs,Residential Independent Sector
Cambridgeshire County Council,15-Dec-17,25201308-16521622,-2977.44,Decoy Farm,Care Establishment,4 - Operations - Providers services,LDP E Cambs Special Needs,Residential Independent Sector
Cambridgeshire County Council,15-Dec-17,25201329-16521643,-2977.44,Decoy Farm,Care Establishment,4 - Operations - Providers services,LDP E Cambs Special Needs,Residential Independent Sector
Cambridgeshire County Council,21-Dec-17,25243424-16552627,-2977.44,Decoy Farm,Care Establishment,4 - Operations - Providers services,LDP E Cambs Special Needs,Residential Independent Sector
Cambridgeshire County Council,21-Dec-17,25247510-16552659,-2977.44,Decoy Farm,Care Establishment,4 - Operations - Providers services,LDP E Cambs Special Needs,Residential Independent Sector
Cambridgeshire County Council,21-Dec-17,25247512-16552661,-2977.44,Decoy Farm,Care Establishment,4 - Operations - Providers services,LDP E Cambs Special Needs,Residential Independent Sector
Cambridgeshire County Council,21-Dec-17,25248164-16552759,-2977.44,Decoy Farm,Care Establishment,4 - Operations - Providers services,LDP E Cambs Special Needs,Residential Independent Sector
Cambridgeshire County Council,21-Dec-17,25248169-16552764,-2977.44,Decoy Farm,Care Establishment,4 - Operations - Providers services,LDP E Cambs Special Needs,Residential Independent Sector
Cambridgeshire County Council,21-Dec-17,25251224-16552804,-2977.44,Decoy Farm,Care Establishment,4 - Operations - Providers services,LDP E Cambs Special Needs,Residential Independent Sector
Cambridgeshire County Council,21-Dec-17,25251251-16552831,-2977.44,Decoy Farm,Care Establishment,4 - Operations - Providers services,LDP E Cambs Special Needs,Residential Independent Sector
Cambridgeshire County Council,21-Dec-17,25251255-16552835,-2977.44,Decoy Farm,Care Establishment,4 - Operations - Providers services,LDP E Cambs Special Needs,Residential Independent Sector
Cambridgeshire County Council,21-Dec-17,25251270-16552850,-2977.44,Decoy Farm,Care Establishment,4 - Operations - Providers services,LDP E Cambs Special Needs,Residential Independent Sector
Cambridgeshire County Council,21-Dec-17,25248208-16552709,-2977.44,Decoy Farm,Care Establishment,4 - Operations - Providers services,LDP E Cambs Special Needs,Residential Independent Sector
Cambridgeshire County Council,21-Dec-17,25248228-16552729,-2977.44,Decoy Farm,Care Establishment,4 - Operations - Providers services,LDP E Cambs Special Needs,Residential Independent Sector
Cambridgeshire County Council,28-Dec-17,25270732-16573819,-2977.44,Decoy Farm,Care Establishment,4 - Operations - Providers services,LDP E Cambs Special Needs,Residential Independent Sector
Cambridgeshire County Council,28-Dec-17,25265669-16573598,-2977.44,Decoy Farm,Care Establishment,4 - Operations - Providers services,LDP E Cambs Special Needs,Residential Independent Sector
Cambridgeshire County Council,28-Dec-17,25265675-16573604,-2977.44,Decoy Farm,Care Establishment,4 - Operations - Providers services,LDP E Cambs Special Needs,Residential Independent Sector
Cambridgeshire County Council,28-Dec-17,25265692-16573637,-2977.44,Decoy Farm,Care Establishment,4 - Operations - Providers services,LDP E Cambs Special Needs,Residential Independent Sector
Cambridgeshire County Council,28-Dec-17,25265701-16573646,-2977.44,Decoy Farm,Care Establishment,4 - Operations - Providers services,LDP E Cambs Special Needs,Residential Independent Sector
Cambridgeshire County Council,28-Dec-17,25265710-16573655,-2977.44,Decoy Farm,Care Establishment,4 - Operations - Providers services,LDP E Cambs Special Needs,Residential Independent Sector
Cambridgeshire County Council,28-Dec-17,25265721-16573666,-2977.44,Decoy Farm,Care Establishment,4 - Operations - Providers services,LDP E Cambs Special Needs,Residential Independent Sector
Cambridgeshire County Council,28-Dec-17,25265724-16573669,-2977.44,Decoy Farm,Care Establishment,4 - Operations - Providers services,LDP E Cambs Special Needs,Residential Independent Sector
Cambridgeshire County Council,28-Dec-17,25265737-16573682,-2977.44,Decoy Farm,Care Establishment,4 - Operations - Providers services,LDP E Cambs Special Needs,Residential Independent Sector
Cambridgeshire County Council,28-Dec-17,25265746-16573691,-2977.44,Decoy Farm,Care Establishment,4 - Operations - Providers services,LDP E Cambs Special Needs,Residential Independent Sector
Cambridgeshire County Council,28-Dec-17,25265749-16573694,-2977.44,Decoy Farm,Care Establishment,4 - Operations - Providers services,LDP E Cambs Special Needs,Residential Independent Sector
Cambridgeshire County Council,28-Dec-17,25267833-16573719,-2977.44,Decoy Farm,Care Establishment,4 - Operations - Providers services,LDP E Cambs Special Needs,Residential Independent Sector
Cambridgeshire County Council,28-Dec-17,25267866-16573752,-2977.44,Decoy Farm,Care Establishment,4 - Operations - Providers services,LDP E Cambs Special Needs,Residential Independent Sector
Cambridgeshire County Council,28-Dec-17,25267872-16573758,-2977.44,Decoy Farm,Care Establishment,4 - Operations - Providers services,LDP E Cambs Special Needs,Residential Independent Sector
Cambridgeshire County Council,28-Dec-17,25267878-16573764,-2977.44,Decoy Farm,Care Establishment,4 - Operations - Providers services,LDP E Cambs Special Needs,Residential Independent Sector
Cambridgeshire County Council,28-Dec-17,25267882-16573768,-2977.44,Decoy Farm,Care Establishment,4 - Operations - Providers services,LDP E Cambs Special Needs,Residential Independent Sector
Cambridgeshire County Council,28-Dec-17,25267883-16573769,-2977.44,Decoy Farm,Care Establishment,4 - Operations - Providers services,LDP E Cambs Special Needs,Residential Independent Sector
Cambridgeshire County Council,15-Dec-17,24987515-16521305,-2977.44,Decoy Farm,Care Establishment,4 - Operations - Providers services,LDP E Cambs Special Needs,Residential Independent Sector
Cambridgeshire County Council,15-Dec-17,24987517-16521307,-2977.44,Decoy Farm,Care Establishment,4 - Operations - Providers services,LDP E Cambs Special Needs,Residential Independent Sector
Cambridgeshire County Council,15-Dec-17,24987519-16521309,-2977.44,Decoy Farm,Care Establishment,4 - Operations - Providers services,LDP E Cambs Special Needs,Residential Independent Sector
Cambridgeshire County Council,15-Dec-17,24987530-16521320,-2977.44,Decoy Farm,Care Establishment,4 - Operations - Providers services,LDP E Cambs Special Needs,Residential Independent Sector
Cambridgeshire County Council,15-Dec-17,24987534-16521322,-2977.44,Decoy Farm,Care Establishment,4 - Operations - Providers services,LDP E Cambs Special Needs,Residential Independent Sector
Cambridgeshire County Council,15-Dec-17,24987536-16521324,-2977.44,Decoy Farm,Care Establishment,4 - Operations - Providers services,LDP E Cambs Special Needs,Residential Independent Sector
Cambridgeshire County Council,15-Dec-17,24987542-16521330,-2977.44,Decoy Farm,Care Establishment,4 - Operations - Providers services,LDP E Cambs Special Needs,Residential Independent Sector
Cambridgeshire County Council,15-Dec-17,24996885-16521351,-2977.44,Decoy Farm,Care Establishment,4 - Operations - Providers services,LDP E Cambs Special Needs,Residential Independent Sector
Cambridgeshire County Council,15-Dec-17,25194332-16521426,-2977.44,Decoy Farm,Care Establishment,4 - Operations - Providers services,LDP E Cambs Special Needs,Residential Independent Sector
Cambridgeshire County Council,15-Dec-17,25194337-16521431,-2977.44,Decoy Farm,Care Establishment,4 - Operations - Providers services,LDP E Cambs Special Needs,Residential Independent Sector
Cambridgeshire County Council,15-Dec-17,25194343-16521437,-2977.44,Decoy Farm,Care Establishment,4 - Operations - Providers services,LDP E Cambs Special Needs,Residential Independent Sector
Cambridgeshire County Council,15-Dec-17,25194276-16521442,-2977.44,Decoy Farm,Care Establishment,4 - Operations - Providers services,LDP E Cambs Special Needs,Residential Independent Sector
Cambridgeshire County Council,15-Dec-17,25194289-16521455,-2977.44,Decoy Farm,Care Establishment,4 - Operations - Providers services,LDP E Cambs Special Needs,Residential Independent Sector
Cambridgeshire County Council,15-Dec-17,25194248-16521479,-2977.44,Decoy Farm,Care Establishment,4 - Operations - Providers services,LDP E Cambs Special Needs,Residential Independent Sector
Cambridgeshire County Council,15-Dec-17,25194314-16521408,-2977.44,Decoy Farm,Care Establishment,4 - Operations - Providers services,LDP E Cambs Special Needs,Residential Independent Sector
Cambridgeshire County Council,15-Dec-17,24980522-16521130,-2977.44,Decoy Farm,Care Establishment,4 - Operations - Providers services,LDP E Cambs Special Needs,Residential Independent Sector
Cambridgeshire County Council,15-Dec-17,24980595-16521163,-2977.44,Decoy Farm,Care Establishment,4 - Operations - Providers services,LDP E Cambs Special Needs,Residential Independent Sector
Cambridgeshire County Council,15-Dec-17,24980611-16521179,-2977.44,Decoy Farm,Care Establishment,4 - Operations - Providers services,LDP E Cambs Special Needs,Residential Independent Sector
Cambridgeshire County Council,15-Dec-17,24980538-16521181,-2977.44,Decoy Farm,Care Establishment,4 - Operations - Providers services,LDP E Cambs Special Needs,Residential Independent Sector
Cambridgeshire County Council,15-Dec-17,24980518-16521222,-2977.44,Decoy Farm,Care Establishment,4 - Operations - Providers services,LDP E Cambs Special Needs,Residential Independent Sector
Cambridgeshire County Council,15-Dec-17,24986514-16521271,-2977.44,Decoy Farm,Care Establishment,4 - Operations - Providers services,LDP E Cambs Special Needs,Residential Independent Sector
Cambridgeshire County Council,15-Dec-17,24986532-16521287,-2977.44,Decoy Farm,Care Establishment,4 - Operations - Providers services,LDP E Cambs Special Needs,Residential Independent Sector
Cambridgeshire County Council,15-Dec-17,25196235-16521493,-2977.44,Decoy Farm,Care Establishment,4 - Operations - Providers services,LDP E Cambs Special Needs,Residential Independent Sector
Cambridgeshire County Council,15-Dec-17,25196262-16521520,-2977.44,Decoy Farm,Care Establishment,4 - Operations - Providers services,LDP E Cambs Special Needs,Residential Independent Sector
Cambridgeshire County Council,15-Dec-17,25196275-16521533,-2977.44,Decoy Farm,Care Establishment,4 - Operations - Providers services,LDP E Cambs Special Needs,Residential Independent Sector
Cambridgeshire County Council,15-Dec-17,25196164-16521546,-2977.44,Decoy Farm,Care Establishment,4 - Operations - Providers services,LDP E Cambs Special Needs,Residential Independent Sector
Cambridgeshire County Council,15-Dec-17,25196167-16521549,-2977.44,Decoy Farm,Care Establishment,4 - Operations - Providers services,LDP E Cambs Special Needs,Residential Independent Sector
Cambridgeshire County Council,15-Dec-17,25196175-16521557,-2977.44,Decoy Farm,Care Establishment,4 - Operations - Providers services,LDP E Cambs Special Needs,Residential Independent Sector
Cambridgeshire County Council,15-Dec-17,25196183-16521565,-2977.44,Decoy Farm,Care Establishment,4 - Operations - Providers services,LDP E Cambs Special Needs,Residential Independent Sector
Cambridgeshire County Council,15-Dec-17,25196201-16521583,-2977.44,Decoy Farm,Care Establishment,4 - Operations - Providers services,LDP E Cambs Special Needs,Residential Independent Sector
Cambridgeshire County Council,15-Dec-17,25196219-16521601,-2977.44,Decoy Farm,Care Establishment,4 - Operations - Providers services,LDP E Cambs Special Needs,Residential Independent Sector
Cambridgeshire County Council,15-Dec-17,25201311-16521625,-2977.44,Decoy Farm,Care Establishment,4 - Operations - Providers services,LDP E Cambs Special Needs,Residential Independent Sector
Cambridgeshire County Council,15-Dec-17,25201313-16521627,-2977.44,Decoy Farm,Care Establishment,4 - Operations - Providers services,LDP E Cambs Special Needs,Residential Independent Sector
Cambridgeshire County Council,15-Dec-17,25201319-16521633,-2977.44,Decoy Farm,Care Establishment,4 - Operations - Providers services,LDP E Cambs Special Needs,Residential Independent Sector
Cambridgeshire County Council,15-Dec-17,25201324-16521638,-2977.44,Decoy Farm,Care Establishment,4 - Operations - Providers services,LDP E Cambs Special Needs,Residential Independent Sector
Cambridgeshire County Council,15-Dec-17,25201326-16521640,-2977.44,Decoy Farm,Care Establishment,4 - Operations - Providers services,LDP E Cambs Special Needs,Residential Independent Sector
Cambridgeshire County Council,21-Dec-17,25247488-16552637,-2977.44,Decoy Farm,Care Establishment,4 - Operations - Providers services,LDP E Cambs Special Needs,Residential Independent Sector
Cambridgeshire County Council,21-Dec-17,25247501-16552650,-2977.44,Decoy Farm,Care Establishment,4 - Operations - Providers services,LDP E Cambs Special Needs,Residential Independent Sector
Cambridgeshire County Council,21-Dec-17,25247504-16552653,-2977.44,Decoy Farm,Care Establishment,4 - Operations - Providers services,LDP E Cambs Special Needs,Residential Independent Sector
Cambridgeshire County Council,21-Dec-17,25247505-16552654,-2977.44,Decoy Farm,Care Establishment,4 - Operations - Providers services,LDP E Cambs Special Needs,Residential Independent Sector
Cambridgeshire County Council,21-Dec-17,25247516-16552665,-2977.44,Decoy Farm,Care Establishment,4 - Operations - Providers services,LDP E Cambs Special Needs,Residential Independent Sector
Cambridgeshire County Council,21-Dec-17,25248147-16552742,-2977.44,Decoy Farm,Care Establishment,4 - Operations - Providers services,LDP E Cambs Special Needs,Residential Independent Sector
Cambridgeshire County Council,21-Dec-17,25248154-16552749,-2977.44,Decoy Farm,Care Establishment,4 - Operations - Providers services,LDP E Cambs Special Needs,Residential Independent Sector
Cambridgeshire County Council,21-Dec-17,25248170-16552765,-2977.44,Decoy Farm,Care Establishment,4 - Operations - Providers services,LDP E Cambs Special Needs,Residential Independent Sector
Cambridgeshire County Council,21-Dec-17,25251186-16552783,-2977.44,Decoy Farm,Care Establishment,4 - Operations - Providers services,LDP E Cambs Special Needs,Residential Independent Sector
Cambridgeshire County Council,21-Dec-17,25251231-16552811,-2977.44,Decoy Farm,Care Establishment,4 - Operations - Providers services,LDP E Cambs Special Needs,Residential Independent Sector
Cambridgeshire County Council,21-Dec-17,25251238-16552818,-2977.44,Decoy Farm,Care Establishment,4 - Operations - Providers services,LDP E Cambs Special Needs,Residential Independent Sector
Cambridgeshire County Council,21-Dec-17,25251244-16552824,-2977.44,Decoy Farm,Care Establishment,4 - Operations - Providers services,LDP E Cambs Special Needs,Residential Independent Sector
Cambridgeshire County Council,21-Dec-17,25251248-16552828,-2977.44,Decoy Farm,Care Establishment,4 - Operations - Providers services,LDP E Cambs Special Needs,Residential Independent Sector
Cambridgeshire County Council,21-Dec-17,25251262-16552842,-2977.44,Decoy Farm,Care Establishment,4 - Operations - Providers services,LDP E Cambs Special Needs,Residential Independent Sector
Cambridgeshire County Council,21-Dec-17,25251277-16552857,-2977.44,Decoy Farm,Care Establishment,4 - Operations - Providers services,LDP E Cambs Special Needs,Residential Independent Sector
Cambridgeshire County Council,21-Dec-17,25251282-16552862,-2977.44,Decoy Farm,Care Establishment,4 - Operations - Providers services,LDP E Cambs Special Needs,Residential Independent Sector
Cambridgeshire County Council,21-Dec-17,25251201-16552872,-2977.44,Decoy Farm,Care Establishment,4 - Operations - Providers services,LDP E Cambs Special Needs,Residential Independent Sector
Cambridgeshire County Council,21-Dec-17,25248173-16552674,-2977.44,Decoy Farm,Care Establishment,4 - Operations - Providers services,LDP E Cambs Special Needs,Residential Independent Sector
Cambridgeshire County Council,21-Dec-17,25248177-16552678,-2977.44,Decoy Farm,Care Establishment,4 - Operations - Providers services,LDP E Cambs Special Needs,Residential Independent Sector
Cambridgeshire County Council,21-Dec-17,25248178-16552679,-2977.44,Decoy Farm,Care Establishment,4 - Operations - Providers services,LDP E Cambs Special Needs,Residential Independent Sector
Cambridgeshire County Council,21-Dec-17,25248187-16552688,-2977.44,Decoy Farm,Care Establishment,4 - Operations - Providers services,LDP E Cambs Special Needs,Residential Independent Sector
Cambridgeshire County Council,21-Dec-17,25248194-16552695,-2977.44,Decoy Farm,Care Establishment,4 - Operations - Providers services,LDP E Cambs Special Needs,Residential Independent Sector
Cambridgeshire County Council,21-Dec-17,25248219-16552720,-2977.44,Decoy Farm,Care Establishment,4 - Operations - Providers services,LDP E Cambs Special Needs,Residential Independent Sector
Cambridgeshire County Council,28-Dec-17,25270722-16573809,-2977.44,Decoy Farm,Care Establishment,4 - Operations - Providers services,LDP E Cambs Special Needs,Residential Independent Sector
Cambridgeshire County Council,28-Dec-17,25270729-16573816,-2977.44,Decoy Farm,Care Establishment,4 - Operations - Providers services,LDP E Cambs Special Needs,Residential Independent Sector
Cambridgeshire County Council,28-Dec-17,25270699-16573843,-2977.44,Decoy Farm,Care Establishment,4 - Operations - Providers services,LDP E Cambs Special Needs,Residential Independent Sector
Cambridgeshire County Council,28-Dec-17,25270707-16573851,-2977.44,Decoy Farm,Care Establishment,4 - Operations - Providers services,LDP E Cambs Special Needs,Residential Independent Sector
Cambridgeshire County Council,28-Dec-17,25265695-16573640,-2977.44,Decoy Farm,Care Establishment,4 - Operations - Providers services,LDP E Cambs Special Needs,Residential Independent Sector
Cambridgeshire County Council,28-Dec-17,25265704-16573649,-2977.44,Decoy Farm,Care Establishment,4 - Operations - Providers services,LDP E Cambs Special Needs,Residential Independent Sector
Cambridgeshire County Council,28-Dec-17,25265732-16573677,-2977.44,Decoy Farm,Care Establishment,4 - Operations - Providers services,LDP E Cambs Special Needs,Residential Independent Sector
Cambridgeshire County Council,28-Dec-17,25265734-16573679,-2977.44,Decoy Farm,Care Establishment,4 - Operations - Providers services,LDP E Cambs Special Needs,Residential Independent Sector
Cambridgeshire County Council,28-Dec-17,25265744-16573689,-2977.44,Decoy Farm,Care Establishment,4 - Operations - Providers services,LDP E Cambs Special Needs,Residential Independent Sector
Cambridgeshire County Council,28-Dec-17,25265750-16573695,-2977.44,Decoy Farm,Care Establishment,4 - Operations - Providers services,LDP E Cambs Special Needs,Residential Independent Sector
Cambridgeshire County Council,28-Dec-17,25267823-16573709,-2977.44,Decoy Farm,Care Establishment,4 - Operations - Providers services,LDP E Cambs Special Needs,Residential Independent Sector
Cambridgeshire County Council,28-Dec-17,25267835-16573721,-2977.44,Decoy Farm,Care Establishment,4 - Operations - Providers services,LDP E Cambs Special Needs,Residential Independent Sector
Cambridgeshire County Council,28-Dec-17,25267843-16573729,-2977.44,Decoy Farm,Care Establishment,4 - Operations - Providers services,LDP E Cambs Special Needs,Residential Independent Sector
Cambridgeshire County Council,28-Dec-17,25267876-16573762,-2977.44,Decoy Farm,Care Establishment,4 - Operations - Providers services,LDP E Cambs Special Needs,Residential Independent Sector
Cambridgeshire County Council,28-Dec-17,25267803-16573774,-2977.44,Decoy Farm,Care Establishment,4 - Operations - Providers services,LDP E Cambs Special Needs,Residential Independent Sector
Cambridgeshire County Council,28-Dec-17,25267812-16573783,-2977.44,Decoy Farm,Care Establishment,4 - Operations - Providers services,LDP E Cambs Special Needs,Residential Independent Sector
Cambridgeshire County Council,15-Dec-17,25194290-16521456,-2552.09,Decoy Farm,Care Establishment,4 - Operations - Providers services,LDP E Cambs Special Needs,Residential Independent Sector
Cambridgeshire County Council,15-Dec-17,24996898-16521368,-2552.09,Decoy Farm,Care Establishment,4 - Operations - Providers services,LDP E Cambs Special Needs,Residential Independent Sector
Cambridgeshire County Council,21-Dec-17,25251273-16552853,-2552.09,Decoy Farm,Care Establishment,4 - Operations - Providers services,LDP E Cambs Special Needs,Residential Independent Sector
Cambridgeshire County Council,21-Dec-17,25248151-16552746,-2552.09,Decoy Farm,Care Establishment,4 - Operations - Providers services,LDP E Cambs Special Needs,Residential Independent Sector
Cambridgeshire County Council,15-Dec-17,24951536-16521247,-2552.09,Decoy Farm,Care Establishment,4 - Operations - Providers services,LDP E Cambs Special Needs,Residential Independent Sector
Cambridgeshire County Council,15-Dec-17,25194326-16521420,-2552.09,Decoy Farm,Care Establishment,4 - Operations - Providers services,LDP E Cambs Special Needs,Residential Independent Sector
Cambridgeshire County Council,28-Dec-17,25265666-16573703,-2552.09,Decoy Farm,Care Establishment,4 - Operations - Providers services,LDP E Cambs Special Needs,Residential Independent Sector
Cambridgeshire County Council,28-Dec-17,25267859-16573745,-2552.09,Decoy Farm,Care Establishment,4 - Operations - Providers services,LDP E Cambs Special Needs,Residential Independent Sector
Cambridgeshire County Council,07-Dec-17,24831002-16488721,-2337.29,Dimensions (Uk) Ltd,Care Establishment,4 - Operations - Providers services,LDP Cambs City - Special Needs,Supported Living
Cambridgeshire County Council,07-Dec-17,24881442-16488778,-2337.29,Dimensions (Uk) Ltd,Care Establishment,4 - Operations - Providers services,LDP Cambs City - Special Needs,Supported Living
Cambridgeshire County Council,07-Dec-17,24991338-16488857,-2337.29,Dimensions (Uk) Ltd,Care Establishment,4 - Operations - Providers services,LDP Cambs City - Special Needs,Supported Living
Cambridgeshire County Council,07-Dec-17,24991379-16488870,-2337.29,Dimensions (Uk) Ltd,Care Establishment,4 - Operations - Providers services,LDP South Cambs - Special Needs,Supported Living
Cambridgeshire County Council,07-Dec-17,24991392-16488875,-2337.29,Dimensions (Uk) Ltd,Care Establishment,4 - Operations - Providers services,LDP Cambs City - Special Needs,Supported Living
Cambridgeshire County Council,07-Dec-17,24830994-16488713,-2337.29,Dimensions (Uk) Ltd,Care Establishment,4 - Operations - Providers services,LDP South Cambs - Special Needs,Supported Living
Cambridgeshire County Council,07-Dec-17,24830995-16488714,-2337.29,Dimensions (Uk) Ltd,Care Establishment,4 - Operations - Providers services,LDP Cambs City - Special Needs,Supported Living
Cambridgeshire County Council,07-Dec-17,24831000-16488719,-2337.29,Dimensions (Uk) Ltd,Care Establishment,4 - Operations - Providers services,LDP Cambs City - Special Needs,Supported Living
Cambridgeshire County Council,07-Dec-17,24856885-16488738,-2337.29,Dimensions (Uk) Ltd,Care Establishment,4 - Operations - Providers services,LDP South Cambs - Special Needs,Supported Living
Cambridgeshire County Council,07-Dec-17,24881439-16488775,-2337.29,Dimensions (Uk) Ltd,Care Establishment,4 - Operations - Providers services,LDP South Cambs - Special Needs,Supported Living
Cambridgeshire County Council,07-Dec-17,24881443-16488779,-2337.29,Dimensions (Uk) Ltd,Care Establishment,4 - Operations - Providers services,LDP South Cambs - Special Needs,Supported Living
Cambridgeshire County Council,07-Dec-17,24881446-16488782,-2337.29,Dimensions (Uk) Ltd,Care Establishment,4 - Operations - Providers services,LDP Cambs City - Special Needs,Supported Living
Cambridgeshire County Council,07-Dec-17,24991353-16488863,-2337.29,Dimensions (Uk) Ltd,Care Establishment,4 - Operations - Providers services,LDP Cambs City - Special Needs,Supported Living
Cambridgeshire County Council,07-Dec-17,24831004-16488723,-2337.29,Dimensions (Uk) Ltd,Care Establishment,4 - Operations - Providers services,LDP Cambs City - Special Needs,Supported Living
Cambridgeshire County Council,07-Dec-17,24881451-16488787,-2337.29,Dimensions (Uk) Ltd,Care Establishment,4 - Operations - Providers services,LDP Cambs City - Special Needs,Supported Living
Cambridgeshire County Council,07-Dec-17,24881452-16488788,-2337.29,Dimensions (Uk) Ltd,Care Establishment,4 - Operations - Providers services,LDP South Cambs - Special Needs,Supported Living
Cambridgeshire County Council,07-Dec-17,24824739-16488711,-2337.29,Dimensions (Uk) Ltd,Care Establishment,4 - Operations - Providers services,LDP Cambs City - Special Needs,Supported Living
Cambridgeshire County Council,07-Dec-17,24831001-16488720,-2337.29,Dimensions (Uk) Ltd,Care Establishment,4 - Operations - Providers services,LDP South Cambs - Special Needs,Supported Living
Cambridgeshire County Council,07-Dec-17,24856879-16488732,-2337.29,Dimensions (Uk) Ltd,Care Establishment,4 - Operations - Providers services,LDP Cambs City - Special Needs,Supported Living
Cambridgeshire County Council,07-Dec-17,24830997-16488716,-2337.29,Dimensions (Uk) Ltd,Care Establishment,4 - Operations - Providers services,LDP Cambs City - Special Needs,Supported Living
Cambridgeshire County Council,07-Dec-17,24856877-16488730,-2337.29,Dimensions (Uk) Ltd,Care Establishment,4 - Operations - Providers services,LDP Cambs City - Special Needs,Supported Living
Cambridgeshire County Council,07-Dec-17,24856884-16488737,-2337.29,Dimensions (Uk) Ltd,Care Establishment,4 - Operations - Providers services,LDP Cambs City - Special Needs,Supported Living
Cambridgeshire County Council,07-Dec-17,24991345-16488861,-2337.29,Dimensions (Uk) Ltd,Care Establishment,4 - Operations - Providers services,LDP Cambs City - Special Needs,Supported Living
Cambridgeshire County Council,07-Dec-17,24856876-16488729,-2337.29,Dimensions (Uk) Ltd,Care Establishment,4 - Operations - Providers services,LDP South Cambs - Special Needs,Supported Living
Cambridgeshire County Council,07-Dec-17,24856889-16488742,-2337.29,Dimensions (Uk) Ltd,Care Establishment,4 - Operations - Providers services,LDP Cambs City - Special Needs,Supported Living
Cambridgeshire County Council,07-Dec-17,24881449-16488785,-2337.29,Dimensions (Uk) Ltd,Care Establishment,4 - Operations - Providers services,LDP South Cambs - Special Needs,Supported Living
Cambridgeshire County Council,07-Dec-17,24991358-16488865,-2337.29,Dimensions (Uk) Ltd,Care Establishment,4 - Operations - Providers services,LDP Cambs City - Special Needs,Supported Living
Cambridgeshire County Council,07-Dec-17,24856882-16488735,-2337.29,Dimensions (Uk) Ltd,Care Establishment,4 - Operations - Providers services,LDP South Cambs - Special Needs,Supported Living
Cambridgeshire County Council,07-Dec-17,24856883-16488736,-2337.29,Dimensions (Uk) Ltd,Care Establishment,4 - Operations - Providers services,LDP South Cambs - Special Needs,Supported Living
Cambridgeshire County Council,07-Dec-17,24881454-16488790,-2337.29,Dimensions (Uk) Ltd,Care Establishment,4 - Operations - Providers services,LDP South Cambs - Special Needs,Supported Living
Cambridgeshire County Council,07-Dec-17,24991339-16488858,-2337.29,Dimensions (Uk) Ltd,Care Establishment,4 - Operations - Providers services,LDP South Cambs - Special Needs,Supported Living
Cambridgeshire County Council,07-Dec-17,24991401-16488878,-2337.29,Dimensions (Uk) Ltd,Care Establishment,4 - Operations - Providers services,LDP South Cambs - Special Needs,Supported Living
Cambridgeshire County Council,21-Dec-17,25247494-16552643,-2126.74,Decoy Farm,Care Establishment,4 - Operations - Providers services,LDP E Cambs Special Needs,Residential Independent Sector
Cambridgeshire County Council,15-Dec-17,25194295-16521461,-2126.74,Decoy Farm,Care Establishment,4 - Operations - Providers services,LDP E Cambs Special Needs,Residential Independent Sector
Cambridgeshire County Council,28-Dec-17,25267867-16573753,-2126.74,Decoy Farm,Care Establishment,4 - Operations - Providers services,LDP E Cambs Special Needs,Residential Independent Sector
Cambridgeshire County Council,15-Dec-17,24980544-16521187,-2126.74,Decoy Farm,Care Establishment,4 - Operations - Providers services,LDP E Cambs Special Needs,Residential Independent Sector
Cambridgeshire County Council,28-Dec-17,24448985-16573929,-2030.1,St Georges,Care Establishment,4 - Operations - Providers services,LDP Huntingdonshire Locality - Care,Residential Independent Sector
Cambridgeshire County Council,28-Dec-17,24448992-16573934,-2030.1,St Georges,Care Establishment,4 - Operations - Providers services,LDP Huntingdonshire Locality - Care,Residential Independent Sector
Cambridgeshire County Council,28-Dec-17,24449007-16573944,-2030.1,St Georges,Care Establishment,4 - Operations - Providers services,LDP Huntingdonshire Locality - Care,Residential Independent Sector
Cambridgeshire County Council,28-Dec-17,24448952-16573923,-2030.1,St Georges,Care Establishment,4 - Operations - Providers services,LDP Huntingdonshire Locality - Care,Residential Independent Sector
Cambridgeshire County Council,28-Dec-17,24448993-16573935,-2030.1,St Georges,Care Establishment,4 - Operations - Providers services,LDP Huntingdonshire Locality - Care,Residential Independent Sector
Cambridgeshire County Council,28-Dec-17,24448997-16573938,-2030.1,St Georges,Care Establishment,4 - Operations - Providers services,LDP Huntingdonshire Locality - Care,Residential Independent Sector
Cambridgeshire County Council,28-Dec-17,24449009-16573946,-2030.1,St Georges,Care Establishment,4 - Operations - Providers services,LDP Huntingdonshire Locality - Care,Residential Independent Sector
Cambridgeshire County Council,28-Dec-17,24449015-16573951,-2030.1,St Georges,Care Establishment,4 - Operations - Providers services,LDP Huntingdonshire Locality - Care,Residential Independent Sector
Cambridgeshire County Council,28-Dec-17,24449014-16573950,-2030.1,St Georges,Care Establishment,4 - Operations - Providers services,LDP Huntingdonshire Locality - Care,Residential Independent Sector
Cambridgeshire County Council,28-Dec-17,24449018-16573952,-2030.1,St Georges,Care Establishment,4 - Operations - Providers services,LDP Huntingdonshire Locality - Care,Residential Independent Sector
Cambridgeshire County Council,28-Dec-17,24448956-16573901,-2030.1,St Georges,Care Establishment,4 - Operations - Providers services,LDP Huntingdonshire Locality - Care,Residential Independent Sector
Cambridgeshire County Council,28-Dec-17,24448967-16573910,-2030.1,St Georges,Care Establishment,4 - Operations - Providers services,LDP Huntingdonshire Locality - Care,Residential Independent Sector
Cambridgeshire County Council,28-Dec-17,24448986-16573930,-2030.1,St Georges,Care Establishment,4 - Operations - Providers services,LDP Huntingdonshire Locality - Care,Residential Independent Sector
Cambridgeshire County Council,28-Dec-17,24449012-16573948,-2030.1,St Georges,Care Establishment,4 - Operations - Providers services,LDP Huntingdonshire Locality - Care,Residential Independent Sector
Cambridgeshire County Council,28-Dec-17,24449022-16573955,-2030.1,St Georges,Care Establishment,4 - Operations - Providers services,LDP Huntingdonshire Locality - Care,Residential Independent Sector
Cambridgeshire County Council,28-Dec-17,24448962-16573906,-2030.1,St Georges,Care Establishment,4 - Operations - Providers services,LDP Huntingdonshire Locality - Care,Residential Independent Sector
Cambridgeshire County Council,28-Dec-17,24448977-16573917,-2030.1,St Georges,Care Establishment,4 - Operations - Providers services,LDP Huntingdonshire Locality - Care,Residential Independent Sector
Cambridgeshire County Council,28-Dec-17,24448984-16573928,-2030.1,St Georges,Care Establishment,4 - Operations - Providers services,LDP Huntingdonshire Locality - Care,Residential Independent Sector
Cambridgeshire County Council,28-Dec-17,24449023-16573956,-2030.1,St Georges,Care Establishment,4 - Operations - Providers services,LDP Huntingdonshire Locality - Care,Residential Independent Sector
Cambridgeshire County Council,28-Dec-17,24448971-16573914,-2030.1,St Georges,Care Establishment,4 - Operations - Providers services,LDP Huntingdonshire Locality - Care,Residential Independent Sector
Cambridgeshire County Council,28-Dec-17,24448987-16573931,-2030.1,St Georges,Care Establishment,4 - Operations - Providers services,LDP Huntingdonshire Locality - Care,Residential Independent Sector
Cambridgeshire County Council,28-Dec-17,24448988-16573932,-2030.1,St Georges,Care Establishment,4 - Operations - Providers services,LDP Huntingdonshire Locality - Care,Residential Independent Sector
Cambridgeshire County Council,28-Dec-17,24449002-16573941,-2030.1,St Georges,Care Establishment,4 - Operations - Providers services,LDP Huntingdonshire Locality - Care,Residential Independent Sector
Cambridgeshire County Council,07-Dec-17,24989383-16465613,-1951.13,Westminster Homecare Limited,Care Establishment,4 - Operations - Providers services,LDP E Cambs Locality - Care,Day and Domicillary Care Independent Sector
Cambridgeshire County Council,07-Dec-17,24989368-16465647,-1951.13,Westminster Homecare Limited,Care Establishment,4 - Operations - Providers services,LDP E Cambs Locality - Care,Day and Domicillary Care Independent Sector
Cambridgeshire County Council,07-Dec-17,24989375-16465606,-1951.13,Westminster Homecare Limited,Care Establishment,4 - Operations - Providers services,LDP E Cambs Locality - Care,Day and Domicillary Care Independent Sector
Cambridgeshire County Council,07-Dec-17,24989381-16465611,-1951.13,Westminster Homecare Limited,Care Establishment,4 - Operations - Providers services,LDP E Cambs Locality - Care,Day and Domicillary Care Independent Sector
Cambridgeshire County Council,07-Dec-17,24989362-16465641,-1951.13,Westminster Homecare Limited,Care Establishment,4 - Operations - Providers services,LDP E Cambs Locality - Care,Day and Domicillary Care Independent Sector
Cambridgeshire County Council,07-Dec-17,24996051-16466225,-1951.13,Westminster Homecare Limited,Care Establishment,4 - Operations - Providers services,LDP E Cambs Locality - Care,Day and Domicillary Care Independent Sector
Cambridgeshire County Council,07-Dec-17,24996054-16466227,-1951.13,Westminster Homecare Limited,Care Establishment,4 - Operations - Providers services,LDP E Cambs Locality - Care,Day and Domicillary Care Independent Sector
Cambridgeshire County Council,07-Dec-17,24989390-16465618,-1951.13,Westminster Homecare Limited,Care Establishment,4 - Operations - Providers services,LDP E Cambs Locality - Care,Day and Domicillary Care Independent Sector
Cambridgeshire County Council,07-Dec-17,24989399-16465627,-1951.13,Westminster Homecare Limited,Care Establishment,4 - Operations - Providers services,LDP E Cambs Locality - Care,Day and Domicillary Care Independent Sector
Cambridgeshire County Council,07-Dec-17,24989366-16465645,-1951.13,Westminster Homecare Limited,Care Establishment,4 - Operations - Providers services,LDP E Cambs Locality - Care,Day and Domicillary Care Independent Sector
Cambridgeshire County Council,07-Dec-17,24996052-16466226,-1951.13,Westminster Homecare Limited,Care Establishment,4 - Operations - Providers services,LDP E Cambs Locality - Care,Day and Domicillary Care Independent Sector
Cambridgeshire County Council,07-Dec-17,24996033-16466233,-1951.13,Westminster Homecare Limited,Care Establishment,4 - Operations - Providers services,LDP E Cambs Locality - Care,Day and Domicillary Care Independent Sector
Cambridgeshire County Council,07-Dec-17,24989373-16465604,-1951.13,Westminster Homecare Limited,Care Establishment,4 - Operations - Providers services,LDP E Cambs Locality - Care,Day and Domicillary Care Independent Sector
Cambridgeshire County Council,07-Dec-17,24989393-16465621,-1951.13,Westminster Homecare Limited,Care Establishment,4 - Operations - Providers services,LDP E Cambs Locality - Care,Day and Domicillary Care Independent Sector
Cambridgeshire County Council,07-Dec-17,24989356-16465635,-1951.13,Westminster Homecare Limited,Care Establishment,4 - Operations - Providers services,LDP E Cambs Locality - Care,Day and Domicillary Care Independent Sector
Cambridgeshire County Council,07-Dec-17,24989358-16465637,-1951.13,Westminster Homecare Limited,Care Establishment,4 - Operations - Providers services,LDP E Cambs Locality - Care,Day and Domicillary Care Independent Sector
Cambridgeshire County Council,07-Dec-17,24989369-16465648,-1951.13,Westminster Homecare Limited,Care Establishment,4 - Operations - Providers services,LDP E Cambs Locality - Care,Day and Domicillary Care Independent Sector
Cambridgeshire County Council,07-Dec-17,24989377-16465608,-1951.13,Westminster Homecare Limited,Care Establishment,4 - Operations - Providers services,LDP E Cambs Locality - Care,Day and Domicillary Care Independent Sector
Cambridgeshire County Council,07-Dec-17,24989396-16465624,-1951.13,Westminster Homecare Limited,Care Establishment,4 - Operations - Providers services,LDP E Cambs Locality - Care,Day and Domicillary Care Independent Sector
Cambridgeshire County Council,07-Dec-17,24989360-16465639,-1951.13,Westminster Homecare Limited,Care Establishment,4 - Operations - Providers services,LDP E Cambs Locality - Care,Day and Domicillary Care Independent Sector
Cambridgeshire County Council,07-Dec-17,24996038-16466212,-1951.13,Westminster Homecare Limited,Care Establishment,4 - Operations - Providers services,LDP E Cambs Locality - Care,Day and Domicillary Care Independent Sector
Cambridgeshire County Council,07-Dec-17,24989376-16465607,-1951.13,Westminster Homecare Limited,Care Establishment,4 - Operations - Providers services,LDP E Cambs Locality - Care,Day and Domicillary Care Independent Sector
Cambridgeshire County Council,07-Dec-17,24989392-16465620,-1951.13,Westminster Homecare Limited,Care Establishment,4 - Operations - Providers services,LDP E Cambs Locality - Care,Day and Domicillary Care Independent Sector
Cambridgeshire County Council,07-Dec-17,24989402-16465630,-1951.13,Westminster Homecare Limited,Care Establishment,4 - Operations - Providers services,LDP E Cambs Locality - Care,Day and Domicillary Care Independent Sector
Cambridgeshire County Council,07-Dec-17,24996042-16466216,-1951.13,Westminster Homecare Limited,Care Establishment,4 - Operations - Providers services,LDP E Cambs Locality - Care,Day and Domicillary Care Independent Sector
Cambridgeshire County Council,07-Dec-17,24996043-16466217,-1951.13,Westminster Homecare Limited,Care Establishment,4 - Operations - Providers services,LDP E Cambs Locality - Care,Day and Domicillary Care Independent Sector
Cambridgeshire County Council,07-Dec-17,24989385-16465615,-1951.13,Westminster Homecare Limited,Care Establishment,4 - Operations - Providers services,LDP E Cambs Locality - Care,Day and Domicillary Care Independent Sector
Cambridgeshire County Council,07-Dec-17,24989359-16465638,-1951.13,Westminster Homecare Limited,Care Establishment,4 - Operations - Providers services,LDP E Cambs Locality - Care,Day and Domicillary Care Independent Sector
Cambridgeshire County Council,07-Dec-17,24989370-16465649,-1951.13,Westminster Homecare Limited,Care Establishment,4 - Operations - Providers services,LDP E Cambs Locality - Care,Day and Domicillary Care Independent Sector
Cambridgeshire County Council,07-Dec-17,24996046-16466220,-1951.13,Westminster Homecare Limited,Care Establishment,4 - Operations - Providers services,LDP E Cambs Locality - Care,Day and Domicillary Care Independent Sector
Cambridgeshire County Council,07-Dec-17,24996047-16466221,-1951.13,Westminster Homecare Limited,Care Establishment,4 - Operations - Providers services,LDP E Cambs Locality - Care,Day and Domicillary Care Independent Sector
Cambridgeshire County Council,07-Dec-17,24996044-16466218,-1951.13,Westminster Homecare Limited,Care Establishment,4 - Operations - Providers services,LDP E Cambs Locality - Care,Day and Domicillary Care Independent Sector
Cambridgeshire County Council,07-Dec-17,24980328-16464666,-1898.73,Westminster Homecare Limited,Care Establishment,4 - Operations - Providers services,LDP E Cambs Locality - Care,Day and Domicillary Care Independent Sector
Cambridgeshire County Council,07-Dec-17,24987266-16465175,-1898.73,Westminster Homecare Limited,Care Establishment,4 - Operations - Providers services,LDP E Cambs Locality - Care,Day and Domicillary Care Independent Sector
Cambridgeshire County Council,07-Dec-17,24987286-16465270,-1898.73,Westminster Homecare Limited,Care Establishment,4 - Operations - Providers services,LDP E Cambs Locality - Care,Day and Domicillary Care Independent Sector
Cambridgeshire County Council,07-Dec-17,24980318-16464664,-1898.73,Westminster Homecare Limited,Care Establishment,4 - Operations - Providers services,LDP E Cambs Locality - Care,Day and Domicillary Care Independent Sector
Cambridgeshire County Council,07-Dec-17,24980330-16464668,-1898.73,Westminster Homecare Limited,Care Establishment,4 - Operations - Providers services,LDP E Cambs Locality - Care,Day and Domicillary Care Independent Sector
Cambridgeshire County Council,07-Dec-17,24980331-16464669,-1898.73,Westminster Homecare Limited,Care Establishment,4 - Operations - Providers services,LDP E Cambs Locality - Care,Day and Domicillary Care Independent Sector
Cambridgeshire County Council,07-Dec-17,24980339-16464671,-1898.73,Westminster Homecare Limited,Care Establishment,4 - Operations - Providers services,LDP E Cambs Locality - Care,Day and Domicillary Care Independent Sector
Cambridgeshire County Council,07-Dec-17,24987392-16465302,-1898.73,Westminster Homecare Limited,Care Establishment,4 - Operations - Providers services,LDP E Cambs Locality - Care,Day and Domicillary Care Independent Sector
Cambridgeshire County Council,07-Dec-17,25000267-16466465,-1898.73,Westminster Homecare Limited,Care Establishment,4 - Operations - Providers services,LDP E Cambs Locality - Care,Day and Domicillary Care Independent Sector
Cambridgeshire County Council,07-Dec-17,24980314-16464660,-1898.73,Westminster Homecare Limited,Care Establishment,4 - Operations - Providers services,LDP E Cambs Locality - Care,Day and Domicillary Care Independent Sector
Cambridgeshire County Council,07-Dec-17,24980315-16464661,-1898.73,Westminster Homecare Limited,Care Establishment,4 - Operations - Providers services,LDP E Cambs Locality - Care,Day and Domicillary Care Independent Sector
Cambridgeshire County Council,07-Dec-17,24980316-16464662,-1898.73,Westminster Homecare Limited,Care Establishment,4 - Operations - Providers services,LDP E Cambs Locality - Care,Day and Domicillary Care Independent Sector
Cambridgeshire County Council,07-Dec-17,24987387-16465297,-1898.73,Westminster Homecare Limited,Care Establishment,4 - Operations - Providers services,LDP E Cambs Locality - Care,Day and Domicillary Care Independent Sector
Cambridgeshire County Council,07-Dec-17,24980369-16464681,-1898.73,Westminster Homecare Limited,Care Establishment,4 - Operations - Providers services,LDP E Cambs Locality - Care,Day and Domicillary Care Independent Sector
Cambridgeshire County Council,07-Dec-17,24980371-16464683,-1898.73,Westminster Homecare Limited,Care Establishment,4 - Operations - Providers services,LDP E Cambs Locality - Care,Day and Domicillary Care Independent Sector
Cambridgeshire County Council,07-Dec-17,24987255-16465172,-1898.73,Westminster Homecare Limited,Care Establishment,4 - Operations - Providers services,LDP E Cambs Locality - Care,Day and Domicillary Care Independent Sector
Cambridgeshire County Council,07-Dec-17,24987271-16465180,-1898.73,Westminster Homecare Limited,Care Establishment,4 - Operations - Providers services,LDP E Cambs Locality - Care,Day and Domicillary Care Independent Sector
Cambridgeshire County Council,07-Dec-17,24987358-16465288,-1898.73,Westminster Homecare Limited,Care Establishment,4 - Operations - Providers services,LDP E Cambs Locality - Care,Day and Domicillary Care Independent Sector
Cambridgeshire County Council,07-Dec-17,24987389-16465299,-1898.73,Westminster Homecare Limited,Care Establishment,4 - Operations - Providers services,LDP E Cambs Locality - Care,Day and Domicillary Care Independent Sector
Cambridgeshire County Council,07-Dec-17,24994424-16466081,-1898.73,Westminster Homecare Limited,Care Establishment,4 - Operations - Providers services,LDP E Cambs Locality - Care,Day and Domicillary Care Independent Sector
Cambridgeshire County Council,07-Dec-17,24994434-16466083,-1898.73,Westminster Homecare Limited,Care Establishment,4 - Operations - Providers services,LDP E Cambs Locality - Care,Day and Domicillary Care Independent Sector
Cambridgeshire County Council,07-Dec-17,24987276-16465185,-1898.73,Westminster Homecare Limited,Care Establishment,4 - Operations - Providers services,LDP E Cambs Locality - Care,Day and Domicillary Care Independent Sector
Cambridgeshire County Council,07-Dec-17,24987329-16465281,-1898.73,Westminster Homecare Limited,Care Establishment,4 - Operations - Providers services,LDP E Cambs Locality - Care,Day and Domicillary Care Independent Sector
Cambridgeshire County Council,07-Dec-17,24980304-16464657,-1898.73,Westminster Homecare Limited,Care Establishment,4 - Operations - Providers services,LDP E Cambs Locality - Care,Day and Domicillary Care Independent Sector
Cambridgeshire County Council,07-Dec-17,24980329-16464667,-1898.73,Westminster Homecare Limited,Care Establishment,4 - Operations - Providers services,LDP E Cambs Locality - Care,Day and Domicillary Care Independent Sector
Cambridgeshire County Council,07-Dec-17,24987254-16465171,-1898.73,Westminster Homecare Limited,Care Establishment,4 - Operations - Providers services,LDP E Cambs Locality - Care,Day and Domicillary Care Independent Sector
Cambridgeshire County Council,07-Dec-17,24987357-16465287,-1898.73,Westminster Homecare Limited,Care Establishment,4 - Operations - Providers services,LDP E Cambs Locality - Care,Day and Domicillary Care Independent Sector
Cambridgeshire County Council,07-Dec-17,24987268-16465177,-1898.73,Westminster Homecare Limited,Care Establishment,4 - Operations - Providers services,LDP E Cambs Locality - Care,Day and Domicillary Care Independent Sector
Cambridgeshire County Council,07-Dec-17,24987321-16465279,-1898.73,Westminster Homecare Limited,Care Establishment,4 - Operations - Providers services,LDP E Cambs Locality - Care,Day and Domicillary Care Independent Sector
Cambridgeshire County Council,07-Dec-17,24987356-16465286,-1898.73,Westminster Homecare Limited,Care Establishment,4 - Operations - Providers services,LDP E Cambs Locality - Care,Day and Domicillary Care Independent Sector
Cambridgeshire County Council,07-Dec-17,24987256-16465173,-1898.73,Westminster Homecare Limited,Care Establishment,4 - Operations - Providers services,LDP E Cambs Locality - Care,Day and Domicillary Care Independent Sector
Cambridgeshire County Council,07-Dec-17,24987273-16465182,-1898.73,Westminster Homecare Limited,Care Establishment,4 - Operations - Providers services,LDP E Cambs Locality - Care,Day and Domicillary Care Independent Sector
Cambridgeshire County Council,15-Dec-17,25198359-16528015,-1858.24,Conquest Care Homes Peterborough,Care Establishment,2 - Operations - Learning Disability,LDP Hunts special needs,Residential Independent Sector
Cambridgeshire County Council,15-Dec-17,25198362-16528018,-1858.24,Conquest Care Homes Peterborough,Care Establishment,2 - Operations - Learning Disability,LDP Hunts special needs,Residential Independent Sector
Cambridgeshire County Council,15-Dec-17,25198370-16528023,-1858.24,Conquest Care Homes Peterborough,Care Establishment,2 - Operations - Learning Disability,LDP Hunts special needs,Residential Independent Sector
Cambridgeshire County Council,15-Dec-17,25198378-16528027,-1858.24,Conquest Care Homes Peterborough,Care Establishment,2 - Operations - Learning Disability,LDP Hunts special needs,Residential Independent Sector
Cambridgeshire County Council,15-Dec-17,25198376-16528025,-1858.24,Conquest Care Homes Peterborough,Care Establishment,2 - Operations - Learning Disability,LDP Hunts special needs,Residential Independent Sector
Cambridgeshire County Council,15-Dec-17,25201588-16528044,-1858.24,Conquest Care Homes Peterborough,Care Establishment,2 - Operations - Learning Disability,LDP Hunts special needs,Residential Independent Sector
Cambridgeshire County Council,15-Dec-17,25198382-16528029,-1858.24,Conquest Care Homes Peterborough,Care Establishment,2 - Operations - Learning Disability,LDP Hunts special needs,Residential Independent Sector
Cambridgeshire County Council,15-Dec-17,25201593-16528047,-1858.24,Conquest Care Homes Peterborough,Care Establishment,2 - Operations - Learning Disability,LDP Hunts special needs,Residential Independent Sector
Cambridgeshire County Council,15-Dec-17,25201594-16528048,-1858.24,Conquest Care Homes Peterborough,Care Establishment,2 - Operations - Learning Disability,LDP Hunts special needs,Residential Independent Sector
Cambridgeshire County Council,05-Dec-17,24946393-16454369,-1857.14,Barchester Healthcare,Care Establishment,2 - Operations - Learning Disability,Countywide PD Service - Care,Respite Independent Sector
Cambridgeshire County Council,07-Dec-17,24859545-16488657,-1838,Coldwell Villa,Care Establishment,6 - Commissioning - Quality & Transformation,Autism and Adult Support Team - Care,Day and Domicillary Care Independent Sector
Cambridgeshire County Council,07-Dec-17,24859552-16488664,-1838,Coldwell Villa,Care Establishment,6 - Commissioning - Quality & Transformation,Autism and Adult Support Team - Care,Day and Domicillary Care Independent Sector
Cambridgeshire County Council,07-Dec-17,24859549-16488661,-1838,Coldwell Villa,Care Establishment,6 - Commissioning - Quality & Transformation,Autism and Adult Support Team - Care,Day and Domicillary Care Independent Sector
Cambridgeshire County Council,07-Dec-17,24859553-16488665,-1838,Coldwell Villa,Care Establishment,6 - Commissioning - Quality & Transformation,Autism and Adult Support Team - Care,Day and Domicillary Care Independent Sector
Cambridgeshire County Council,07-Dec-17,24859554-16488666,-1838,Coldwell Villa,Care Establishment,6 - Commissioning - Quality & Transformation,Autism and Adult Support Team - Care,Day and Domicillary Care Independent Sector
Cambridgeshire County Council,07-Dec-17,24859555-16488667,-1838,Coldwell Villa,Care Establishment,6 - Commissioning - Quality & Transformation,Autism and Adult Support Team - Care,Day and Domicillary Care Independent Sector
Cambridgeshire County Council,07-Dec-17,24859539-16488651,-1838,Coldwell Villa,Care Establishment,6 - Commissioning - Quality & Transformation,Autism and Adult Support Team - Care,Day and Domicillary Care Independent Sector
Cambridgeshire County Council,07-Dec-17,24859541-16488653,-1838,Coldwell Villa,Care Establishment,6 - Commissioning - Quality & Transformation,Autism and Adult Support Team - Care,Day and Domicillary Care Independent Sector
Cambridgeshire County Council,07-Dec-17,24859542-16488654,-1838,Coldwell Villa,Care Establishment,6 - Commissioning - Quality & Transformation,Autism and Adult Support Team - Care,Day and Domicillary Care Independent Sector
Cambridgeshire County Council,07-Dec-17,24859544-16488656,-1838,Coldwell Villa,Care Establishment,6 - Commissioning - Quality & Transformation,Autism and Adult Support Team - Care,Day and Domicillary Care Independent Sector
Cambridgeshire County Council,07-Dec-17,24859546-16488658,-1838,Coldwell Villa,Care Establishment,6 - Commissioning - Quality & Transformation,Autism and Adult Support Team - Care,Day and Domicillary Care Independent Sector
Cambridgeshire County Council,07-Dec-17,24859547-16488659,-1838,Coldwell Villa,Care Establishment,6 - Commissioning - Quality & Transformation,Autism and Adult Support Team - Care,Day and Domicillary Care Independent Sector
Cambridgeshire County Council,07-Dec-17,24859540-16488652,-1838,Coldwell Villa,Care Establishment,6 - Commissioning - Quality & Transformation,Autism and Adult Support Team - Care,Day and Domicillary Care Independent Sector
Cambridgeshire County Council,07-Dec-17,24859543-16488655,-1838,Coldwell Villa,Care Establishment,6 - Commissioning - Quality & Transformation,Autism and Adult Support Team - Care,Day and Domicillary Care Independent Sector
Cambridgeshire County Council,07-Dec-17,24859548-16488660,-1838,Coldwell Villa,Care Establishment,6 - Commissioning - Quality & Transformation,Autism and Adult Support Team - Care,Day and Domicillary Care Independent Sector
Cambridgeshire County Council,07-Dec-17,24859550-16488662,-1838,Coldwell Villa,Care Establishment,6 - Commissioning - Quality & Transformation,Autism and Adult Support Team - Care,Day and Domicillary Care Independent Sector
Cambridgeshire County Council,07-Dec-17,24859556-16488668,-1838,Coldwell Villa,Care Establishment,6 - Commissioning - Quality & Transformation,Autism and Adult Support Team - Care,Day and Domicillary Care Independent Sector
Cambridgeshire County Council,15-Dec-17,24990201-16527346,-1809.18,Alderton House,Care Establishment,Corporate Services,LDP Young Adults - Care,Residential Independent Sector
Cambridgeshire County Council,15-Dec-17,24990242-16527432,-1809.18,Alderton House,Care Establishment,Corporate Services,LDP Young Adults - Care,Residential Independent Sector
Cambridgeshire County Council,07-Dec-17,24855898-16487979,-1797.78,Pauline Burnett House,Care Establishment,4 - Operations - Providers services,LDP City Locality - Care,Residential Independent Sector
Cambridgeshire County Council,07-Dec-17,24855916-16487997,-1797.78,Pauline Burnett House,Care Establishment,4 - Operations - Providers services,LDP City Locality - Care,Residential Independent Sector
Cambridgeshire County Council,07-Dec-17,24863894-16488197,-1797.78,Pauline Burnett House,Care Establishment,4 - Operations - Providers services,LDP City Locality - Care,Residential Independent Sector
Cambridgeshire County Council,07-Dec-17,24855959-16488040,-1797.78,Pauline Burnett House,Care Establishment,4 - Operations - Providers services,LDP City Locality - Care,Residential Independent Sector
Cambridgeshire County Council,07-Dec-17,24863912-16488215,-1797.78,Pauline Burnett House,Care Establishment,4 - Operations - Providers services,LDP City Locality - Care,Residential Independent Sector
Cambridgeshire County Council,07-Dec-17,24855892-16487973,-1797.78,Pauline Burnett House,Care Establishment,4 - Operations - Providers services,LDP City Locality - Care,Residential Independent Sector
Cambridgeshire County Council,07-Dec-17,24863903-16488206,-1797.78,Pauline Burnett House,Care Establishment,4 - Operations - Providers services,LDP City Locality - Care,Residential Independent Sector
Cambridgeshire County Council,07-Dec-17,24855949-16488030,-1797.78,Pauline Burnett House,Care Establishment,4 - Operations - Providers services,LDP City Locality - Care,Residential Independent Sector
Cambridgeshire County Council,07-Dec-17,24877516-16470778,-1759.5,The Brambles (Soham) Ltd,Care Establishment,4 - Operations - Providers services,LDP E Cambs Special Needs,Residential Independent Sector
Cambridgeshire County Council,07-Dec-17,24877517-16470779,-1759.5,The Brambles (Soham) Ltd,Care Establishment,4 - Operations - Providers services,LDP E Cambs Special Needs,Residential Independent Sector
Cambridgeshire County Council,29-Dec-17,25185111-16578626,-1740.27,Midas Care Ltd,Care Establishment,2 - Commissioning - Older people Pool,City and South - Dom Blocks,Day and Domicillary Care Independent Sector
Cambridgeshire County Council,29-Dec-17,25186445-16578627,-1740.27,Midas Care Ltd,Care Establishment,2 - Commissioning - Older people Pool,City and South - Dom Blocks,Day and Domicillary Care Independent Sector
Cambridgeshire County Council,29-Dec-17,25166991-16578617,-1740.27,Midas Care Ltd,Care Establishment,2 - Commissioning - Older people Pool,City and South - Dom Blocks,Day and Domicillary Care Independent Sector
Cambridgeshire County Council,29-Dec-17,25166995-16578619,-1740.27,Midas Care Ltd,Care Establishment,2 - Commissioning - Older people Pool,City and South - Dom Blocks,Day and Domicillary Care Independent Sector
Cambridgeshire County Council,29-Dec-17,25166993-16578618,-1740.27,Midas Care Ltd,Care Establishment,2 - Commissioning - Older people Pool,City and South - Dom Blocks,Day and Domicillary Care Independent Sector
Cambridgeshire County Council,29-Dec-17,25185110-16578625,-1740.27,Midas Care Ltd,Care Establishment,2 - Commissioning - Older people Pool,City and South - Dom Blocks,Day and Domicillary Care Independent Sector
Cambridgeshire County Council,29-Dec-17,25166996-16578620,-1740.27,Midas Care Ltd,Care Establishment,2 - Commissioning - Older people Pool,City and South - Dom Blocks,Day and Domicillary Care Independent Sector
Cambridgeshire County Council,29-Dec-17,25186797-16578628,-1740.27,Midas Care Ltd,Care Establishment,2 - Commissioning - Older people Pool,City and South - Dom Blocks,Day and Domicillary Care Independent Sector
Cambridgeshire County Council,07-Dec-17,24830702-16470255,-1711.36,Affinity Trust,Care Establishment,4 - Operations - Providers services,LDP Fens - Special Needs,Supported Living
Cambridgeshire County Council,07-Dec-17,24830716-16470269,-1711.36,Affinity Trust,Care Establishment,4 - Operations - Providers services,LDP Fens - Special Needs,Supported Living
Cambridgeshire County Council,07-Dec-17,24876494-16470323,-1711.36,Affinity Trust,Care Establishment,4 - Operations - Providers services,LDP Fens - Special Needs,Supported Living
Cambridgeshire County Council,07-Dec-17,24878009-16470345,-1711.36,Affinity Trust,Care Establishment,4 - Operations - Providers services,LDP Fens - Special Needs,Supported Living
Cambridgeshire County Council,07-Dec-17,24878010-16470346,-1711.36,Affinity Trust,Care Establishment,4 - Operations - Providers services,LDP Fens - Special Needs,Supported Living
Cambridgeshire County Council,07-Dec-17,24984528-16470384,-1711.36,Affinity Trust,Care Establishment,4 - Operations - Providers services,LDP Fens - Special Needs,Supported Living
Cambridgeshire County Council,07-Dec-17,24984533-16470389,-1711.36,Affinity Trust,Care Establishment,4 - Operations - Providers services,LDP Fens - Special Needs,Supported Living
Cambridgeshire County Council,07-Dec-17,24984541-16470397,-1711.36,Affinity Trust,Care Establishment,4 - Operations - Providers services,LDP Fens - Special Needs,Supported Living
Cambridgeshire County Council,15-Dec-17,25197716-16527087,-1711.36,Affinity Trust,Care Establishment,4 - Operations - Providers services,LDP Fens - Special Needs,Supported Living
Cambridgeshire County Council,07-Dec-17,24830701-16470254,-1711.36,Affinity Trust,Care Establishment,4 - Operations - Providers services,LDP Fens - Special Needs,Supported Living
Cambridgeshire County Council,07-Dec-17,24876493-16470322,-1711.36,Affinity Trust,Care Establishment,2 - Operations - Learning Disability,LDP Fenland Locality - Care,Supported Living
Cambridgeshire County Council,07-Dec-17,24984527-16470383,-1711.36,Affinity Trust,Care Establishment,2 - Operations - Learning Disability,LDP Fenland Locality - Care,Supported Living
Cambridgeshire County Council,07-Dec-17,24984553-16470409,-1711.36,Affinity Trust,Care Establishment,4 - Operations - Providers services,LDP Fens - Special Needs,Supported Living
Cambridgeshire County Council,07-Dec-17,24984554-16470410,-1711.36,Affinity Trust,Care Establishment,4 - Operations - Providers services,LDP Fens - Special Needs,Supported Living
Cambridgeshire County Council,15-Dec-17,25197712-16527083,-1711.36,Affinity Trust,Care Establishment,2 - Operations - Learning Disability,LDP Fenland Locality - Care,Supported Living
Cambridgeshire County Council,15-Dec-17,25197713-16527084,-1711.36,Affinity Trust,Care Establishment,4 - Operations - Providers services,LDP Fens - Special Needs,Supported Living
Cambridgeshire County Council,15-Dec-17,25197722-16527093,-1711.36,Affinity Trust,Care Establishment,2 - Operations - Learning Disability,LDP Fenland Locality - Care,Supported Living
Cambridgeshire County Council,15-Dec-17,25197727-16527098,-1711.36,Affinity Trust,Care Establishment,4 - Operations - Providers services,LDP Fens - Special Needs,Supported Living
Cambridgeshire County Council,15-Dec-17,25197729-16527100,-1711.36,Affinity Trust,Care Establishment,4 - Operations - Providers services,LDP Fens - Special Needs,Supported Living
Cambridgeshire County Council,07-Dec-17,24859592-16470285,-1711.36,Affinity Trust,Care Establishment,4 - Operations - Providers services,LDP Fens - Special Needs,Supported Living
Cambridgeshire County Council,07-Dec-17,24859617-16470310,-1711.36,Affinity Trust,Care Establishment,2 - Operations - Learning Disability,LDP Fenland Locality - Care,Supported Living
Cambridgeshire County Council,07-Dec-17,24859619-16470312,-1711.36,Affinity Trust,Care Establishment,4 - Operations - Providers services,LDP Fens - Special Needs,Supported Living
Cambridgeshire County Council,07-Dec-17,24876489-16470318,-1711.36,Affinity Trust,Care Establishment,2 - Operations - Learning Disability,LDP Fenland Locality - Care,Supported Living
Cambridgeshire County Council,07-Dec-17,24877999-16470335,-1711.36,Affinity Trust,Care Establishment,4 - Operations - Providers services,LDP Fens - Special Needs,Supported Living
Cambridgeshire County Council,15-Dec-17,25197725-16527096,-1711.36,Affinity Trust,Care Establishment,4 - Operations - Providers services,LDP Fens - Special Needs,Supported Living
Cambridgeshire County Council,07-Dec-17,24832926-16470243,-1711.36,Affinity Trust,Care Establishment,4 - Operations - Providers services,LDP Fens - Special Needs,Supported Living
Cambridgeshire County Council,07-Dec-17,24830708-16470261,-1711.36,Affinity Trust,Care Establishment,2 - Operations - Learning Disability,LDP Fenland Locality - Care,Supported Living
Cambridgeshire County Council,07-Dec-17,24859601-16470294,-1711.36,Affinity Trust,Care Establishment,4 - Operations - Providers services,LDP Fens - Special Needs,Supported Living
Cambridgeshire County Council,07-Dec-17,24859602-16470295,-1711.36,Affinity Trust,Care Establishment,4 - Operations - Providers services,LDP Fens - Special Needs,Supported Living
Cambridgeshire County Council,07-Dec-17,24859608-16470301,-1711.36,Affinity Trust,Care Establishment,4 - Operations - Providers services,LDP Fens - Special Needs,Supported Living
Cambridgeshire County Council,07-Dec-17,24859613-16470306,-1711.36,Affinity Trust,Care Establishment,2 - Operations - Learning Disability,LDP Fenland Locality - Care,Supported Living
Cambridgeshire County Council,15-Dec-17,25197715-16527086,-1711.36,Affinity Trust,Care Establishment,4 - Operations - Providers services,LDP Fens - Special Needs,Supported Living
Cambridgeshire County Council,15-Dec-17,25197733-16527104,-1711.36,Affinity Trust,Care Establishment,2 - Operations - Learning Disability,LDP Fenland Locality - Care,Supported Living
Cambridgeshire County Council,15-Dec-17,25197741-16527112,-1711.36,Affinity Trust,Care Establishment,4 - Operations - Providers services,LDP Fens - Special Needs,Supported Living
Cambridgeshire County Council,07-Dec-17,24830717-16470270,-1711.36,Affinity Trust,Care Establishment,2 - Operations - Learning Disability,LDP Fenland Locality - Care,Supported Living
Cambridgeshire County Council,07-Dec-17,24830718-16470271,-1711.36,Affinity Trust,Care Establishment,4 - Operations - Providers services,LDP Fens - Special Needs,Supported Living
Cambridgeshire County Council,07-Dec-17,24830723-16470276,-1711.36,Affinity Trust,Care Establishment,4 - Operations - Providers services,LDP Fens - Special Needs,Supported Living
Cambridgeshire County Council,07-Dec-17,24859610-16470303,-1711.36,Affinity Trust,Care Establishment,2 - Operations - Learning Disability,LDP Fenland Locality - Care,Supported Living
Cambridgeshire County Council,07-Dec-17,24876491-16470320,-1711.36,Affinity Trust,Care Establishment,2 - Operations - Learning Disability,LDP Fenland Locality - Care,Supported Living
Cambridgeshire County Council,07-Dec-17,24878004-16470340,-1711.36,Affinity Trust,Care Establishment,2 - Operations - Learning Disability,LDP Fenland Locality - Care,Supported Living
Cambridgeshire County Council,07-Dec-17,24878011-16470347,-1711.36,Affinity Trust,Care Establishment,4 - Operations - Providers services,LDP Fens - Special Needs,Supported Living
Cambridgeshire County Council,07-Dec-17,24984532-16470388,-1711.36,Affinity Trust,Care Establishment,4 - Operations - Providers services,LDP Fens - Special Needs,Supported Living
Cambridgeshire County Council,07-Dec-17,24984535-16470391,-1711.36,Affinity Trust,Care Establishment,2 - Operations - Learning Disability,LDP Fenland Locality - Care,Supported Living
Cambridgeshire County Council,07-Dec-17,24984537-16470393,-1711.36,Affinity Trust,Care Establishment,2 - Operations - Learning Disability,LDP Fenland Locality - Care,Supported Living
Cambridgeshire County Council,15-Dec-17,25197710-16527081,-1711.36,Affinity Trust,Care Establishment,2 - Operations - Learning Disability,LDP Fenland Locality - Care,Supported Living
Cambridgeshire County Council,15-Dec-17,25197711-16527082,-1711.36,Affinity Trust,Care Establishment,4 - Operations - Providers services,LDP Fens - Special Needs,Supported Living
Cambridgeshire County Council,07-Dec-17,24830705-16470258,-1711.36,Affinity Trust,Care Establishment,4 - Operations - Providers services,LDP Fens - Special Needs,Supported Living
Cambridgeshire County Council,07-Dec-17,24830712-16470265,-1711.36,Affinity Trust,Care Establishment,4 - Operations - Providers services,LDP Fens - Special Needs,Supported Living
Cambridgeshire County Council,07-Dec-17,24984529-16470385,-1711.36,Affinity Trust,Care Establishment,4 - Operations - Providers services,LDP Fens - Special Needs,Supported Living
Cambridgeshire County Council,07-Dec-17,24984543-16470399,-1711.36,Affinity Trust,Care Establishment,2 - Operations - Learning Disability,LDP Fenland Locality - Care,Supported Living
Cambridgeshire County Council,15-Dec-17,25197718-16527089,-1711.36,Affinity Trust,Care Establishment,4 - Operations - Providers services,LDP Fens - Special Needs,Supported Living
Cambridgeshire County Council,15-Dec-17,25197721-16527092,-1711.36,Affinity Trust,Care Establishment,4 - Operations - Providers services,LDP Fens - Special Needs,Supported Living
Cambridgeshire County Council,07-Dec-17,24830703-16470256,-1711.36,Affinity Trust,Care Establishment,4 - Operations - Providers services,LDP Fens - Special Needs,Supported Living
Cambridgeshire County Council,07-Dec-17,24830709-16470262,-1711.36,Affinity Trust,Care Establishment,4 - Operations - Providers services,LDP Fens - Special Needs,Supported Living
Cambridgeshire County Council,07-Dec-17,24830727-16470280,-1711.36,Affinity Trust,Care Establishment,4 - Operations - Providers services,LDP Fens - Special Needs,Supported Living
Cambridgeshire County Council,07-Dec-17,24859594-16470287,-1711.36,Affinity Trust,Care Establishment,2 - Operations - Learning Disability,LDP Fenland Locality - Care,Supported Living
Cambridgeshire County Council,07-Dec-17,24859611-16470304,-1711.36,Affinity Trust,Care Establishment,4 - Operations - Providers services,LDP Fens - Special Needs,Supported Living
Cambridgeshire County Council,07-Dec-17,24859615-16470308,-1711.36,Affinity Trust,Care Establishment,2 - Operations - Learning Disability,LDP Fenland Locality - Care,Supported Living
Cambridgeshire County Council,07-Dec-17,24876490-16470319,-1711.36,Affinity Trust,Care Establishment,2 - Operations - Learning Disability,LDP Fenland Locality - Care,Supported Living
Cambridgeshire County Council,07-Dec-17,24876492-16470321,-1711.36,Affinity Trust,Care Establishment,4 - Operations - Providers services,LDP Fens - Special Needs,Supported Living
Cambridgeshire County Council,07-Dec-17,24876496-16470324,-1711.36,Affinity Trust,Care Establishment,2 - Operations - Learning Disability,LDP Fenland Locality - Care,Supported Living
Cambridgeshire County Council,07-Dec-17,24876499-16470326,-1711.36,Affinity Trust,Care Establishment,4 - Operations - Providers services,LDP Fens - Special Needs,Supported Living
Cambridgeshire County Council,07-Dec-17,24878006-16470342,-1711.36,Affinity Trust,Care Establishment,2 - Operations - Learning Disability,LDP Fenland Locality - Care,Supported Living
Cambridgeshire County Council,07-Dec-17,24984534-16470390,-1711.36,Affinity Trust,Care Establishment,2 - Operations - Learning Disability,LDP Fenland Locality - Care,Supported Living
Cambridgeshire County Council,07-Dec-17,24984536-16470392,-1711.36,Affinity Trust,Care Establishment,4 - Operations - Providers services,LDP Fens - Special Needs,Supported Living
Cambridgeshire County Council,07-Dec-17,24984540-16470396,-1711.36,Affinity Trust,Care Establishment,4 - Operations - Providers services,LDP Fens - Special Needs,Supported Living
Cambridgeshire County Council,07-Dec-17,24984558-16470414,-1711.36,Affinity Trust,Care Establishment,4 - Operations - Providers services,LDP Fens - Special Needs,Supported Living
Cambridgeshire County Council,15-Dec-17,25197731-16527102,-1711.36,Affinity Trust,Care Establishment,4 - Operations - Providers services,LDP Fens - Special Needs,Supported Living
Cambridgeshire County Council,15-Dec-17,25197738-16527109,-1711.36,Affinity Trust,Care Establishment,4 - Operations - Providers services,LDP Fens - Special Needs,Supported Living
Cambridgeshire County Council,07-Dec-17,24830698-16470251,-1711.36,Affinity Trust,Care Establishment,4 - Operations - Providers services,LDP Fens - Special Needs,Supported Living
Cambridgeshire County Council,07-Dec-17,24830706-16470259,-1711.36,Affinity Trust,Care Establishment,2 - Operations - Learning Disability,LDP Fenland Locality - Care,Supported Living
Cambridgeshire County Council,07-Dec-17,24830720-16470273,-1711.36,Affinity Trust,Care Establishment,4 - Operations - Providers services,LDP Fens - Special Needs,Supported Living
Cambridgeshire County Council,07-Dec-17,24859593-16470286,-1711.36,Affinity Trust,Care Establishment,2 - Operations - Learning Disability,LDP Fenland Locality - Care,Supported Living
Cambridgeshire County Council,07-Dec-17,24859596-16470289,-1711.36,Affinity Trust,Care Establishment,2 - Operations - Learning Disability,LDP Fenland Locality - Care,Supported Living
Cambridgeshire County Council,07-Dec-17,24859603-16470296,-1711.36,Affinity Trust,Care Establishment,2 - Operations - Learning Disability,LDP Fenland Locality - Care,Supported Living
Cambridgeshire County Council,07-Dec-17,24859612-16470305,-1711.36,Affinity Trust,Care Establishment,4 - Operations - Providers services,LDP Fens - Special Needs,Supported Living
Cambridgeshire County Council,07-Dec-17,24859620-16470313,-1711.36,Affinity Trust,Care Establishment,2 - Operations - Learning Disability,LDP Fenland Locality - Care,Supported Living
Cambridgeshire County Council,07-Dec-17,24877995-16470332,-1711.36,Affinity Trust,Care Establishment,4 - Operations - Providers services,LDP Fens - Special Needs,Supported Living
Cambridgeshire County Council,07-Dec-17,24878012-16470348,-1711.36,Affinity Trust,Care Establishment,2 - Operations - Learning Disability,LDP Fenland Locality - Care,Supported Living
Cambridgeshire County Council,07-Dec-17,24984549-16470405,-1711.36,Affinity Trust,Care Establishment,2 - Operations - Learning Disability,LDP Fenland Locality - Care,Supported Living
Cambridgeshire County Council,15-Dec-17,24990193-16527343,-1651.25,Alderton House,Care Establishment,Corporate Services,LDP Young Adults - Care,Residential Independent Sector
Cambridgeshire County Council,15-Dec-17,24990207-16527348,-1651.25,Alderton House,Care Establishment,Corporate Services,LDP Young Adults - Care,Residential Independent Sector
Cambridgeshire County Council,15-Dec-17,24990208-16527349,-1651.25,Alderton House,Care Establishment,Corporate Services,LDP Young Adults - Care,Residential Independent Sector
Cambridgeshire County Council,15-Dec-17,24990228-16527356,-1651.25,Alderton House,Care Establishment,Corporate Services,LDP Young Adults - Care,Residential Independent Sector
Cambridgeshire County Council,15-Dec-17,24990188-16527341,-1651.25,Alderton House,Care Establishment,Corporate Services,LDP Young Adults - Care,Residential Independent Sector
Cambridgeshire County Council,15-Dec-17,24990198-16527345,-1651.25,Alderton House,Care Establishment,Corporate Services,LDP Young Adults - Care,Residential Independent Sector
Cambridgeshire County Council,15-Dec-17,24982480-16527251,-1651.25,Alderton House,Care Establishment,Corporate Services,LDP Young Adults - Care,Residential Independent Sector
Cambridgeshire County Council,15-Dec-17,24990227-16527355,-1651.25,Alderton House,Care Establishment,Corporate Services,LDP Young Adults - Care,Residential Independent Sector
Cambridgeshire County Council,15-Dec-17,24982495-16527254,-1651.25,Alderton House,Care Establishment,Corporate Services,LDP Young Adults - Care,Residential Independent Sector
Cambridgeshire County Council,15-Dec-17,24982496-16527255,-1651.25,Alderton House,Care Establishment,Corporate Services,LDP Young Adults - Care,Residential Independent Sector
Cambridgeshire County Council,15-Dec-17,24990203-16527347,-1651.25,Alderton House,Care Establishment,Corporate Services,LDP Young Adults - Care,Residential Independent Sector
Cambridgeshire County Council,15-Dec-17,24990225-16527353,-1651.25,Alderton House,Care Establishment,Corporate Services,LDP Young Adults - Care,Residential Independent Sector
Cambridgeshire County Council,15-Dec-17,24990236-16527430,-1651.25,Alderton House,Care Establishment,Corporate Services,LDP Young Adults - Care,Residential Independent Sector
Cambridgeshire County Council,15-Dec-17,24990241-16527431,-1651.25,Alderton House,Care Establishment,Corporate Services,LDP Young Adults - Care,Residential Independent Sector
Cambridgeshire County Council,15-Dec-17,24982491-16527253,-1651.25,Alderton House,Care Establishment,Corporate Services,LDP Young Adults - Care,Residential Independent Sector
Cambridgeshire County Council,15-Dec-17,24990194-16527344,-1651.25,Alderton House,Care Establishment,Corporate Services,LDP Young Adults - Care,Residential Independent Sector
Cambridgeshire County Council,15-Dec-17,24990217-16527351,-1651.25,Alderton House,Care Establishment,Corporate Services,LDP Young Adults - Care,Residential Independent Sector
Cambridgeshire County Council,15-Dec-17,24990218-16527352,-1651.25,Alderton House,Care Establishment,Corporate Services,LDP Young Adults - Care,Residential Independent Sector
Cambridgeshire County Council,15-Dec-17,24990234-16527357,-1651.25,Alderton House,Care Establishment,Corporate Services,LDP Young Adults - Care,Residential Independent Sector
Cambridgeshire County Council,15-Dec-17,24990235-16527358,-1651.25,Alderton House,Care Establishment,Corporate Services,LDP Young Adults - Care,Residential Independent Sector
Cambridgeshire County Council,15-Dec-17,24982481-16527252,-1651.25,Alderton House,Care Establishment,Corporate Services,LDP Young Adults - Care,Residential Independent Sector
Cambridgeshire County Council,15-Dec-17,24982497-16527256,-1651.25,Alderton House,Care Establishment,Corporate Services,LDP Young Adults - Care,Residential Independent Sector
Cambridgeshire County Council,15-Dec-17,24990226-16527354,-1651.25,Alderton House,Care Establishment,Corporate Services,LDP Young Adults - Care,Residential Independent Sector
Cambridgeshire County Council,15-Dec-17,24982498-16527257,-1651.25,Alderton House,Care Establishment,Corporate Services,LDP Young Adults - Care,Residential Independent Sector
Cambridgeshire County Council,07-Dec-17,24997744-16477256,-1588.96,Voyage,Care Establishment,2 - Operations - Learning Disability,LDP South Cambs Locality - Care,Supported Living
Cambridgeshire County Council,07-Dec-17,24997752-16477264,-1588.96,Voyage,Care Establishment,2 - Operations - Learning Disability,LDP South Cambs Locality - Care,Supported Living
Cambridgeshire County Council,07-Dec-17,24997756-16477268,-1588.96,Voyage,Care Establishment,2 - Operations - Learning Disability,LDP South Cambs Locality - Care,Supported Living
Cambridgeshire County Council,07-Dec-17,24997745-16477257,-1588.96,Voyage,Care Establishment,2 - Operations - Learning Disability,LDP South Cambs Locality - Care,Supported Living
Cambridgeshire County Council,07-Dec-17,24997743-16477255,-1588.96,Voyage,Care Establishment,2 - Operations - Learning Disability,LDP South Cambs Locality - Care,Supported Living
Cambridgeshire County Council,07-Dec-17,24997750-16477262,-1588.96,Voyage,Care Establishment,2 - Operations - Learning Disability,LDP South Cambs Locality - Care,Supported Living
Cambridgeshire County Council,07-Dec-17,24997758-16477270,-1588.96,Voyage,Care Establishment,2 - Operations - Learning Disability,LDP South Cambs Locality - Care,Supported Living
Cambridgeshire County Council,07-Dec-17,25003993-16477394,-1565.12,Voyage,Care Establishment,2 - Operations - Learning Disability,LDP South Cambs Locality - Care,Supported Living
Cambridgeshire County Council,07-Dec-17,25002808-16477357,-1565.12,Voyage,Care Establishment,2 - Operations - Learning Disability,LDP South Cambs Locality - Care,Supported Living
Cambridgeshire County Council,07-Dec-17,25002809-16477358,-1565.12,Voyage,Care Establishment,2 - Operations - Learning Disability,LDP South Cambs Locality - Care,Supported Living
Cambridgeshire County Council,07-Dec-17,25003975-16477378,-1565.12,Voyage,Care Establishment,2 - Operations - Learning Disability,LDP South Cambs Locality - Care,Supported Living
Cambridgeshire County Council,07-Dec-17,25003979-16477381,-1565.12,Voyage,Care Establishment,2 - Operations - Learning Disability,LDP South Cambs Locality - Care,Supported Living
Cambridgeshire County Council,07-Dec-17,25003982-16477384,-1565.12,Voyage,Care Establishment,2 - Operations - Learning Disability,LDP South Cambs Locality - Care,Supported Living
Cambridgeshire County Council,07-Dec-17,25003988-16477390,-1565.12,Voyage,Care Establishment,2 - Operations - Learning Disability,LDP South Cambs Locality - Care,Supported Living
Cambridgeshire County Council,07-Dec-17,25002811-16477360,-1565.12,Voyage,Care Establishment,2 - Operations - Learning Disability,LDP South Cambs Locality - Care,Supported Living
Cambridgeshire County Council,07-Dec-17,25003971-16477374,-1565.12,Voyage,Care Establishment,2 - Operations - Learning Disability,LDP South Cambs Locality - Care,Supported Living
Cambridgeshire County Council,07-Dec-17,25003983-16477385,-1565.12,Voyage,Care Establishment,2 - Operations - Learning Disability,LDP South Cambs Locality - Care,Supported Living
Cambridgeshire County Council,07-Dec-17,25003984-16477386,-1565.12,Voyage,Care Establishment,2 - Operations - Learning Disability,LDP South Cambs Locality - Care,Supported Living
Cambridgeshire County Council,07-Dec-17,25002815-16477364,-1565.12,Voyage,Care Establishment,2 - Operations - Learning Disability,LDP South Cambs Locality - Care,Supported Living
Cambridgeshire County Council,07-Dec-17,25002816-16477365,-1565.12,Voyage,Care Establishment,2 - Operations - Learning Disability,LDP South Cambs Locality - Care,Supported Living
Cambridgeshire County Council,07-Dec-17,25003974-16477377,-1565.12,Voyage,Care Establishment,2 - Operations - Learning Disability,LDP South Cambs Locality - Care,Supported Living
Cambridgeshire County Council,07-Dec-17,25003989-16477391,-1565.12,Voyage,Care Establishment,2 - Operations - Learning Disability,LDP South Cambs Locality - Care,Supported Living
Cambridgeshire County Council,07-Dec-17,25002824-16477342,-1565.12,Voyage,Care Establishment,2 - Operations - Learning Disability,LDP South Cambs Locality - Care,Supported Living
Cambridgeshire County Council,07-Dec-17,25002812-16477361,-1565.12,Voyage,Care Establishment,2 - Operations - Learning Disability,LDP South Cambs Locality - Care,Supported Living
Cambridgeshire County Council,07-Dec-17,25002814-16477363,-1565.12,Voyage,Care Establishment,2 - Operations - Learning Disability,LDP South Cambs Locality - Care,Supported Living
Cambridgeshire County Council,07-Dec-17,25002823-16477372,-1565.12,Voyage,Care Establishment,2 - Operations - Learning Disability,LDP South Cambs Locality - Care,Supported Living
Cambridgeshire County Council,07-Dec-17,25002828-16477346,-1565.12,Voyage,Care Establishment,2 - Operations - Learning Disability,LDP South Cambs Locality - Care,Supported Living
Cambridgeshire County Council,07-Dec-17,25002821-16477370,-1565.12,Voyage,Care Establishment,2 - Operations - Learning Disability,LDP South Cambs Locality - Care,Supported Living
Cambridgeshire County Council,07-Dec-17,25003996-16477397,-1565.12,Voyage,Care Establishment,2 - Operations - Learning Disability,LDP South Cambs Locality - Care,Supported Living
Cambridgeshire County Council,07-Dec-17,24825718-16484857,-1557.86,Turning Point Services Ltd,Care Establishment,2 - Operations - Learning Disability,LDP Fenland Locality - Care,Day and Domicillary Care Independent Sector
Cambridgeshire County Council,07-Dec-17,24984619-16474219,-1557.06,Caretech Community Services,Care Establishment,2 - Operations - Learning Disability,LDP South Cambs Locality - Care,Residential Independent Sector
Cambridgeshire County Council,07-Dec-17,25003115-16474343,-1557.06,Caretech Community Services,Care Establishment,2 - Operations - Learning Disability,LDP South Cambs Locality - Care,Residential Independent Sector
Cambridgeshire County Council,07-Dec-17,24984620-16474220,-1557.06,Caretech Community Services,Care Establishment,2 - Operations - Learning Disability,LDP South Cambs Locality - Care,Residential Independent Sector
Cambridgeshire County Council,07-Dec-17,25003118-16474346,-1557.06,Caretech Community Services,Care Establishment,2 - Operations - Learning Disability,LDP South Cambs Locality - Care,Residential Independent Sector
Cambridgeshire County Council,15-Dec-17,24990191-16527342,-1550.73,Alderton House,Care Establishment,Corporate Services,LDP Young Adults - Care,Residential Independent Sector
Cambridgeshire County Council,07-Dec-17,24855882-16487963,-1540.95,Pauline Burnett House,Care Establishment,4 - Operations - Providers services,LDP City Locality - Care,Residential Independent Sector
Cambridgeshire County Council,07-Dec-17,24862577-16488757,-1468.77,Dimensions (Uk) Ltd,Care Establishment,2 - Operations - Learning Disability,LDP South Cambs Locality - Care,Supported Living
Cambridgeshire County Council,07-Dec-17,24863396-16488764,-1468.77,Dimensions (Uk) Ltd,Care Establishment,2 - Operations - Learning Disability,LDP South Cambs Locality - Care,Supported Living
Cambridgeshire County Council,07-Dec-17,24862574-16488754,-1468.77,Dimensions (Uk) Ltd,Care Establishment,2 - Operations - Learning Disability,LDP South Cambs Locality - Care,Supported Living
Cambridgeshire County Council,07-Dec-17,24862576-16488756,-1468.77,Dimensions (Uk) Ltd,Care Establishment,2 - Operations - Learning Disability,LDP South Cambs Locality - Care,Supported Living
Cambridgeshire County Council,07-Dec-17,24861387-16488749,-1419.42,Dimensions (Uk) Ltd,Care Establishment,4 - Operations - Providers services,LDP City Locality - Care,Supported Living
Cambridgeshire County Council,07-Dec-17,24861390-16488752,-1419.42,Dimensions (Uk) Ltd,Care Establishment,4 - Operations - Providers services,LDP City Locality - Care,Supported Living
Cambridgeshire County Council,07-Dec-17,24859109-16488133,-1414.34,Pauline Burnett House,Care Establishment,4 - Operations - Providers services,LDP City Locality - Care,Residential Independent Sector
Cambridgeshire County Council,07-Dec-17,24859088-16488112,-1414.34,Pauline Burnett House,Care Establishment,4 - Operations - Providers services,LDP City Locality - Care,Residential Independent Sector
Cambridgeshire County Council,07-Dec-17,24859125-16488184,-1414.34,Pauline Burnett House,Care Establishment,4 - Operations - Providers services,LDP City Locality - Care,Residential Independent Sector
Cambridgeshire County Council,07-Dec-17,24859098-16488122,-1414.34,Pauline Burnett House,Care Establishment,4 - Operations - Providers services,LDP City Locality - Care,Residential Independent Sector
Cambridgeshire County Council,07-Dec-17,24859077-16488172,-1414.34,Pauline Burnett House,Care Establishment,4 - Operations - Providers services,LDP City Locality - Care,Residential Independent Sector
Cambridgeshire County Council,07-Dec-17,24859122-16488181,-1414.34,Pauline Burnett House,Care Establishment,4 - Operations - Providers services,LDP City Locality - Care,Residential Independent Sector
Cambridgeshire County Council,07-Dec-17,24829906-16477461,-1395,Cambridge Manor Care Home (Tlc),Care Establishment,2 - Commissioning - Older people Pool,Older People Mental Health City & South,Nursing Independent Sector
Cambridgeshire County Council,07-Dec-17,24985615-16477100,-1337.93,Voyage,Care Establishment,2 - Operations - Learning Disability,LDP South Cambs Locality - Care,Residential Independent Sector
Cambridgeshire County Council,07-Dec-17,24985619-16477103,-1337.93,Voyage,Care Establishment,2 - Operations - Learning Disability,LDP South Cambs Locality - Care,Residential Independent Sector
Cambridgeshire County Council,07-Dec-17,24985628-16477111,-1337.93,Voyage,Care Establishment,2 - Operations - Learning Disability,LDP South Cambs Locality - Care,Residential Independent Sector
Cambridgeshire County Council,07-Dec-17,24985622-16477105,-1337.93,Voyage,Care Establishment,2 - Operations - Learning Disability,LDP South Cambs Locality - Care,Residential Independent Sector
Cambridgeshire County Council,07-Dec-17,24985625-16477108,-1337.93,Voyage,Care Establishment,2 - Operations - Learning Disability,LDP South Cambs Locality - Care,Residential Independent Sector
Cambridgeshire County Council,15-Dec-17,24854146-16523753,-1328.44,Care Management Group (64-66 Carlton),Care Establishment,4 - Operations - Providers services,LDP E Cambs Special Needs,Residential Independent Sector
Cambridgeshire County Council,15-Dec-17,24857222-16523785,-1328.44,Care Management Group (64-66 Carlton),Care Establishment,4 - Operations - Providers services,LDP E Cambs Special Needs,Residential Independent Sector
Cambridgeshire County Council,15-Dec-17,24857223-16523786,-1328.44,Care Management Group (64-66 Carlton),Care Establishment,4 - Operations - Providers services,LDP E Cambs Special Needs,Residential Independent Sector
Cambridgeshire County Council,15-Dec-17,24854143-16523751,-1328.44,Care Management Group (64-66 Carlton),Care Establishment,4 - Operations - Providers services,LDP E Cambs Special Needs,Residential Independent Sector
Cambridgeshire County Council,15-Dec-17,24861143-16523955,-1328.44,Care Management Group (64-66 Carlton),Care Establishment,4 - Operations - Providers services,LDP E Cambs Special Needs,Residential Independent Sector
Cambridgeshire County Council,15-Dec-17,24861162-16523972,-1328.44,Care Management Group (64-66 Carlton),Care Establishment,4 - Operations - Providers services,LDP E Cambs Special Needs,Residential Independent Sector
Cambridgeshire County Council,15-Dec-17,24879752-16524200,-1328.44,Care Management Group (64-66 Carlton),Care Establishment,4 - Operations - Providers services,LDP E Cambs Special Needs,Residential Independent Sector
Cambridgeshire County Council,15-Dec-17,24879756-16524204,-1328.44,Care Management Group (64-66 Carlton),Care Establishment,4 - Operations - Providers services,LDP E Cambs Special Needs,Residential Independent Sector
Cambridgeshire County Council,15-Dec-17,24879758-16524206,-1328.44,Care Management Group (64-66 Carlton),Care Establishment,4 - Operations - Providers services,LDP E Cambs Special Needs,Residential Independent Sector
Cambridgeshire County Council,15-Dec-17,24879711-16524042,-1328.44,Care Management Group (64-66 Carlton),Care Establishment,4 - Operations - Providers services,LDP E Cambs Special Needs,Residential Independent Sector
Cambridgeshire County Council,15-Dec-17,24879713-16524044,-1328.44,Care Management Group (64-66 Carlton),Care Establishment,4 - Operations - Providers services,LDP E Cambs Special Needs,Residential Independent Sector
Cambridgeshire County Council,15-Dec-17,24879714-16524045,-1328.44,Care Management Group (64-66 Carlton),Care Establishment,4 - Operations - Providers services,LDP E Cambs Special Needs,Residential Independent Sector
Cambridgeshire County Council,15-Dec-17,24879729-16524060,-1328.44,Care Management Group (64-66 Carlton),Care Establishment,4 - Operations - Providers services,LDP E Cambs Special Needs,Residential Independent Sector
Cambridgeshire County Council,15-Dec-17,24879735-16524066,-1328.44,Care Management Group (64-66 Carlton),Care Establishment,4 - Operations - Providers services,LDP E Cambs Special Needs,Residential Independent Sector
Cambridgeshire County Council,15-Dec-17,24879079-16524083,-1328.44,Care Management Group (64-66 Carlton),Care Establishment,4 - Operations - Providers services,LDP E Cambs Special Needs,Residential Independent Sector
Cambridgeshire County Council,15-Dec-17,24881664-16524126,-1328.44,Care Management Group (64-66 Carlton),Care Establishment,4 - Operations - Providers services,LDP E Cambs Special Needs,Residential Independent Sector
Cambridgeshire County Council,15-Dec-17,24881680-16524142,-1328.44,Care Management Group (64-66 Carlton),Care Establishment,4 - Operations - Providers services,LDP E Cambs Special Needs,Residential Independent Sector
Cambridgeshire County Council,15-Dec-17,24881135-16524163,-1328.44,Care Management Group (64-66 Carlton),Care Establishment,4 - Operations - Providers services,LDP E Cambs Special Needs,Residential Independent Sector
Cambridgeshire County Council,15-Dec-17,24857257-16523815,-1328.44,Care Management Group (64-66 Carlton),Care Establishment,4 - Operations - Providers services,LDP E Cambs Special Needs,Residential Independent Sector
Cambridgeshire County Council,15-Dec-17,24854148-16523823,-1328.44,Care Management Group (64-66 Carlton),Care Establishment,4 - Operations - Providers services,LDP E Cambs Special Needs,Residential Independent Sector
Cambridgeshire County Council,15-Dec-17,24863174-16523900,-1328.44,Care Management Group (64-66 Carlton),Care Establishment,4 - Operations - Providers services,LDP E Cambs Special Needs,Residential Independent Sector
Cambridgeshire County Council,15-Dec-17,24861208-16523939,-1328.44,Care Management Group (64-66 Carlton),Care Establishment,4 - Operations - Providers services,LDP E Cambs Special Needs,Residential Independent Sector
Cambridgeshire County Council,15-Dec-17,24861214-16523945,-1328.44,Care Management Group (64-66 Carlton),Care Establishment,4 - Operations - Providers services,LDP E Cambs Special Needs,Residential Independent Sector
Cambridgeshire County Council,15-Dec-17,25196050-16524542,-1328.44,Care Management Group (64-66 Carlton),Care Establishment,4 - Operations - Providers services,LDP E Cambs Special Needs,Residential Independent Sector
Cambridgeshire County Council,15-Dec-17,25196069-16524561,-1328.44,Care Management Group (64-66 Carlton),Care Establishment,4 - Operations - Providers services,LDP E Cambs Special Needs,Residential Independent Sector
Cambridgeshire County Council,15-Dec-17,25200892-16524652,-1328.44,Care Management Group (64-66 Carlton),Care Establishment,4 - Operations - Providers services,LDP E Cambs Special Needs,Residential Independent Sector
Cambridgeshire County Council,15-Dec-17,25200893-16524653,-1328.44,Care Management Group (64-66 Carlton),Care Establishment,4 - Operations - Providers services,LDP E Cambs Special Needs,Residential Independent Sector
Cambridgeshire County Council,15-Dec-17,25200904-16524664,-1328.44,Care Management Group (64-66 Carlton),Care Establishment,4 - Operations - Providers services,LDP E Cambs Special Needs,Residential Independent Sector
Cambridgeshire County Council,15-Dec-17,25200913-16524673,-1328.44,Care Management Group (64-66 Carlton),Care Establishment,4 - Operations - Providers services,LDP E Cambs Special Needs,Residential Independent Sector
Cambridgeshire County Council,15-Dec-17,25195966-16524569,-1328.44,Care Management Group (64-66 Carlton),Care Establishment,4 - Operations - Providers services,LDP E Cambs Special Needs,Residential Independent Sector
Cambridgeshire County Council,15-Dec-17,25195976-16524579,-1328.44,Care Management Group (64-66 Carlton),Care Establishment,4 - Operations - Providers services,LDP E Cambs Special Needs,Residential Independent Sector
Cambridgeshire County Council,15-Dec-17,25195978-16524581,-1328.44,Care Management Group (64-66 Carlton),Care Establishment,4 - Operations - Providers services,LDP E Cambs Special Needs,Residential Independent Sector
Cambridgeshire County Council,15-Dec-17,25195989-16524592,-1328.44,Care Management Group (64-66 Carlton),Care Establishment,4 - Operations - Providers services,LDP E Cambs Special Needs,Residential Independent Sector
Cambridgeshire County Council,15-Dec-17,25195990-16524593,-1328.44,Care Management Group (64-66 Carlton),Care Establishment,4 - Operations - Providers services,LDP E Cambs Special Needs,Residential Independent Sector
Cambridgeshire County Council,15-Dec-17,25195992-16524595,-1328.44,Care Management Group (64-66 Carlton),Care Establishment,4 - Operations - Providers services,LDP E Cambs Special Needs,Residential Independent Sector
Cambridgeshire County Council,15-Dec-17,25195993-16524596,-1328.44,Care Management Group (64-66 Carlton),Care Establishment,4 - Operations - Providers services,LDP E Cambs Special Needs,Residential Independent Sector
Cambridgeshire County Council,15-Dec-17,25196003-16524606,-1328.44,Care Management Group (64-66 Carlton),Care Establishment,4 - Operations - Providers services,LDP E Cambs Special Needs,Residential Independent Sector
Cambridgeshire County Council,15-Dec-17,25196006-16524609,-1328.44,Care Management Group (64-66 Carlton),Care Establishment,4 - Operations - Providers services,LDP E Cambs Special Needs,Residential Independent Sector
Cambridgeshire County Council,15-Dec-17,24879784-16524232,-1328.44,Care Management Group (64-66 Carlton),Care Establishment,4 - Operations - Providers services,LDP E Cambs Special Needs,Residential Independent Sector
Cambridgeshire County Council,15-Dec-17,24985798-16524265,-1328.44,Care Management Group (64-66 Carlton),Care Establishment,4 - Operations - Providers services,LDP E Cambs Special Needs,Residential Independent Sector
Cambridgeshire County Council,15-Dec-17,24985807-16524274,-1328.44,Care Management Group (64-66 Carlton),Care Establishment,4 - Operations - Providers services,LDP E Cambs Special Needs,Residential Independent Sector
Cambridgeshire County Council,15-Dec-17,24986901-16524330,-1328.44,Care Management Group (64-66 Carlton),Care Establishment,4 - Operations - Providers services,LDP E Cambs Special Needs,Residential Independent Sector
Cambridgeshire County Council,15-Dec-17,24985775-16524350,-1328.44,Care Management Group (64-66 Carlton),Care Establishment,4 - Operations - Providers services,LDP E Cambs Special Needs,Residential Independent Sector
Cambridgeshire County Council,15-Dec-17,24985781-16524356,-1328.44,Care Management Group (64-66 Carlton),Care Establishment,4 - Operations - Providers services,LDP E Cambs Special Needs,Residential Independent Sector
Cambridgeshire County Council,15-Dec-17,24985787-16524362,-1328.44,Care Management Group (64-66 Carlton),Care Establishment,4 - Operations - Providers services,LDP E Cambs Special Needs,Residential Independent Sector
Cambridgeshire County Council,15-Dec-17,24992904-16524395,-1328.44,Care Management Group (64-66 Carlton),Care Establishment,4 - Operations - Providers services,LDP E Cambs Special Needs,Residential Independent Sector
Cambridgeshire County Council,15-Dec-17,24993957-16524404,-1328.44,Care Management Group (64-66 Carlton),Care Establishment,4 - Operations - Providers services,LDP E Cambs Special Needs,Residential Independent Sector
Cambridgeshire County Council,15-Dec-17,24992916-16524414,-1328.44,Care Management Group (64-66 Carlton),Care Establishment,4 - Operations - Providers services,LDP E Cambs Special Needs,Residential Independent Sector
Cambridgeshire County Council,15-Dec-17,24992922-16524420,-1328.44,Care Management Group (64-66 Carlton),Care Establishment,4 - Operations - Providers services,LDP E Cambs Special Needs,Residential Independent Sector
Cambridgeshire County Council,15-Dec-17,24992837-16524445,-1328.44,Care Management Group (64-66 Carlton),Care Establishment,4 - Operations - Providers services,LDP E Cambs Special Needs,Residential Independent Sector
Cambridgeshire County Council,15-Dec-17,24992845-16524453,-1328.44,Care Management Group (64-66 Carlton),Care Establishment,4 - Operations - Providers services,LDP E Cambs Special Needs,Residential Independent Sector
Cambridgeshire County Council,15-Dec-17,24992848-16524456,-1328.44,Care Management Group (64-66 Carlton),Care Establishment,4 - Operations - Providers services,LDP E Cambs Special Needs,Residential Independent Sector
Cambridgeshire County Council,15-Dec-17,24992880-16524488,-1328.44,Care Management Group (64-66 Carlton),Care Establishment,4 - Operations - Providers services,LDP E Cambs Special Needs,Residential Independent Sector
Cambridgeshire County Council,15-Dec-17,25202854-16524724,-1328.44,Care Management Group (64-66 Carlton),Care Establishment,4 - Operations - Providers services,LDP E Cambs Special Needs,Residential Independent Sector
Cambridgeshire County Council,15-Dec-17,25202874-16524744,-1328.44,Care Management Group (64-66 Carlton),Care Establishment,4 - Operations - Providers services,LDP E Cambs Special Needs,Residential Independent Sector
Cambridgeshire County Council,15-Dec-17,25202876-16524746,-1328.44,Care Management Group (64-66 Carlton),Care Establishment,4 - Operations - Providers services,LDP E Cambs Special Needs,Residential Independent Sector
Cambridgeshire County Council,15-Dec-17,25202888-16524758,-1328.44,Care Management Group (64-66 Carlton),Care Establishment,4 - Operations - Providers services,LDP E Cambs Special Needs,Residential Independent Sector
Cambridgeshire County Council,15-Dec-17,25202909-16524779,-1328.44,Care Management Group (64-66 Carlton),Care Establishment,4 - Operations - Providers services,LDP E Cambs Special Needs,Residential Independent Sector
Cambridgeshire County Council,15-Dec-17,25202919-16524789,-1328.44,Care Management Group (64-66 Carlton),Care Establishment,4 - Operations - Providers services,LDP E Cambs Special Needs,Residential Independent Sector
Cambridgeshire County Council,15-Dec-17,25202922-16524792,-1328.44,Care Management Group (64-66 Carlton),Care Establishment,4 - Operations - Providers services,LDP E Cambs Special Needs,Residential Independent Sector
Cambridgeshire County Council,15-Dec-17,24857218-16523781,-1328.44,Care Management Group (64-66 Carlton),Care Establishment,4 - Operations - Providers services,LDP E Cambs Special Needs,Residential Independent Sector
Cambridgeshire County Council,15-Dec-17,24857224-16523787,-1328.44,Care Management Group (64-66 Carlton),Care Establishment,4 - Operations - Providers services,LDP E Cambs Special Needs,Residential Independent Sector
Cambridgeshire County Council,15-Dec-17,24857228-16523790,-1328.44,Care Management Group (64-66 Carlton),Care Establishment,4 - Operations - Providers services,LDP E Cambs Special Needs,Residential Independent Sector
Cambridgeshire County Council,15-Dec-17,24857240-16523799,-1328.44,Care Management Group (64-66 Carlton),Care Establishment,4 - Operations - Providers services,LDP E Cambs Special Needs,Residential Independent Sector
Cambridgeshire County Council,15-Dec-17,24857248-16523807,-1328.44,Care Management Group (64-66 Carlton),Care Establishment,4 - Operations - Providers services,LDP E Cambs Special Needs,Residential Independent Sector
Cambridgeshire County Council,15-Dec-17,24881145-16524173,-1328.44,Care Management Group (64-66 Carlton),Care Establishment,4 - Operations - Providers services,LDP E Cambs Special Needs,Residential Independent Sector
Cambridgeshire County Council,15-Dec-17,24881155-16524183,-1328.44,Care Management Group (64-66 Carlton),Care Establishment,4 - Operations - Providers services,LDP E Cambs Special Needs,Residential Independent Sector
Cambridgeshire County Council,15-Dec-17,24879761-16524209,-1328.44,Care Management Group (64-66 Carlton),Care Establishment,4 - Operations - Providers services,LDP E Cambs Special Needs,Residential Independent Sector
Cambridgeshire County Council,15-Dec-17,24857270-16523983,-1328.44,Care Management Group (64-66 Carlton),Care Establishment,4 - Operations - Providers services,LDP E Cambs Special Needs,Residential Independent Sector
Cambridgeshire County Council,15-Dec-17,24877065-16524000,-1328.44,Care Management Group (64-66 Carlton),Care Establishment,4 - Operations - Providers services,LDP E Cambs Special Needs,Residential Independent Sector
Cambridgeshire County Council,15-Dec-17,24879693-16524024,-1328.44,Care Management Group (64-66 Carlton),Care Establishment,4 - Operations - Providers services,LDP E Cambs Special Needs,Residential Independent Sector
Cambridgeshire County Council,15-Dec-17,24879073-16524077,-1328.44,Care Management Group (64-66 Carlton),Care Establishment,4 - Operations - Providers services,LDP E Cambs Special Needs,Residential Independent Sector
Cambridgeshire County Council,15-Dec-17,24879075-16524079,-1328.44,Care Management Group (64-66 Carlton),Care Establishment,4 - Operations - Providers services,LDP E Cambs Special Needs,Residential Independent Sector
Cambridgeshire County Council,15-Dec-17,24879077-16524081,-1328.44,Care Management Group (64-66 Carlton),Care Establishment,4 - Operations - Providers services,LDP E Cambs Special Needs,Residential Independent Sector
Cambridgeshire County Council,15-Dec-17,24879814-16524098,-1328.44,Care Management Group (64-66 Carlton),Care Establishment,4 - Operations - Providers services,LDP E Cambs Special Needs,Residential Independent Sector
Cambridgeshire County Council,15-Dec-17,24881157-16524102,-1328.44,Care Management Group (64-66 Carlton),Care Establishment,4 - Operations - Providers services,LDP E Cambs Special Needs,Residential Independent Sector
Cambridgeshire County Council,15-Dec-17,24881646-16524108,-1328.44,Care Management Group (64-66 Carlton),Care Establishment,4 - Operations - Providers services,LDP E Cambs Special Needs,Residential Independent Sector
Cambridgeshire County Council,15-Dec-17,24881654-16524116,-1328.44,Care Management Group (64-66 Carlton),Care Establishment,4 - Operations - Providers services,LDP E Cambs Special Needs,Residential Independent Sector
Cambridgeshire County Council,15-Dec-17,24881678-16524140,-1328.44,Care Management Group (64-66 Carlton),Care Establishment,4 - Operations - Providers services,LDP E Cambs Special Needs,Residential Independent Sector
Cambridgeshire County Council,15-Dec-17,24881686-16524148,-1328.44,Care Management Group (64-66 Carlton),Care Establishment,4 - Operations - Providers services,LDP E Cambs Special Needs,Residential Independent Sector
Cambridgeshire County Council,15-Dec-17,24881131-16524159,-1328.44,Care Management Group (64-66 Carlton),Care Establishment,4 - Operations - Providers services,LDP E Cambs Special Needs,Residential Independent Sector
Cambridgeshire County Council,15-Dec-17,24854152-16523827,-1328.44,Care Management Group (64-66 Carlton),Care Establishment,4 - Operations - Providers services,LDP E Cambs Special Needs,Residential Independent Sector
Cambridgeshire County Council,15-Dec-17,24861187-16523851,-1328.44,Care Management Group (64-66 Carlton),Care Establishment,4 - Operations - Providers services,LDP E Cambs Special Needs,Residential Independent Sector
Cambridgeshire County Council,15-Dec-17,24861227-16523853,-1328.44,Care Management Group (64-66 Carlton),Care Establishment,4 - Operations - Providers services,LDP E Cambs Special Needs,Residential Independent Sector
Cambridgeshire County Council,15-Dec-17,24861235-16523861,-1328.44,Care Management Group (64-66 Carlton),Care Establishment,4 - Operations - Providers services,LDP E Cambs Special Needs,Residential Independent Sector
Cambridgeshire County Council,15-Dec-17,24861237-16523863,-1328.44,Care Management Group (64-66 Carlton),Care Establishment,4 - Operations - Providers services,LDP E Cambs Special Needs,Residential Independent Sector
Cambridgeshire County Council,15-Dec-17,24861245-16523871,-1328.44,Care Management Group (64-66 Carlton),Care Establishment,4 - Operations - Providers services,LDP E Cambs Special Needs,Residential Independent Sector
Cambridgeshire County Council,15-Dec-17,24863163-16523889,-1328.44,Care Management Group (64-66 Carlton),Care Establishment,4 - Operations - Providers services,LDP E Cambs Special Needs,Residential Independent Sector
Cambridgeshire County Council,15-Dec-17,24863164-16523890,-1328.44,Care Management Group (64-66 Carlton),Care Establishment,4 - Operations - Providers services,LDP E Cambs Special Needs,Residential Independent Sector
Cambridgeshire County Council,15-Dec-17,24863188-16523914,-1328.44,Care Management Group (64-66 Carlton),Care Establishment,4 - Operations - Providers services,LDP E Cambs Special Needs,Residential Independent Sector
Cambridgeshire County Council,15-Dec-17,24861189-16523920,-1328.44,Care Management Group (64-66 Carlton),Care Establishment,4 - Operations - Providers services,LDP E Cambs Special Needs,Residential Independent Sector
Cambridgeshire County Council,15-Dec-17,24861194-16523925,-1328.44,Care Management Group (64-66 Carlton),Care Establishment,4 - Operations - Providers services,LDP E Cambs Special Needs,Residential Independent Sector
Cambridgeshire County Council,15-Dec-17,24861195-16523926,-1328.44,Care Management Group (64-66 Carlton),Care Establishment,4 - Operations - Providers services,LDP E Cambs Special Needs,Residential Independent Sector
Cambridgeshire County Council,15-Dec-17,24861196-16523927,-1328.44,Care Management Group (64-66 Carlton),Care Establishment,4 - Operations - Providers services,LDP E Cambs Special Needs,Residential Independent Sector
Cambridgeshire County Council,15-Dec-17,24861207-16523938,-1328.44,Care Management Group (64-66 Carlton),Care Establishment,4 - Operations - Providers services,LDP E Cambs Special Needs,Residential Independent Sector
Cambridgeshire County Council,15-Dec-17,24861211-16523942,-1328.44,Care Management Group (64-66 Carlton),Care Establishment,4 - Operations - Providers services,LDP E Cambs Special Needs,Residential Independent Sector
Cambridgeshire County Council,15-Dec-17,25196036-16524528,-1328.44,Care Management Group (64-66 Carlton),Care Establishment,4 - Operations - Providers services,LDP E Cambs Special Needs,Residential Independent Sector
Cambridgeshire County Council,15-Dec-17,25200888-16524648,-1328.44,Care Management Group (64-66 Carlton),Care Establishment,4 - Operations - Providers services,LDP E Cambs Special Needs,Residential Independent Sector
Cambridgeshire County Council,15-Dec-17,25200896-16524656,-1328.44,Care Management Group (64-66 Carlton),Care Establishment,4 - Operations - Providers services,LDP E Cambs Special Needs,Residential Independent Sector
Cambridgeshire County Council,15-Dec-17,25200902-16524662,-1328.44,Care Management Group (64-66 Carlton),Care Establishment,4 - Operations - Providers services,LDP E Cambs Special Needs,Residential Independent Sector
Cambridgeshire County Council,15-Dec-17,25195970-16524573,-1328.44,Care Management Group (64-66 Carlton),Care Establishment,4 - Operations - Providers services,LDP E Cambs Special Needs,Residential Independent Sector
Cambridgeshire County Council,15-Dec-17,25195994-16524597,-1328.44,Care Management Group (64-66 Carlton),Care Establishment,4 - Operations - Providers services,LDP E Cambs Special Needs,Residential Independent Sector
Cambridgeshire County Council,15-Dec-17,25196009-16524612,-1328.44,Care Management Group (64-66 Carlton),Care Establishment,4 - Operations - Providers services,LDP E Cambs Special Needs,Residential Independent Sector
Cambridgeshire County Council,15-Dec-17,24879792-16524240,-1328.44,Care Management Group (64-66 Carlton),Care Establishment,4 - Operations - Providers services,LDP E Cambs Special Needs,Residential Independent Sector
Cambridgeshire County Council,15-Dec-17,24879793-16524241,-1328.44,Care Management Group (64-66 Carlton),Care Establishment,4 - Operations - Providers services,LDP E Cambs Special Needs,Residential Independent Sector
Cambridgeshire County Council,15-Dec-17,24985792-16524259,-1328.44,Care Management Group (64-66 Carlton),Care Establishment,4 - Operations - Providers services,LDP E Cambs Special Needs,Residential Independent Sector
Cambridgeshire County Council,15-Dec-17,24985801-16524268,-1328.44,Care Management Group (64-66 Carlton),Care Establishment,4 - Operations - Providers services,LDP E Cambs Special Needs,Residential Independent Sector
Cambridgeshire County Council,15-Dec-17,24985804-16524271,-1328.44,Care Management Group (64-66 Carlton),Care Establishment,4 - Operations - Providers services,LDP E Cambs Special Needs,Residential Independent Sector
Cambridgeshire County Council,15-Dec-17,24986848-16524277,-1328.44,Care Management Group (64-66 Carlton),Care Establishment,4 - Operations - Providers services,LDP E Cambs Special Needs,Residential Independent Sector
Cambridgeshire County Council,15-Dec-17,24986860-16524289,-1328.44,Care Management Group (64-66 Carlton),Care Establishment,4 - Operations - Providers services,LDP E Cambs Special Needs,Residential Independent Sector
Cambridgeshire County Council,15-Dec-17,24986867-16524296,-1328.44,Care Management Group (64-66 Carlton),Care Establishment,4 - Operations - Providers services,LDP E Cambs Special Needs,Residential Independent Sector
Cambridgeshire County Council,15-Dec-17,24986868-16524297,-1328.44,Care Management Group (64-66 Carlton),Care Establishment,4 - Operations - Providers services,LDP E Cambs Special Needs,Residential Independent Sector
Cambridgeshire County Council,15-Dec-17,24986882-16524311,-1328.44,Care Management Group (64-66 Carlton),Care Establishment,4 - Operations - Providers services,LDP E Cambs Special Needs,Residential Independent Sector
Cambridgeshire County Council,15-Dec-17,24986893-16524322,-1328.44,Care Management Group (64-66 Carlton),Care Establishment,4 - Operations - Providers services,LDP E Cambs Special Needs,Residential Independent Sector
Cambridgeshire County Council,15-Dec-17,24986894-16524323,-1328.44,Care Management Group (64-66 Carlton),Care Establishment,4 - Operations - Providers services,LDP E Cambs Special Needs,Residential Independent Sector
Cambridgeshire County Council,15-Dec-17,24985778-16524353,-1328.44,Care Management Group (64-66 Carlton),Care Establishment,4 - Operations - Providers services,LDP E Cambs Special Needs,Residential Independent Sector
Cambridgeshire County Council,15-Dec-17,24985779-16524354,-1328.44,Care Management Group (64-66 Carlton),Care Establishment,4 - Operations - Providers services,LDP E Cambs Special Needs,Residential Independent Sector
Cambridgeshire County Council,15-Dec-17,24985782-16524357,-1328.44,Care Management Group (64-66 Carlton),Care Establishment,4 - Operations - Providers services,LDP E Cambs Special Needs,Residential Independent Sector
Cambridgeshire County Council,15-Dec-17,24992803-16524366,-1328.44,Care Management Group (64-66 Carlton),Care Establishment,4 - Operations - Providers services,LDP E Cambs Special Needs,Residential Independent Sector
Cambridgeshire County Council,15-Dec-17,24992897-16524388,-1328.44,Care Management Group (64-66 Carlton),Care Establishment,4 - Operations - Providers services,LDP E Cambs Special Needs,Residential Independent Sector
Cambridgeshire County Council,15-Dec-17,24993955-16524402,-1328.44,Care Management Group (64-66 Carlton),Care Establishment,4 - Operations - Providers services,LDP E Cambs Special Needs,Residential Independent Sector
Cambridgeshire County Council,15-Dec-17,24992912-16524410,-1328.44,Care Management Group (64-66 Carlton),Care Establishment,4 - Operations - Providers services,LDP E Cambs Special Needs,Residential Independent Sector
Cambridgeshire County Council,15-Dec-17,24992867-16524475,-1328.44,Care Management Group (64-66 Carlton),Care Establishment,4 - Operations - Providers services,LDP E Cambs Special Needs,Residential Independent Sector
Cambridgeshire County Council,15-Dec-17,24992874-16524482,-1328.44,Care Management Group (64-66 Carlton),Care Establishment,4 - Operations - Providers services,LDP E Cambs Special Needs,Residential Independent Sector
Cambridgeshire County Council,15-Dec-17,24992884-16524492,-1328.44,Care Management Group (64-66 Carlton),Care Establishment,4 - Operations - Providers services,LDP E Cambs Special Needs,Residential Independent Sector
Cambridgeshire County Council,15-Dec-17,24992885-16524493,-1328.44,Care Management Group (64-66 Carlton),Care Establishment,4 - Operations - Providers services,LDP E Cambs Special Needs,Residential Independent Sector
Cambridgeshire County Council,15-Dec-17,24992887-16524495,-1328.44,Care Management Group (64-66 Carlton),Care Establishment,4 - Operations - Providers services,LDP E Cambs Special Needs,Residential Independent Sector
